Body Name,ONS Body Code,Service Label,Service Code,Service Division,Service Division Code,Organisational Unit,Expenditure Category,Expenditure Code,CIPFA detailed expenditure type,GLCode,CIPFA detailed expenditure code,Date,Transaction Number,Net Amount,Capital and Revenue,Supplier Name,Supplier No
The Royal Borough of Kensington and Chelsea,RBKC,"Envrmt,Leisure & Residents Svc",ELR,"Cleaner,Greener & Cultural Ser",YCG,ELR Recycling & Waste Disposal (OSY),Supplies & Services,400,WM&L-Recycling,Y2160.40090,40090, 02/04/2014,P2 784473,"2,024.00",REV,UK Container Maintenance Ltd,1195749
The Royal Borough of Kensington and Chelsea,RBKC,Children's Services,CHS,Family Services - RBKC,SKC,FCS Ladbroke North SWT (OSF),Third Party Payments,500,Promoting Services,S1731.54175,54175, 25/04/2014,P2 838371,"1,343.00",REV,Familyplans Ltd,1003075
The Royal Borough of Kensington and Chelsea,RBKC,Adult Social Care,ASC,Procurement & Bus Intelligence,AS3,COS Customer Services (OSC),Supplies & Services,400,Support Servs/Management,S0013.43050,43050, 08/04/2014,P2 839983,"2,750.00",REV,London Borough of Camden,1323795
The Royal Borough of Kensington and Chelsea,RBKC,Adult Social Care,ASC,Operations,AS6,ASC E Monitoring Team (OSS),Third Party Payments,500,Learning Disability,S6125.54452,54452, 22/04/2014,P2 846805,596.12,REV,Workline Group Ltd,600423
The Royal Borough of Kensington and Chelsea,RBKC,Housing Services,HOS,Hsg Needs and Homelessness,HNH,HOS Temp Accommodation (OSS),Third Party Payments,500,Homelessness & Housing Advice,H6400.54711,54711, 02/04/2014,P2 848516,"7,388.00",REV,Ferndell Ltd,602671
The Royal Borough of Kensington and Chelsea,RBKC,Adult Social Care,ASC,Operations,AS6,ASC Learning Dis Local SWT (OSS),Third Party Payments,500,Learning Disability,S6121.53000,53000, 30/04/2014,P2 849512,"30,205.89",REV,Look Ahead Housing & Care Ltd,600269
The Royal Borough of Kensington and Chelsea,RBKC,Corporate Services,COS,Human Resources,CHG,COS Learning and Development (OSC),Supplies & Services,400,Human Resources,P4421.42515,42515, 03/04/2014,P2 849513,525.00,REV,Payment to an individual or sole trader,1221930
The Royal Borough of Kensington and Chelsea,RBKC,Transport & Technical Srvcs,TTS,Environmental Health,YEH,TTS Operational Support (OSS),Supplies & Services,400,Contracts and Projects,Y4215.40320,40320, 02/04/2014,P2 849515,590.80,REV,Killgerm Chemicals Ltd,600522
The Royal Borough of Kensington and Chelsea,RBKC,Children's Services,CHS,Family Services - RBKC,SKC,FCS Play Centres (OSF),Employee Expenses,100,Play Service,E6015.13504,13504, 02/04/2014,P2 849529,"1,500.00",REV,Payment to an individual or sole trader,1145396
The Royal Borough of Kensington and Chelsea,RBKC,Children's Services,CHS,Children's Commissioning,SCC,FCS Play Centres (OSF),Premises Expenses,200,Play Service,E6310.20230,20230, 02/04/2014,P2 849533,730.00,REV,M P Wharmby Ltd,977461
The Royal Borough of Kensington and Chelsea,RBKC,Corporate Services,COS,Strategy & Local Services,CPU,COS Registrars (OSC),Supplies & Services,400,Gen Services to the Public,P2001.45445,45445, 01/04/2014,P2 849534,720.00,REV,Payment to an individual or sole trader,604047
The Royal Borough of Kensington and Chelsea,RBKC,"Envrmt,Leisure & Residents Svc",ELR,Non Revenue,001,ELR Environmental Strategy (OSY),Capital Code,003,Capital Codes,X6340.00090,00090, 01/04/2014,P2 849544,500.00,CAP,St Cuthbert PCC,936127
The Royal Borough of Kensington and Chelsea,RBKC,Children's Services,CHS,Non Revenue,001,FCS School Meals Contracts (OSF),Capital Code,003,TO BE MAPPED,F5089.00110,00110, 02/04/2014,P2 849568,"3,800.00",CAP,M P Wharmby Ltd,977461
The Royal Borough of Kensington and Chelsea,RBKC,Children's Services,CHS,Non Revenue,001,FCS School Meals Contracts (OSF),Capital Code,003,TO BE MAPPED,F5089.00110,00110, 02/04/2014,P2 849569,"3,470.00",CAP,M P Wharmby Ltd,977461
The Royal Borough of Kensington and Chelsea,RBKC,Children's Services,CHS,Non Revenue,001,FCS School Meals Contracts (OSF),Capital Code,003,TO BE MAPPED,F5089.00110,00110, 02/04/2014,P2 849570,"4,120.00",CAP,M P Wharmby Ltd,977461
The Royal Borough of Kensington and Chelsea,RBKC,Children's Services,CHS,Non Revenue,001,FCS School Meals Contracts (OSF),Capital Code,003,TO BE MAPPED,F5089.00110,00110, 02/04/2014,P2 849571,"3,845.00",CAP,M P Wharmby Ltd,977461
The Royal Borough of Kensington and Chelsea,RBKC,Children's Services,CHS,Tri-Borough Education Service,SED,FCS Pupil Support Svc (OSF),Employee Expenses,100,"A,I&A Other",E5613.12100,12100, 01/04/2014,P2 849939,"2,800.00",REV,Duncan Little,1315347
The Royal Borough of Kensington and Chelsea,RBKC,Children's Services,CHS,Family Services - RBKC,SKC,FCS World's End SWT (OSF),Third Party Payments,500,LAC and Leaving Care,S1816.54120,54120, 02/04/2014,P2 849941,675.64,REV,Earls Court YMCA,601331
The Royal Borough of Kensington and Chelsea,RBKC,Adult Social Care,ASC,Operations,AS6,ASC E Monitoring Team (OSS),Third Party Payments,500,Learning Disability,S6125.54452,54452, 04/04/2014,P2 849947,542.34,REV,Workline Group Ltd,600423
The Royal Borough of Kensington and Chelsea,RBKC,Children's Services,CHS,Family Services - RBKC,SKC,FCS Ladbroke North SWT (OSF),Third Party Payments,500,Promoting Services,S1731.54175,54175, 03/04/2014,P2 849959,500.00,REV,Galton Associates,1236754
The Royal Borough of Kensington and Chelsea,RBKC,Children's Services,CHS,Family Services - RBKC,SKC,FCS Leaving Care (OSF),Supplies & Services,400,Social Work Services,S1420.40280,40280, 04/04/2014,P2 849973,612.97,REV,Posturite (UK) Ltd,601843
The Royal Borough of Kensington and Chelsea,RBKC,"Envrmt,Leisure & Residents Svc",ELR,Non Revenue,001,ELR Leisure Capital Projs (OSY),Capital Code,003,ES Capital Codes,X6364.00090,00090, 02/04/2014,P2 850052,"22,674.21",CAP,Eurovia Infrastructure Ltd,949196
The Royal Borough of Kensington and Chelsea,RBKC,Transport & Technical Srvcs,TTS,Transportation & Highways,YTH,TTS Transportation Contracts (OSY),Third Party Payments,500,T&H-Traffic Section,Y7130.54530,54530, 03/04/2014,P2 850065,"34,045.72",REV,Project Centre,601607
The Royal Borough of Kensington and Chelsea,RBKC,Children's Services,CHS,Tri-Borough Education Service,SED,FCS Continual Profession Devel (OSF),Supplies & Services,400,Facilitating School Imp,E3500.46975,46975, 04/04/2014,P2 850069,"1,140.00",REV,Payment to an individual or sole trader,1308920
The Royal Borough of Kensington and Chelsea,RBKC,Children's Services,CHS,Tri-Borough Education Service,SED,FCS Continual Profession Devel (OSF),Supplies & Services,400,Facilitating School Imp,E3500.46975,46975, 04/04/2014,P2 850070,570.00,REV,Payment to an individual or sole trader,1308920
The Royal Borough of Kensington and Chelsea,RBKC,Adult Social Care,ASC,Procurement & Bus Intelligence,AS3,ASC L&D (OSS),Employee Expenses,100,Support Servs/Management,S0021.19090,19090, 02/04/2014,P2 850482,600.00,REV,A&R Associates,645926
The Royal Borough of Kensington and Chelsea,RBKC,Corporate Services,COS,Non Revenue,001,COS SPACE Programme (OSC),Capital Code,003,Capital Codes,Q3469.00060,00060, 04/04/2014,P2 850496,"2,706.00",CAP,Sheppard Robson,1225836
The Royal Borough of Kensington and Chelsea,RBKC,Public Health,PHL,Public Health,JPH,"Obesity, Nutrition & Oth ()",Third Party Payments,500,Non Budget Book Business Unit,J4209.55000,55000, 02/04/2014,P2 850509,"2,317.50",REV,Health Education Partnership Ltd,1309121
The Royal Borough of Kensington and Chelsea,RBKC,"Envrmt,Leisure & Residents Svc",ELR,"Cleaner,Greener & Cultural Ser",YCG,ELR Climate Change (OSY),Third Party Payments,500,Exec-Environmental Strategy,Y0016.54530,54530, 04/04/2014,P2 850527,"1,400.00",REV,Sustain Ltd,1238201
The Royal Borough of Kensington and Chelsea,RBKC,"Envrmt,Leisure & Residents Svc",ELR,"Cleaner,Greener & Cultural Ser",YCG,ELR Climate Change (OSY),Third Party Payments,500,Exec-Environmental Strategy,Y0016.54530,54530, 04/04/2014,P2 850528,"4,685.00",REV,Sustain Ltd,1238201
The Royal Borough of Kensington and Chelsea,RBKC,"Envrmt,Leisure & Residents Svc",ELR,"Cleaner,Greener & Cultural Ser",YCG,ELR Climate Change (OSY),Third Party Payments,500,Exec-Environmental Strategy,Y0016.54530,54530, 04/04/2014,P2 850529,"1,620.00",REV,Sustain Ltd,1238201
The Royal Borough of Kensington and Chelsea,RBKC,Corporate Services,COS,Internal Audit & Risk Mngmnt,CFA,COS Risk Management & Insuranc (OSC),Supplies & Services,400,Finance,P4626.44200,44200, 03/04/2014,P2 850533,"1,320.00",REV,CIPFA Business Ltd,600140
The Royal Borough of Kensington and Chelsea,RBKC,Children's Services,CHS,Tri-Borough Education Service,SED,FCS Continual Profession Devel (OSF),Supplies & Services,400,Facilitating School Imp,E3500.46975,46975, 04/04/2014,P2 850534,"1,300.00",REV,Payment to an individual or sole trader,1281716
The Royal Borough of Kensington and Chelsea,RBKC,Children's Services,CHS,Tri-Borough Education Service,SED,FCS Continual Profession Devel (OSF),Supplies & Services,400,Facilitating School Imp,E3500.46975,46975, 04/04/2014,P2 850535,760.00,REV,Payment to an individual or sole trader,1308920
The Royal Borough of Kensington and Chelsea,RBKC,Adult Social Care,ASC,Public Transport,AS7,ASC Tri Boro Procurem&Contract (OSS),Third Party Payments,500,Public Transport,S6602.53000,53000, 03/04/2014,P2 850548,"4,433.19",REV,Pursuing Indepentent Paths,639552
The Royal Borough of Kensington and Chelsea,RBKC,"Envrmt,Leisure & Residents Svc",ELR,Non Revenue,001,ELR Business Support (OSY),Capital Code,003,Capital Codes,X6340.00090,00090, 04/04/2014,P2 850558,636.00,CAP,Springbridge Direct Ltd,1332264
The Royal Borough of Kensington and Chelsea,RBKC,Corporate Services,COS,Strategy & Local Services,CPU,COS Community Safety (OSC),Third Party Payments,500,Community Safety & DIP,P5748.53000,53000, 02/04/2014,P2 850617,"19,929.50",REV,Epic Elm CIC,1326397
The Royal Borough of Kensington and Chelsea,RBKC,Children's Services,CHS,Family Services - RBKC,SKC,FCS World's End SWT (OSF),Third Party Payments,500,High Needs Service,S1603.54185,54185, 02/04/2014,P2 850762,"2,883.00",REV,Anna Freud Centre,823129
The Royal Borough of Kensington and Chelsea,RBKC,Children's Services,CHS,School Funding,SSF,CHS Golborne (OSF),Employee Expenses,100,Early Years (Formula),E1003.13043,13043, 04/04/2014,P2 850764,511.95,REV,Marylebone Recruitment Ltd,600077
The Royal Borough of Kensington and Chelsea,RBKC,Corporate Services,COS,Revenues,CFR,COS Rev & Bens Info Systems (OSC),Supplies & Services,400,Housing & Council Tax Benefits,P5920.43085,43085, 04/04/2014,P2 850767,"15,405.00",REV,Civica UK Ltd,1223139
The Royal Borough of Kensington and Chelsea,RBKC,Children's Services,CHS,Children's Commissioning,SCC,CHS Workforce Development Team (OSF),Supplies & Services,400,StrategyCommissioning&Perform,E9752.42113,42113, 04/04/2014,P2 850772,"1,300.00",REV,Payment to an individual or sole trader,865609
The Royal Borough of Kensington and Chelsea,RBKC,Adult Social Care,ASC,Procurement & Bus Intelligence,AS3,ASC L&D (OSS),Employee Expenses,100,Support Servs/Management,S0021.19090,19090, 04/04/2014,P2 850773,"4,600.00",REV,Capacity Care Community Interest Co,1288974
The Royal Borough of Kensington and Chelsea,RBKC,Adult Social Care,ASC,Procurement & Bus Intelligence,AS3,ASC L&D (OSS),Employee Expenses,100,Support Servs/Management,S0021.19090,19090, 04/04/2014,P2 850774,"1,705.00",REV,Capacity Care Community Interest Co,1288974
The Royal Borough of Kensington and Chelsea,RBKC,Adult Social Care,ASC,Procurement & Bus Intelligence,AS3,ASC L&D (OSS),Employee Expenses,100,Support Servs/Management,S0021.19090,19090, 04/04/2014,P2 850776,595.00,REV,Payment to an individual or sole trader,603104
The Royal Borough of Kensington and Chelsea,RBKC,Adult Social Care,ASC,Procurement & Bus Intelligence,AS3,ASC L&D (OSS),Employee Expenses,100,Support Servs/Management,S0021.19090,19090, 04/04/2014,P2 850777,595.00,REV,Payment to an individual or sole trader,603104
The Royal Borough of Kensington and Chelsea,RBKC,Public Health,PHL,Public Health,JPH,NHS Health Check Progrme & Oth (),Third Party Payments,500,Non Budget Book Business Unit,J4215.55000,55000, 25/04/2014,P2 850804,"9,625.00",REV,Open Age Project,601309
The Royal Borough of Kensington and Chelsea,RBKC,Public Health,PHL,Public Health,JPH,NHS Health Check Progrme & Oth (),Third Party Payments,500,Non Budget Book Business Unit,J4215.55000,55000, 25/04/2014,P2 850807,"5,282.50",REV,Open Age Project,601309
The Royal Borough of Kensington and Chelsea,RBKC,Corporate Services,COS,Internal Audit & Risk Mngmnt,CFA,COS Risk Management & Insuranc (OSC),Supplies & Services,400,Finance,P4626.45880,45880, 04/04/2014,P2 850812,"2,347.50",REV,JC Applications Development Ltd,801499
The Royal Borough of Kensington and Chelsea,RBKC,Adult Social Care,ASC,Operations,AS6,ASC E Monitoring Team (OSS),Third Party Payments,500,Older People,S3801.54453,54453, 03/04/2014,P2 850977,"1,121.40",REV,Carewatch (Kensington & Chelsea),821083
The Royal Borough of Kensington and Chelsea,RBKC,Children's Services,CHS,Family Services - RBKC,SKC,FCS Early Start (Golborne) (OSF),Employee Expenses,100,EY Outreach,S2236.19090,19090, 03/04/2014,P2 850992,"8,130.00",REV,SkyBlu Solutions Ltd,1325605
The Royal Borough of Kensington and Chelsea,RBKC,Transport & Technical Srvcs,TTS,Environmental Health,YEH,TTS Operational Support (OSS),Employee Expenses,100,Management & Support Services,Y4010.19090.TNGEXEH3,19090, 02/04/2014,P2 850994,920.00,REV,Killgerm Chemicals Ltd,600522
The Royal Borough of Kensington and Chelsea,RBKC,Corporate Services,COS,Strategy & Local Services,CPU,COS Electoral Services (OSC),Supplies & Services,400,Gen Services to the Public,P2102.40080,40080, 03/04/2014,P2 850997,"2,873.40",REV,Signet Signs Ltd,782247
The Royal Borough of Kensington and Chelsea,RBKC,Corporate Services,COS,Human Resources,CHG,COS Learning and Development (OSC),Supplies & Services,400,Human Resources,P4421.42515,42515, 09/04/2014,P2 851003,"1,035.00",REV,Freeney Williams Ltd,1097275
The Royal Borough of Kensington and Chelsea,RBKC,Public Health,PHL,Public Health,JPH,NHS Health Check Progrme & Oth (),Third Party Payments,500,Non Budget Book Business Unit,J4102.55000,55000, 09/04/2014,P2 851005,"2,427.00",REV,The Chelsea Practice,606713
The Royal Borough of Kensington and Chelsea,RBKC,Public Health,PHL,Public Health,JPH,NHS Health Check Progrme & Oth (),Third Party Payments,500,Non Budget Book Business Unit,J4102.55000,55000, 04/04/2014,P2 851007,"1,855.00",REV,Payment to an individual or sole trader,1307480
The Royal Borough of Kensington and Chelsea,RBKC,Transport & Technical Srvcs,TTS,Transportation & Highways,YTH,TTS Ken King-Lighting (OSY),Third Party Payments,500,T&H-Public Lighting,Y7254.55797,55797, 09/04/2014,P2 851015,"8,719.61",REV,Eurovia Infrastructure Ltd,949196
The Royal Borough of Kensington and Chelsea,RBKC,Transport & Technical Srvcs,TTS,Transportation & Highways,YTH,TTS Graham Shoesmith-Lighting (OSY),Third Party Payments,500,T&H-Public Lighting,Y7254.55797,55797, 09/04/2014,P2 851017,"42,415.73",REV,Eurovia Infrastructure Ltd,949196
The Royal Borough of Kensington and Chelsea,RBKC,"Envrmt,Leisure & Residents Svc",ELR,"Cleaner,Greener & Cultural Ser",YCG,ELR Environmental Strategy (OSY),Supplies & Services,400,Exec-Environmental Strategy,Y0016.45342,45342, 04/04/2014,P2 851018,"10,999.44",REV,Glasdon UK Ltd,908329
The Royal Borough of Kensington and Chelsea,RBKC,Corporate Services,COS,Non Revenue,001,COS Corporate Finance (OSC),Balance Sheet Code,002,Non Budget Book Business Unit,B4402.08456,08456, 03/04/2014,P2 852867,750.00,CAB,Cluttons LLP,603514
The Royal Borough of Kensington and Chelsea,RBKC,Adult Social Care,ASC,Operations,AS6,ASC E Monitoring Team (OSS),Third Party Payments,500,Older People,S3800.54453,54453, 03/04/2014,P2 852896,"1,471.30",REV,Carewatch (Kensington & Chelsea),821083
The Royal Borough of Kensington and Chelsea,RBKC,Adult Social Care,ASC,Operations,AS6,ASC E Monitoring Team (OSS),Third Party Payments,500,Physical Disability,S6520.54452,54452, 03/04/2014,P2 852899,748.16,REV,Carewatch (Kensington & Chelsea),821083
The Royal Borough of Kensington and Chelsea,RBKC,Adult Social Care,ASC,Operations,AS6,ASC E Monitoring Team (OSS),Third Party Payments,500,Older People,S3801.54453,54453, 03/04/2014,P2 852900,"1,225.00",REV,Carewatch (Kensington & Chelsea),821083
The Royal Borough of Kensington and Chelsea,RBKC,Adult Social Care,ASC,Operations,AS6,ASC E Monitoring Team (OSS),Third Party Payments,500,Older People,S3801.54453,54453, 03/04/2014,P2 852903,558.40,REV,Carewatch (Kensington & Chelsea),821083
The Royal Borough of Kensington and Chelsea,RBKC,Adult Social Care,ASC,Operations,AS6,ASC E Monitoring Team (OSS),Third Party Payments,500,Older People,S3800.54453,54453, 03/04/2014,P2 852904,"1,066.24",REV,Carewatch (Kensington & Chelsea),821083
The Royal Borough of Kensington and Chelsea,RBKC,Adult Social Care,ASC,Operations,AS6,ASC E Monitoring Team (OSS),Third Party Payments,500,Older People,S3801.54453,54453, 03/04/2014,P2 852905,679.80,REV,Carewatch (Kensington & Chelsea),821083
The Royal Borough of Kensington and Chelsea,RBKC,Adult Social Care,ASC,Operations,AS6,ASC E Monitoring Team (OSS),Third Party Payments,500,Older People,S3801.54453,54453, 03/04/2014,P2 852908,"1,143.16",REV,Carewatch (Kensington & Chelsea),821083
The Royal Borough of Kensington and Chelsea,RBKC,Corporate Services,COS,Information Systems,CIS,COS ISD Development (OSC),Supplies & Services,400,Information Systems,P4821.43050,43050, 04/04/2014,P2 852925,"1,571.28",REV,Orica Software Systems Ltd,642188
The Royal Borough of Kensington and Chelsea,RBKC,Public Health,PHL,Public Health,JPH,NHS Health Check Progrme & Oth (),Third Party Payments,500,Non Budget Book Business Unit,J4102.55000,55000, 04/04/2014,P2 852927,"1,950.00",REV,Telehealth Solutions Ltd,1315288
The Royal Borough of Kensington and Chelsea,RBKC,Transport & Technical Srvcs,TTS,Transportation & Highways,YTH,TTS Highways (OSY),Third Party Payments,500,T&H-Parking On-Street,Y8250.55590,55590, 04/04/2014,P2 852930,550.33,REV,Eurovia Infrastructure Ltd,949196
The Royal Borough of Kensington and Chelsea,RBKC,Transport & Technical Srvcs,TTS,Transportation & Highways,YTH,TTS Highways (OSY),Third Party Payments,500,T&H-Parking On-Street,Y8250.55590,55590, 04/04/2014,P2 852931,873.47,REV,Eurovia Infrastructure Ltd,949196
The Royal Borough of Kensington and Chelsea,RBKC,Transport & Technical Srvcs,TTS,Transportation & Highways,YTH,TTS Highways (OSY),Third Party Payments,500,T&H-Parking On-Street,Y8250.55590,55590, 01/04/2014,P2 852934,900.00,REV,Eurovia Infrastructure Ltd,949196
The Royal Borough of Kensington and Chelsea,RBKC,Transport & Technical Srvcs,TTS,Transportation & Highways,YTH,TTS Highways (OSY),Third Party Payments,500,T&H-Parking On-Street,Y8250.55590,55590, 02/04/2014,P2 852936,"1,794.12",REV,Eurovia Infrastructure Ltd,949196
The Royal Borough of Kensington and Chelsea,RBKC,Transport & Technical Srvcs,TTS,Transportation & Highways,YTH,TTS Highways (OSY),Third Party Payments,500,T&H-Parking On-Street,Y8250.55590,55590, 03/04/2014,P2 852939,853.39,REV,Eurovia Infrastructure Ltd,949196
The Royal Borough of Kensington and Chelsea,RBKC,Transport & Technical Srvcs,TTS,Transportation & Highways,YTH,TTS Highways (OSY),Third Party Payments,500,T&H-Parking On-Street,Y8250.55590,55590, 04/04/2014,P2 852940,643.01,REV,Eurovia Infrastructure Ltd,949196
The Royal Borough of Kensington and Chelsea,RBKC,Corporate Services,COS,Non Revenue,001,COS ISD Support (OSC),Capital Code,003,Information Systems,Q3485.00113,00113, 04/04/2014,P2 852943,"2,881.34",CAP,Insight Direct (UK) Ltd,603806
The Royal Borough of Kensington and Chelsea,RBKC,Transport & Technical Srvcs,TTS,Transportation & Highways,YTH,TTS Parking On St Services (OSY),Third Party Payments,500,T&H-Parking On-Street,Y8300.55971,55971, 09/04/2014,P2 852948,522.25,REV,Metric Group Ltd,611187
The Royal Borough of Kensington and Chelsea,RBKC,Transport & Technical Srvcs,TTS,Transportation & Highways,YTH,TTS Derek Mahon-Lighting (OSY),Third Party Payments,500,T&H-Public Lighting,Y7252.55920,55920, 09/04/2014,P2 852956,"1,698.15",REV,Eurovia Infrastructure Ltd,949196
The Royal Borough of Kensington and Chelsea,RBKC,Transport & Technical Srvcs,TTS,Transportation & Highways,YTH,TTS TAPs and LSSs (OSY),Premises Expenses,200,T&H-Public Lighting,Y7256.21000,21000, 09/04/2014,P2 852957,"4,515.26",REV,Eurovia Infrastructure Ltd,949196
The Royal Borough of Kensington and Chelsea,RBKC,Adult Social Care,ASC,Operations,AS6,COS ISD Network and Telecomms (OSC),Supplies & Services,400,Older People,S3009.45000,45000, 04/04/2014,P2 852958,"2,534.00",REV,Unify Enterprise Communications Ltd,603041
The Royal Borough of Kensington and Chelsea,RBKC,Corporate Services,COS,Information Systems,CIS,COS ISD Network and Telecomms (OSC),Supplies & Services,400,Information Systems,P4826.43180,43180, 04/04/2014,P2 852959,750.00,REV,Unify Enterprise Communications Ltd,603041
The Royal Borough of Kensington and Chelsea,RBKC,Adult Social Care,ASC,Operations,AS6,ASC Learning Dis Local SWT (OSS),Third Party Payments,500,Learning Disability,S6123.54135,54135, 03/04/2014,P2 854406,"2,374.40",REV,Yarrow Housing Ltd,602070
The Royal Borough of Kensington and Chelsea,RBKC,Adult Social Care,ASC,Operations,AS6,ASC Learning Dis Local SWT (OSS),Third Party Payments,500,Learning Disability,S6125.54210,54210, 03/04/2014,P2 854407,"8,619.91",REV,Yarrow Housing Ltd,602070
The Royal Borough of Kensington and Chelsea,RBKC,Housing Services,HOS,Non Revenue,001,HOS West London Sub Region (OSS),Balance Sheet Code,002,Non Budget Book Business Unit,B0549.04609,04609, 02/04/2014,P2 854421,"3,350.00",CAB,Capital Housing Associates Ltd,1297084
The Royal Borough of Kensington and Chelsea,RBKC,Adult Social Care,ASC,Operations,AS6,ASC E Monitoring Team (OSS),Third Party Payments,500,Physical Disability,S6520.54452,54452, 03/04/2014,P2 854427,"2,107.64",REV,Carewatch (Kensington & Chelsea),821083
The Royal Borough of Kensington and Chelsea,RBKC,Adult Social Care,ASC,Operations,AS6,ASC E Monitoring Team (OSS),Third Party Payments,500,Older People,S3800.55355,55355, 03/04/2014,P2 854428,640.64,REV,Carewatch (Kensington & Chelsea),821083
The Royal Borough of Kensington and Chelsea,RBKC,"Library,Archive & Heritage Svc",LAH,Non Revenue,001,COS AssetMngt & Capital Prjcts (OSC),Capital Code,003,Capital Codes,K5043.00090,00090, 04/04/2014,P2 854431,"130,465.00",CAP,ITC Concepts Ltd,837705
The Royal Borough of Kensington and Chelsea,RBKC,Children's Services,CHS,Family Services - RBKC,SKC,FCS Children with Disabilities (OSF),Third Party Payments,500,Children With Disabilities,S1752.54290,54290, 04/04/2014,P2 854441,"1,261.56",REV,Special People,625778
The Royal Borough of Kensington and Chelsea,RBKC,Adult Social Care,ASC,Operations,AS6,ASC Learning Dis Local SWT (OSS),Third Party Payments,500,Learning Disability,S6125.53000,53000, 03/04/2014,P2 854442,"12,740.00",REV,Kent and Medway NHS SCPT,1311333
The Royal Borough of Kensington and Chelsea,RBKC,Adult Social Care,ASC,Operations,AS6,ASC Learning Dis Local SWT (OSS),Third Party Payments,500,Learning Disability,S6125.54070,54070, 02/04/2014,P2 854445,"2,813.44",REV,Ambitious About Autism,1288704
The Royal Borough of Kensington and Chelsea,RBKC,Adult Social Care,ASC,Operations,AS6,ASC Learning Dis Local SWT (OSS),Employee Expenses,100,Learning Disability,S6292.12000,12000, 03/04/2014,P2 854446,"1,895.25",REV,Pulse Healthcare Ltd,828602
The Royal Borough of Kensington and Chelsea,RBKC,Children's Services,CHS,Non Revenue,001,FCS School Meals Contracts (OSF),Capital Code,003,TO BE MAPPED,F5089.00110,00110, 02/04/2014,P2 854524,"4,500.00",CAP,M P Wharmby Ltd,977461
The Royal Borough of Kensington and Chelsea,RBKC,Corporate Services,COS,Non Revenue,001,COS ISD Training (OSC),Holding Code,005,Non Budget Book Business Unit,C1068.00661,00661, 04/04/2014,P2 854549,"20,788.68",CAH,O2,622622
The Royal Borough of Kensington and Chelsea,RBKC,Adult Social Care,ASC,Operations,AS6,ASC E Monitoring Team (OSS),Third Party Payments,500,Older People,S3801.55355,55355, 03/04/2014,P2 854553,"2,070.00",REV,Carewatch (Kensington & Chelsea),821083
The Royal Borough of Kensington and Chelsea,RBKC,Adult Social Care,ASC,Operations,AS6,ASC E Monitoring Team (OSS),Third Party Payments,500,Older People,S3800.54453,54453, 03/04/2014,P2 854554,"1,074.16",REV,Carewatch (Kensington & Chelsea),821083
The Royal Borough of Kensington and Chelsea,RBKC,Adult Social Care,ASC,Operations,AS6,ASC E Monitoring Team (OSS),Third Party Payments,500,Older People,S3801.54453,54453, 03/04/2014,P2 854557,"1,358.76",REV,Carewatch (Kensington & Chelsea),821083
The Royal Borough of Kensington and Chelsea,RBKC,Adult Social Care,ASC,Operations,AS6,ASC E Monitoring Team (OSS),Third Party Payments,500,Older People,S3801.54453,54453, 03/04/2014,P2 854561,"1,413.30",REV,Carewatch (Kensington & Chelsea),821083
The Royal Borough of Kensington and Chelsea,RBKC,Corporate Services,COS,Strategy & Local Services,CPU,COS Electoral Services (OSC),Supplies & Services,400,Gen Services to the Public,P2101.40080,40080, 04/04/2014,P2 854576,560.00,REV,Shaw & Sons Ltd,600110
The Royal Borough of Kensington and Chelsea,RBKC,Adult Social Care,ASC,Operations,AS6,ASC E Monitoring Team (OSS),Third Party Payments,500,Older People,S3800.54453,54453, 04/04/2014,P2 854578,"1,027.00",REV,Health Vision UK,1165810
The Royal Borough of Kensington and Chelsea,RBKC,Transport & Technical Srvcs,TTS,Environmental Health,YEH,TTS Operational Support (OSS),Supplies & Services,400,Contracts and Projects,Y4215.40320,40320, 02/04/2014,P2 854604,570.87,REV,Killgerm Chemicals Ltd,600522
The Royal Borough of Kensington and Chelsea,RBKC,Children's Services,CHS,Tri-Borough Education Service,SED,FCS Continual Profession Devel (OSF),Supplies & Services,400,Facilitating School Imp,E3500.46975,46975, 02/04/2014,P2 854612,"1,170.00",REV,Lynmac Training & Consultancy Ltd,1292018
The Royal Borough of Kensington and Chelsea,RBKC,Children's Services,CHS,Tri-Borough Education Service,SED,FCS Continual Profession Devel (OSF),Supplies & Services,400,Facilitating School Imp,E3500.42113,42113, 02/04/2014,P2 854614,500.00,REV,Payment to an individual or sole trader,1285522
The Royal Borough of Kensington and Chelsea,RBKC,Transport & Technical Srvcs,TTS,Transportation & Highways,YTH,TTS Highways (OSY),Third Party Payments,500,T&H-Parking On-Street,Y8250.55590,55590, 04/04/2014,P2 854622,784.72,REV,Eurovia Infrastructure Ltd,949196
The Royal Borough of Kensington and Chelsea,RBKC,Transport & Technical Srvcs,TTS,Transportation & Highways,YTH,TTS Highways (OSY),Third Party Payments,500,T&H-Parking On-Street,Y8250.55590,55590, 04/04/2014,P2 854623,602.17,REV,Eurovia Infrastructure Ltd,949196
The Royal Borough of Kensington and Chelsea,RBKC,Transport & Technical Srvcs,TTS,Transportation & Highways,YTH,TTS Highways (OSY),Third Party Payments,500,T&H-Parking On-Street,Y8250.55590,55590, 04/04/2014,P2 854624,504.69,REV,Eurovia Infrastructure Ltd,949196
The Royal Borough of Kensington and Chelsea,RBKC,Transport & Technical Srvcs,TTS,Transportation & Highways,YTH,TTS Highways (OSY),Third Party Payments,500,T&H-Parking On-Street,Y8250.55590,55590, 04/04/2014,P2 854625,"1,068.92",REV,Eurovia Infrastructure Ltd,949196
The Royal Borough of Kensington and Chelsea,RBKC,Transport & Technical Srvcs,TTS,Transportation & Highways,YTH,TTS Highways (OSY),Third Party Payments,500,T&H-Parking On-Street,Y8250.55590,55590, 04/04/2014,P2 854626,668.56,REV,Eurovia Infrastructure Ltd,949196
The Royal Borough of Kensington and Chelsea,RBKC,Transport & Technical Srvcs,TTS,Transportation & Highways,YTH,TTS Highways (OSY),Third Party Payments,500,T&H-Parking On-Street,Y8250.55590,55590, 04/04/2014,P2 854627,915.03,REV,Eurovia Infrastructure Ltd,949196
The Royal Borough of Kensington and Chelsea,RBKC,Housing Revenue Account,HRA,Housing Revenue Account,HRA,HOS HSG Opportunities (OSS),Central Support Services,700,HRA,H0200.78400,78400, 03/04/2014,P2 854665,"1,636.70",REV,The Move Team,979660
The Royal Borough of Kensington and Chelsea,RBKC,Children's Services,CHS,Family Services - RBKC,SKC,FCS Ladbroke South SWT (OSF),Third Party Payments,500,Promoting Services,S1741.54390,54390, 02/04/2014,P2 854669,638.12,REV,Earls Court YMCA,601331
The Royal Borough of Kensington and Chelsea,RBKC,Children's Services,CHS,Family Services - RBKC,SKC,FCS Ladbroke South SWT (OSF),Third Party Payments,500,LAC and Leaving Care,S1742.54005,54005, 04/04/2014,P2 854670,"3,475.86",REV,Ethelbert Specialist Homes Ltd,836731
The Royal Borough of Kensington and Chelsea,RBKC,Transport & Technical Srvcs,TTS,Transportation & Highways,YTH,TTS Streetworks (OSY),Third Party Payments,500,T&H-Rech. & Other St. Works,Y7231.54530,54530, 03/04/2014,P2 854671,"3,612.06",REV,Project Centre,601607
The Royal Borough of Kensington and Chelsea,RBKC,Corporate Services,COS,Strategy & Local Services,CPU,COS Media and Communications (OSC),Supplies & Services,400,Media & Communications,P5101.45540,45540, 04/04/2014,P2 854672,"8,500.00",REV,Access Intelligence Media & Communicatio,1048727
The Royal Borough of Kensington and Chelsea,RBKC,Adult Social Care,ASC,Operations,AS6,ASC E Monitoring Team (OSS),Third Party Payments,500,Older People,S3800.54453,54453, 03/04/2014,P2 854674,"1,332.84",REV,Carewatch (Kensington & Chelsea),821083
The Royal Borough of Kensington and Chelsea,RBKC,Adult Social Care,ASC,Operations,AS6,ASC E Monitoring Team (OSS),Third Party Payments,500,Older People,S3800.54453,54453, 03/04/2014,P2 854676,637.84,REV,Carewatch (Kensington & Chelsea),821083
The Royal Borough of Kensington and Chelsea,RBKC,Adult Social Care,ASC,Procurement & Bus Intelligence,AS3,ASC L&D (OSS),Employee Expenses,100,Support Servs/Management,S0021.19090,19090, 04/04/2014,P2 854683,665.00,REV,Huntersjoy Ltd,1125449
The Royal Borough of Kensington and Chelsea,RBKC,Housing Services,HOS,Hsg Needs and Homelessness,HNH,HOS Temp Accommodation (OSS),Third Party Payments,500,Homelessness & Housing Advice,H6400.54714,54714, 04/04/2014,P2 854690,869.83,REV,Paradigm Homes Charitable Housing Associ,1315065
The Royal Borough of Kensington and Chelsea,RBKC,Corporate Services,COS,Revenues,CFR,COS Benefits (OSC),Employee Expenses,100,Housing & Council Tax Benefits,P5915.12000,12000, 04/04/2014,P2 854718,"4,050.00",REV,Serco Ltd,1200359
The Royal Borough of Kensington and Chelsea,RBKC,Corporate Services,COS,Revenues,CFR,COS Benefits (OSC),Employee Expenses,100,Housing & Council Tax Benefits,P5915.12000,12000, 04/04/2014,P2 854719,690.00,REV,Serco Ltd,1200359
The Royal Borough of Kensington and Chelsea,RBKC,Corporate Services,COS,Corporate Property,CBV,COS FM Print & Mailroom Servic (OSC),Supplies & Services,400,Property Services,P1053.40230,40230, 04/04/2014,P2 854726,774.35,REV,Antalis Ltd,796261
The Royal Borough of Kensington and Chelsea,RBKC,Corporate Services,COS,Internal Audit & Risk Mngmnt,CFA,COS Internal Audit (OSC),Third Party Payments,500,Finance,P4602.54505,54505, 04/04/2014,P2 854729,"23,746.50",REV,The London Borough of Croydon,914688
The Royal Borough of Kensington and Chelsea,RBKC,Children's Services,CHS,Family Services - RBKC,SKC,FCS Childrens Social Work (OSF),Third Party Payments,500,High Needs Service,S1603.54185,54185, 03/04/2014,P2 855057,850.00,REV,Jamma Umoja (Residential Services),604236
The Royal Borough of Kensington and Chelsea,RBKC,Planning & Borough Development,PBD,Support Services & Executive,PS,PBD Business Support (OST),Employee Expenses,100,Ser Mgt & Spt Ser Post/Micro,T0120.12000,12000, 04/04/2014,P2 855060,"8,250.00",REV,Vector Resourcing Ltd,605020
The Royal Borough of Kensington and Chelsea,RBKC,Children's Services,CHS,Children's Commissioning,SCC,FCS Lancaster Yth Ctr (OSF),Transport Expenses,300,YouthSupport&Development Ser,E6214.31050,31050, 03/04/2014,P2 855065,501.90,REV,Westway Community Transport,600313
The Royal Borough of Kensington and Chelsea,RBKC,Adult Social Care,ASC,Operations,AS6,ASC E Monitoring Team (OSS),Third Party Payments,500,Physical Disability,S6520.54452,54452, 03/04/2014,P2 855073,804.73,REV,Carewatch (Kensington & Chelsea),821083
The Royal Borough of Kensington and Chelsea,RBKC,Adult Social Care,ASC,Non Revenue,001,ASC Contract Serv-Comm Equip (OSS),Balance Sheet Code,002,Non Budget Book Business Unit,B2168.05471,05471, 09/04/2014,P2 855083,"1,564.00",CAB,Creative Software Solutions (Europe) Ltd,1269887
The Royal Borough of Kensington and Chelsea,RBKC,Children's Services,CHS,Children's Commissioning,SCC,CHS Workforce Development Team (OSF),Third Party Payments,500,StrategyCommissioning&Perform,E9752.57515,57515, 04/04/2014,P2 855084,"2,200.00",REV,ALS - Holdings Ltd,1309711
The Royal Borough of Kensington and Chelsea,RBKC,Children's Services,CHS,Children's Commissioning,SCC,CHS Workforce Development Team (OSF),Supplies & Services,400,StrategyCommissioning&Perform,E9752.42113,42113, 16/04/2014,P2 855103,600.00,REV,Payment to an individual or sole trader,878591
The Royal Borough of Kensington and Chelsea,RBKC,Transport & Technical Srvcs,TTS,Transportation & Highways,YTH,TTS Highways (OSY),Third Party Payments,500,T&H-Parking On-Street,Y8250.55590,55590, 04/04/2014,P2 855124,637.19,REV,Eurovia Infrastructure Ltd,949196
The Royal Borough of Kensington and Chelsea,RBKC,Transport & Technical Srvcs,TTS,Transportation & Highways,YTH,TTS Highways (OSY),Third Party Payments,500,T&H-Highway Maintenance,Y7212.55560,55560, 04/04/2014,P2 855125,524.10,REV,Eurovia Infrastructure Ltd,949196
The Royal Borough of Kensington and Chelsea,RBKC,Transport & Technical Srvcs,TTS,Transportation & Highways,YTH,TTS TAPs and LSSs (OSY),Third Party Payments,500,T&H-Public Lighting,Y7254.55880,55880, 09/04/2014,P2 855126,"3,014.44",REV,Eurovia Infrastructure Ltd,949196
The Royal Borough of Kensington and Chelsea,RBKC,"Envrmt,Leisure & Residents Svc",ELR,Non Revenue,001,ELR Environmental Strategy (OSY),Capital Code,003,Capital Codes,X6340.00090,00090, 10/04/2014,P2 855127,"2,999.00",CAP,Tree Wise Men S.E. Ltd,1160976
The Royal Borough of Kensington and Chelsea,RBKC,"Envrmt,Leisure & Residents Svc",ELR,Non Revenue,001,ELR Environmental Strategy (OSY),Capital Code,003,Capital Codes,X6340.00090,00090, 10/04/2014,P2 855128,"1,475.00",CAP,Tree Wise Men S.E. Ltd,1160976
The Royal Borough of Kensington and Chelsea,RBKC,"Envrmt,Leisure & Residents Svc",ELR,Non Revenue,001,ELR Environmental Strategy (OSY),Capital Code,003,Capital Codes,X6340.00090,00090, 10/04/2014,P2 855129,590.00,CAP,Tree Wise Men S.E. Ltd,1160976
The Royal Borough of Kensington and Chelsea,RBKC,"Envrmt,Leisure & Residents Svc",ELR,Non Revenue,001,ELR Environmental Strategy (OSY),Capital Code,003,Capital Codes,X6340.00090,00090, 10/04/2014,P2 855130,"1,770.00",CAP,Tree Wise Men S.E. Ltd,1160976
The Royal Borough of Kensington and Chelsea,RBKC,"Envrmt,Leisure & Residents Svc",ELR,Non Revenue,001,ELR Environmental Strategy (OSY),Capital Code,003,Capital Codes,X6340.00090,00090, 10/04/2014,P2 855131,"2,987.00",CAP,Tree Wise Men S.E. Ltd,1160976
The Royal Borough of Kensington and Chelsea,RBKC,"Envrmt,Leisure & Residents Svc",ELR,Non Revenue,001,ELR Environmental Strategy (OSY),Capital Code,003,Capital Codes,X6340.00090,00090, 10/04/2014,P2 855132,"2,987.00",CAP,Tree Wise Men S.E. Ltd,1160976
The Royal Borough of Kensington and Chelsea,RBKC,"Envrmt,Leisure & Residents Svc",ELR,Non Revenue,001,ELR Environmental Strategy (OSY),Capital Code,003,Capital Codes,X6340.00090,00090, 10/04/2014,P2 855133,"2,987.00",CAP,Tree Wise Men S.E. Ltd,1160976
The Royal Borough of Kensington and Chelsea,RBKC,"Envrmt,Leisure & Residents Svc",ELR,Non Revenue,001,ELR Environmental Strategy (OSY),Capital Code,003,Capital Codes,X6340.00090,00090, 10/04/2014,P2 855134,"4,395.00",CAP,Tree Wise Men S.E. Ltd,1160976
The Royal Borough of Kensington and Chelsea,RBKC,"Envrmt,Leisure & Residents Svc",ELR,Non Revenue,001,ELR Environmental Strategy (OSY),Capital Code,003,Capital Codes,X6340.00090,00090, 10/04/2014,P2 855136,"2,375.00",CAP,The Cargo Bike Company Ltd,1334043
The Royal Borough of Kensington and Chelsea,RBKC,Adult Social Care,ASC,Operations,AS6,ASC E Monitoring Team (OSS),Supplies & Services,400,Support Servs/Management,S0025.45000,45000, 03/04/2014,P2 856788,753.76,REV,Carewatch (Kensington & Chelsea),821083
The Royal Borough of Kensington and Chelsea,RBKC,Children's Services,CHS,Tri-Borough Education Service,SED,FCS School Improvement Service (OSF),Supplies & Services,400,Facilitating School Imp,E3907.44210,44210, 11/04/2014,P2 856817,"10,000.00",REV,Cardinal Vaughan Memorial School,600938
The Royal Borough of Kensington and Chelsea,RBKC,Planning & Borough Development,PBD,Building Control,PB,PBD Building Control (OST),Supplies & Services,400,Building Control,T0410.44200,44200, 04/04/2014,P2 856818,"2,189.17",REV,District Surveyors Association Ltd,602065
The Royal Borough of Kensington and Chelsea,RBKC,Children's Services,CHS,Tri-Borough Education Service,SED,FCS SEN (OSF),Third Party Payments,500,Placements & Recoupment,E5010.58040,58040, 04/04/2014,P2 856827,"4,111.15",REV,LB of Richmond Upon Thames,600879
The Royal Borough of Kensington and Chelsea,RBKC,Children's Services,CHS,Tri-Borough Education Service,SED,FCS SEN (OSF),Third Party Payments,500,Placements & Recoupment,E5000.58050.2012/13,58050, 04/04/2014,P2 856828,"2,472.97",REV,LB of Richmond Upon Thames,600879
The Royal Borough of Kensington and Chelsea,RBKC,Planning & Borough Development,PBD,Building Control,PB,PBD Building Control (OST),Third Party Payments,500,Building Control,T0400.54530,54530, 09/04/2014,P2 856829,992.00,REV,Monson Engineering Ltd,1290456
The Royal Borough of Kensington and Chelsea,RBKC,Housing Services,HOS,Hsg Strategy and Regeneration,HSR,HOS HSG Partnership & Perf (OSS),Employee Expenses,100,Housing Management & Support,H6200.19090,19090, 04/04/2014,P2 856877,"2,292.75",REV,Harley Reed (UK) Ltd,1270592
The Royal Borough of Kensington and Chelsea,RBKC,"Envrmt,Leisure & Residents Svc",ELR,Safer Neighbourhoods,YSN,ELR Parks and Cemeteries (OSY),Premises Expenses,200,WM&L-Parks and Open Spaces,Y2720.20800,20800, 02/04/2014,P2 856878,"175,298.02",REV,Quadron Services Ltd,774253
The Royal Borough of Kensington and Chelsea,RBKC,"Envrmt,Leisure & Residents Svc",ELR,Safer Neighbourhoods,YSN,ELR Parks and Cemeteries (OSY),Premises Expenses,200,WM&L-Parks and Open Spaces,Y2720.20900,20900, 04/04/2014,P2 856881,877.55,REV,R & N Plant Specialists,1332933
The Royal Borough of Kensington and Chelsea,RBKC,Children's Services,CHS,Family Services - RBKC,SKC,FCS Early Start (Golborne) (OSF),Employee Expenses,100,EY Outreach,S2236.19090,19090, 03/04/2014,P2 856882,"1,950.00",REV,Payment to an individual or sole trader,865609
The Royal Borough of Kensington and Chelsea,RBKC,Children's Services,CHS,Family Services - RBKC,SKC,FCS Early Start (Golborne) (OSF),Employee Expenses,100,EY Outreach,S2236.19090,19090, 04/04/2014,P2 856891,"3,900.00",REV,Sainsburys Business Direct,603090
The Royal Borough of Kensington and Chelsea,RBKC,Children's Services,CHS,Family Services - RBKC,SKC,FCS Early Start (Golborne) (OSF),Employee Expenses,100,EY Outreach,S2236.19090,19090, 03/04/2014,P2 856892,"1,500.00",REV,I Made It Myself,1272850
The Royal Borough of Kensington and Chelsea,RBKC,Children's Services,CHS,Children's Commissioning,SCC,FCS School Meals Contracts (OSF),Supplies & Services,400,School MealsManagementContract,E5531.41000,41000, 04/04/2014,P2 856909,952.91,REV,Cater Cover Service Ltd,1127283
The Royal Borough of Kensington and Chelsea,RBKC,"Envrmt,Leisure & Residents Svc",ELR,"Cleaner,Greener & Cultural Ser",YCG,ELR Refuse & Cleansing (OSY),Premises Expenses,200,WM&L-Operations - Cleansing,Y2340.23020,23020, 04/04/2014,P2 856910,"1,570.75",REV,Transport Trading Ltd,602233
The Royal Borough of Kensington and Chelsea,RBKC,Children's Services,CHS,Tri-Borough Education Service,SED,CHS Schools Data Team (OSF),Supplies & Services,400,Schools Strategic Management,E3914.45000,45000, 11/04/2014,P2 856911,"24,040.00",REV,FFT Education Ltd,1098182
The Royal Borough of Kensington and Chelsea,RBKC,Transport & Technical Srvcs,TTS,Transportation & Highways,YTH,TTS Graham Shoesmith-Lighting (OSY),Third Party Payments,500,T&H-Public Lighting,Y7256.55751,55751, 02/04/2014,P2 856919,"19,926.75",REV,Eurovia Infrastructure Ltd,949196
The Royal Borough of Kensington and Chelsea,RBKC,Corporate Services,COS,Information Systems,CIS,COS Internet/Intranet (OSC),Supplies & Services,400,Information Systems,P4815.43040,43040, 11/04/2014,P2 856921,"3,095.00",REV,Streaming Ltd,1022576
The Royal Borough of Kensington and Chelsea,RBKC,Children's Services,CHS,Family Services - RBKC,SKC,FCS Connected Persons (OSF),Third Party Payments,500,Fostering and Adoption,S1465.52560,52560, 04/04/2014,P2 856922,"2,020.00",REV,Payment to an individual or sole trader,1330718
The Royal Borough of Kensington and Chelsea,RBKC,"Envrmt,Leisure & Residents Svc",ELR,"Cleaner,Greener & Cultural Ser",YCG,ELR Refuse & Cleansing (OSY),Supplies & Services,400,WM&L-Contracts and Enforcement,Y2010.40440,40440, 09/04/2014,P2 856926,"3,304.41",REV,Burlington Uniforms Ltd,600659
The Royal Borough of Kensington and Chelsea,RBKC,"Envrmt,Leisure & Residents Svc",ELR,Non Revenue,001,ELR Environmental Strategy (OSY),Capital Code,003,Capital Codes,X6340.00090,00090, 04/04/2014,P2 856927,"2,000.00",CAP,The Chelsea Centre Ltd,600363
The Royal Borough of Kensington and Chelsea,RBKC,Adult & Family Learning Srvcs,AFL,Adult Education,FAE,AFL Adult Learning (OSF),Employee Expenses,100,Adult & Family Learning,E7343.19090,19090, 10/04/2014,P2 856928,"1,140.45",REV,Payment to an individual or sole trader,1313941
The Royal Borough of Kensington and Chelsea,RBKC,Corporate Services,COS,Strategy & Local Services,CPU,COS Community Safety (OSC),Third Party Payments,500,Community Safety & DIP,P5748.55170,55170, 09/04/2014,P2 856933,"3,397.50",REV,BMC Properties & Management Ltd,929433
The Royal Borough of Kensington and Chelsea,RBKC,Corporate Services,COS,Strategy & Local Services,CPU,COS Electoral Services (OSC),Premises Expenses,200,Gen Services to the Public,P2101.23000,23000, 09/04/2014,P2 856934,"1,500.00",REV,Greene King Plc,913943
The Royal Borough of Kensington and Chelsea,RBKC,Children's Services,CHS,Family Services - RBKC,SKC,FCS World's End SWT (OSF),Third Party Payments,500,High Needs Service,S1603.54185,54185, 04/04/2014,P2 857376,"5,754.00",REV,Jamma Umoja (Residential Services),604236
The Royal Borough of Kensington and Chelsea,RBKC,Adult Social Care,ASC,Procurement & Bus Intelligence,AS3,ASC L&D (OSS),Employee Expenses,100,Support Servs/Management,S0021.19090,19090, 09/04/2014,P2 857378,"1,587.50",REV,Capacity Care Community Interest Co,1288974
The Royal Borough of Kensington and Chelsea,RBKC,Adult Social Care,ASC,Procurement & Bus Intelligence,AS3,ASC L&D (OSS),Employee Expenses,100,Support Servs/Management,S0021.19090,19090, 09/04/2014,P2 857379,"1,575.00",REV,Capacity Care Community Interest Co,1288974
The Royal Borough of Kensington and Chelsea,RBKC,Public Health,PHL,Public Health,JPH,NHS Health Check Progrme & Oth (),Third Party Payments,500,Non Budget Book Business Unit,J4226.55000,55000, 08/04/2014,P2 857398,"3,000.00",REV,RBE Associates Ltd,1312491
The Royal Borough of Kensington and Chelsea,RBKC,Children's Services,CHS,Tri-Borough Education Service,SED,FCS SEN (OSF),Third Party Payments,500,"A,I&A Other",E5002.58015.MOSTAQUE,58015, 04/04/2014,P2 857403,552.50,REV,Payment to an individual or sole trader,1334183
The Royal Borough of Kensington and Chelsea,RBKC,Children's Services,CHS,Tri-Borough Education Service,SED,FCS SEN (OSF),Third Party Payments,500,"A,I&A Other",E5002.58015.MOSTAQUE,58015, 04/04/2014,P2 857404,552.50,REV,Payment to an individual or sole trader,1334183
The Royal Borough of Kensington and Chelsea,RBKC,Children's Services,CHS,Tri-Borough Education Service,SED,FCS SEN (OSF),Third Party Payments,500,"A,I&A Other",E5002.58015.MOSTAQUE,58015, 04/04/2014,P2 857405,552.50,REV,Payment to an individual or sole trader,1334183
The Royal Borough of Kensington and Chelsea,RBKC,Children's Services,CHS,Tri-Borough Education Service,SED,FCS SEN (OSF),Third Party Payments,500,"A,I&A Other",E5002.58015.MOSTAQUE,58015, 04/04/2014,P2 857406,552.50,REV,Payment to an individual or sole trader,1334183
The Royal Borough of Kensington and Chelsea,RBKC,Children's Services,CHS,Tri-Borough Education Service,SED,FCS SEN (OSF),Third Party Payments,500,"A,I&A Other",E5002.58015.MOSTAQUE,58015, 04/04/2014,P2 857407,552.50,REV,Payment to an individual or sole trader,1334183
The Royal Borough of Kensington and Chelsea,RBKC,Children's Services,CHS,Tri-Borough Education Service,SED,FCS SEN (OSF),Third Party Payments,500,"A,I&A Other",E5002.58015.MOSTAQUE,58015, 04/04/2014,P2 857408,552.50,REV,Payment to an individual or sole trader,1334183
The Royal Borough of Kensington and Chelsea,RBKC,Children's Services,CHS,Tri-Borough Education Service,SED,FCS SEN (OSF),Third Party Payments,500,"A,I&A Other",E5002.58015.MOSTAQUE,58015, 04/04/2014,P2 857409,552.50,REV,Payment to an individual or sole trader,1334183
The Royal Borough of Kensington and Chelsea,RBKC,Transport & Technical Srvcs,TTS,Transportation & Highways,YTH,TTS Highways (OSY),Third Party Payments,500,T&H-Highway Maintenance,Y7212.55550.LIP1,55550, 10/04/2014,P2 857413,"56,205.51",REV,Eurovia Infrastructure Ltd,949196
The Royal Borough of Kensington and Chelsea,RBKC,Corporate Services,COS,Strategy & Local Services,CPU,COS Consultation & Partnership (OSC),Supplies & Services,400,"Comm Relations, SIT & Public C",P5745.45370,45370, 10/04/2014,P2 857416,"3,095.45",REV,Edenred (Incentives & Motivation) Ltd,934011
The Royal Borough of Kensington and Chelsea,RBKC,Corporate Services,COS,Non Revenue,001,COS Corporate Finance (OSC),Balance Sheet Code,002,Non Budget Book Business Unit,B4402.08456,08456, 11/04/2014,P2 857418,750.00,CAB,Cluttons LLP,603514
The Royal Borough of Kensington and Chelsea,RBKC,Corporate Services,COS,Human Resources,CHG,COS Learning and Development (OSC),Supplies & Services,400,Human Resources,P4421.42515,42515, 11/04/2014,P2 857419,"1,431.00",REV,Client & Customer Focus,864419
The Royal Borough of Kensington and Chelsea,RBKC,Children's Services,CHS,Family Services - RBKC,SKC,FCS Ladbroke North SWT (OSF),Third Party Payments,500,LAC and Leaving Care,S1735.54005,54005, 11/04/2014,P2 857420,"5,234.35",REV,Fostering Together Ltd,1271027
The Royal Borough of Kensington and Chelsea,RBKC,Children's Services,CHS,Family Services - RBKC,SKC,FCS Portobello South SWT (OSF),Third Party Payments,500,LAC and Leaving Care,S1632.54130,54130, 02/04/2014,P2 857505,638.12,REV,Earls Court YMCA,601331
The Royal Borough of Kensington and Chelsea,RBKC,Children's Services,CHS,Family Services - RBKC,SKC,FCS Portobello South SWT (OSF),Third Party Payments,500,Promoting Services,S1623.54170,54170, 02/04/2014,P2 857506,675.64,REV,Earls Court YMCA,601331
The Royal Borough of Kensington and Chelsea,RBKC,Children's Services,CHS,Family Services - RBKC,SKC,FCS Portobello South SWT (OSF),Third Party Payments,500,LAC and Leaving Care,S1632.54130,54130, 02/04/2014,P2 857507,"1,134.11",REV,Earls Court YMCA,601331
The Royal Borough of Kensington and Chelsea,RBKC,Children's Services,CHS,Family Services - RBKC,SKC,FCS Early Start (Golborne) (OSF),Employee Expenses,100,EY Outreach,S2236.19090,19090, 02/04/2014,P2 857537,810.00,REV,Kensington Mums Ltd,1326432
The Royal Borough of Kensington and Chelsea,RBKC,Children's Services,CHS,Family Services - RBKC,SKC,FCS Early Start (Golborne) (OSF),Employee Expenses,100,EY Outreach,S2236.19090,19090, 04/04/2014,P2 857552,750.00,REV,Safe & Sound,1232283
The Royal Borough of Kensington and Chelsea,RBKC,Children's Services,CHS,Family Services - RBKC,SKC,FCS Childrens Social Work (OSF),Third Party Payments,500,High Needs Service,S1603.54185,54185, 04/04/2014,P2 857555,"5,303.00",REV,Jamma Umoja (Residential Services),604236
The Royal Borough of Kensington and Chelsea,RBKC,Children's Services,CHS,Family Services - RBKC,SKC,FCS Childrens Social Work (OSF),Third Party Payments,500,High Needs Service,S1603.54185,54185, 03/04/2014,P2 857556,"7,667.00",REV,Jamma Umoja (Residential Services),604236
The Royal Borough of Kensington and Chelsea,RBKC,Adult Social Care,ASC,Operations,AS6,HHASC Service Management (OSS),Third Party Payments,500,Support Servs/Management,S0014.54530,54530, 09/04/2014,P2 857558,"4,250.00",REV,CavaCare Ltd,1325990
The Royal Borough of Kensington and Chelsea,RBKC,Corporate Services,COS,Corporate Property,CBV,COS FM Energy (OSC),Third Party Payments,500,Property Services,P0514.54505.MECM0001,54505, 11/04/2014,P2 857562,"1,135.00",REV,TEAM (Energy Auditing Agency Ltd),937873
The Royal Borough of Kensington and Chelsea,RBKC,Transport & Technical Srvcs,TTS,Transportation & Highways,YTH,TTS Road Safety & Travel Plan (OSY),Supplies & Services,400,T&H-Transportation & Rd Safety,Y7125.45370.CN13002,45370, 09/04/2014,P2 857563,"4,000.00",REV,Technicolour Tyre Company Ltd,1067682
The Royal Borough of Kensington and Chelsea,RBKC,Transport & Technical Srvcs,TTS,Transportation & Highways,YTH,TTS Road Safety & Travel Plan (OSY),Supplies & Services,400,T&H-Transportation & Rd Safety,Y7125.45370.CN13002,45370, 09/04/2014,P2 857564,"5,780.00",REV,Technicolour Tyre Company Ltd,1067682
The Royal Borough of Kensington and Chelsea,RBKC,Children's Services,CHS,Non Revenue,001,COS AssetMngt & Capital Prjcts (OSC),Capital Code,003,Capital Codes,F6049.00110,00110, 10/04/2014,P2 857576,"16,445.00",CAP,NPS Property Consultants Ltd,889180
The Royal Borough of Kensington and Chelsea,RBKC,Transport & Technical Srvcs,TTS,Transportation & Highways,YTH,TTS Alan Moore-Lighting (OSY),Supplies & Services,400,T&H-Administration,Y7005.43060,43060, 11/04/2014,P2 857577,700.00,REV,Buchanan Computing Ltd,602509
The Royal Borough of Kensington and Chelsea,RBKC,Transport & Technical Srvcs,TTS,Transportation & Highways,YTH,TTS Road Safety & Travel Plan (OSY),Supplies & Services,400,T&H-Transportation & Rd Safety,Y7111.45370.ST13006,45370, 04/04/2014,P2 857578,"1,706.00",REV,Exterion Media (UK) Ltd,622983
The Royal Borough of Kensington and Chelsea,RBKC,Transport & Technical Srvcs,TTS,Transportation & Highways,YTH,TTS Road Safety & Travel Plan (OSY),Supplies & Services,400,T&H-Transportation & Rd Safety,Y7111.45370.ST13006,45370, 04/04/2014,P2 857579,"5,916.00",REV,Exterion Media (UK) Ltd,622983
The Royal Borough of Kensington and Chelsea,RBKC,Housing Services,HOS,Non Revenue,001,TTS Operational Support (OSS),Capital Code,003,HRA,G0527.00220,00220, 02/04/2014,P2 857585,"1,429.50",CAP,J & J Topgrade Ltd,600970
The Royal Borough of Kensington and Chelsea,RBKC,Housing Services,HOS,Non Revenue,001,TTS Operational Support (OSS),Capital Code,003,HRA,G0527.00220,00220, 02/04/2014,P2 857587,"1,026.00",CAP,Grillesafe Security Ltd,600968
The Royal Borough of Kensington and Chelsea,RBKC,Corporate Services,COS,Human Resources,CHG,COS Learning and Development (OSC),Supplies & Services,400,Human Resources,P4421.42515,42515, 15/04/2014,P2 857591,"1,000.00",REV,Payment to an individual or sole trader,1161442
The Royal Borough of Kensington and Chelsea,RBKC,Adult Social Care,ASC,Operations,AS6,ASC Learning Dis Local SWT (OSS),Third Party Payments,500,Learning Disability,S6123.54135,54135, 02/04/2014,P2 858494,"1,176.00",REV,Voyage Ltd,600504
The Royal Borough of Kensington and Chelsea,RBKC,Corporate Services,COS,Legal Services,CLA,COS Legal Children Social Care (OSC),Third Party Payments,500,Legal Services,P4341.54510.LBHSCF,54510, 03/04/2014,P2 858511,"3,200.00",REV,Payment to an individual or sole trader,603412
The Royal Borough of Kensington and Chelsea,RBKC,Adult Social Care,ASC,Operations,AS6,ASC Learning Dis Local SWT (OSS),Third Party Payments,500,Learning Disability,S6123.54065,54065, 01/04/2014,P2 858527,"3,374.70",REV,Well House,922806
The Royal Borough of Kensington and Chelsea,RBKC,Children's Services,CHS,Tri-Borough Education Service,SED,Sensory & Language Impairment (OSF),Supplies & Services,400,"A,I&A Other",E5604.40080,40080, 04/04/2014,P2 858528,"1,674.35",REV,GL Education Group Ltd,603594
The Royal Borough of Kensington and Chelsea,RBKC,"Envrmt,Leisure & Residents Svc",ELR,"Cleaner,Greener & Cultural Ser",YCG,ELR Museums Service (OSY),Supplies & Services,400,WM&L-Museums and Galleries,L0303.42561,42561, 04/04/2014,P2 858530,595.00,REV,Payment to an individual or sole trader,873975
The Royal Borough of Kensington and Chelsea,RBKC,"Envrmt,Leisure & Residents Svc",ELR,"Cleaner,Greener & Cultural Ser",YCG,ELR Museums Service (OSY),Supplies & Services,400,WM&L-Museums and Galleries,L0306.40082,40082, 04/04/2014,P2 858533,"1,879.00",REV,Payment to an individual or sole trader,1296701
The Royal Borough of Kensington and Chelsea,RBKC,"Envrmt,Leisure & Residents Svc",ELR,"Cleaner,Greener & Cultural Ser",YCG,ELR Museums Service (OSY),Third Party Payments,500,WM&L-Museums and Galleries,L0390.54530,54530, 08/04/2014,P2 858534,"3,337.00",REV,Turquoise Mountain Trust,1319331
The Royal Borough of Kensington and Chelsea,RBKC,Children's Services,CHS,Tri-Borough Education Service,SED,FCS Pupil Support Svc (OSF),Employee Expenses,100,Facilitating School Imp,E3518.12100,12100, 04/04/2014,P2 858542,"1,054.90",REV,Protocol Education Ltd,626910
The Royal Borough of Kensington and Chelsea,RBKC,Children's Services,CHS,Tri-Borough Education Service,SED,FCS Pupil Support Svc (OSF),Employee Expenses,100,Facilitating School Imp,E3518.12100,12100, 04/04/2014,P2 858543,600.00,REV,Protocol Education Ltd,626910
The Royal Borough of Kensington and Chelsea,RBKC,"Envrmt,Leisure & Residents Svc",ELR,"Cleaner,Greener & Cultural Ser",YCG,ELR Museums Service (OSY),Third Party Payments,500,WM&L-Museums and Galleries,L0390.54530,54530, 04/04/2014,P2 858546,"1,000.00",REV,Poetry Translation Centre Ltd,1334041
The Royal Borough of Kensington and Chelsea,RBKC,Public Health,PHL,Public Health,JPH,Seasonal Mortality (),Third Party Payments,500,Non Budget Book Business Unit,J4226.55000,55000, 08/04/2014,P2 858551,"3,500.00",REV,RBE Associates Ltd,1312491
The Royal Borough of Kensington and Chelsea,RBKC,Adult Social Care,ASC,Operations,AS6,ASC Learning Dis Local SWT (OSS),Third Party Payments,500,Learning Disability,S6123.54135,54135, 02/04/2014,P2 858567,817.96,REV,Equal People (Kensington & Chelsea),600509
The Royal Borough of Kensington and Chelsea,RBKC,Planning & Borough Development,PBD,Support Services & Executive,PS,COS ISD Equipment Orders (OSC),Supplies & Services,400,Ser Mgt & Spt Ser Post/Micro,T0120.40020,40020, 10/04/2014,P2 858570,628.87,REV,Computacenter (UK) Ltd,608603
The Royal Borough of Kensington and Chelsea,RBKC,Adult Social Care,ASC,Operations,AS6,ASC Learning Dis Local SWT (OSS),Third Party Payments,500,Learning Disability,S6125.54135,54135, 04/04/2014,P2 858579,"16,243.36",REV,Look Ahead Housing & Care Ltd,600269
The Royal Borough of Kensington and Chelsea,RBKC,Adult Social Care,ASC,Operations,AS6,ASC Learning Dis Local SWT (OSS),Third Party Payments,500,Learning Disability,S6123.54135,54135, 02/04/2014,P2 858580,629.20,REV,Equal People (Kensington & Chelsea),600509
The Royal Borough of Kensington and Chelsea,RBKC,Adult Social Care,ASC,Operations,AS6,ASC Learning Dis Local SWT (OSS),Transport Expenses,300,Learning Disability,S6123.32140,32140, 02/04/2014,P2 858595,732.00,REV,Westway Community Transport,600313
The Royal Borough of Kensington and Chelsea,RBKC,Adult Social Care,ASC,Operations,AS6,ASC Learning Dis Local SWT (OSS),Third Party Payments,500,Learning Disability,S6123.54070,54070, 16/04/2014,P2 858598,"1,120.00",REV,The Grace Eyre Foundation,600047
The Royal Borough of Kensington and Chelsea,RBKC,Transport & Technical Srvcs,TTS,Non Revenue,001,TTS Streetscape (OSY),Capital Code,003,ES Capital Codes,X5070.00090.STSCIM13,00090, 03/04/2014,P2 858633,"15,630.00",CAP,Balfour Beatty Workplace Ltd,1243825
The Royal Borough of Kensington and Chelsea,RBKC,Transport & Technical Srvcs,TTS,Non Revenue,001,TTS Streetscape (OSY),Capital Code,003,ES Capital Codes,X5070.00090.STSCIM13,00090, 03/04/2014,P2 858634,"10,370.00",CAP,Balfour Beatty Workplace Ltd,1243825
The Royal Borough of Kensington and Chelsea,RBKC,Transport & Technical Srvcs,TTS,Transportation & Highways,YTH,TTS Transportation Contracts (OSY),Supplies & Services,400,T&H-Transportation & Rd Safety,Y7111.45370.ST13006,45370, 10/04/2014,P2 858676,"4,700.00",REV,Stopwatch Theatre Company,601846
The Royal Borough of Kensington and Chelsea,RBKC,Adult Social Care,ASC,Operations,AS6,ASC Finance (OSS),Supplies & Services,400,Older People,S0207.42240,42240, 04/04/2014,P2 858688,509.00,REV,Sherry Funeral Services Ltd,1334219
The Royal Borough of Kensington and Chelsea,RBKC,Children's Services,CHS,Family Services - RBKC,SKC,FCS Youth Offending Team (OSF),Third Party Payments,500,Youth Offending Service,S1061.52560,52560, 11/04/2014,P2 858692,"7,000.00",REV,Intermission at St Saviours,1239046
The Royal Borough of Kensington and Chelsea,RBKC,"Envrmt,Leisure & Residents Svc",ELR,Safer Neighbourhoods,YSN,ELR Parks and Cemeteries (OSY),Supplies & Services,400,WM&L-Parks and Open Spaces,Y2750.40140,40140, 07/04/2014,P2 858693,"3,160.00",REV,Grass Roof Company,1329308
The Royal Borough of Kensington and Chelsea,RBKC,"Envrmt,Leisure & Residents Svc",ELR,Safer Neighbourhoods,YSN,ELR Parks and Cemeteries (OSY),Premises Expenses,200,WM&L-Parks and Open Spaces,Y2710.20900,20900, 10/04/2014,P2 858694,"7,180.00",REV,AGA Group Bioengineering Systems Ltd,1330921
The Royal Borough of Kensington and Chelsea,RBKC,"Envrmt,Leisure & Residents Svc",ELR,Safer Neighbourhoods,YSN,ELR Parks and Cemeteries (OSY),Premises Expenses,200,WM&L-Parks and Open Spaces,Y2710.20810,20810, 11/04/2014,P2 858703,540.00,REV,Palmstead Nurseries Ltd,1302790
The Royal Borough of Kensington and Chelsea,RBKC,Transport & Technical Srvcs,TTS,Transportation & Highways,YTH,TTS Parking Cust Serv/Refund (OSY),Supplies & Services,400,T&H-Parking On-Street,Y8345.43300,43300, 03/04/2014,P2 858704,"1,242.21",REV,Royal Mail,600096
The Royal Borough of Kensington and Chelsea,RBKC,Children's Services,CHS,Family Services - RBKC,SKC,FCS Early Start (Golborne) (OSF),Employee Expenses,100,EY Outreach,S2236.19090,19090, 09/04/2014,P2 858705,"1,385.00",REV,Community Products (UK) Ltd,603393
The Royal Borough of Kensington and Chelsea,RBKC,Transport & Technical Srvcs,TTS,Transportation & Highways,YTH,TTS TAPs and LSSs (OSY),Supplies & Services,400,T&H-Transportation & Rd Safety,Y7116.45370.CN13005,45370, 11/04/2014,P2 858713,627.26,REV,Project Centre,601607
The Royal Borough of Kensington and Chelsea,RBKC,Children's Services,CHS,Senior Management Team,SMT,FCS Director Family Services (OSF),Third Party Payments,500,Management & Support Services,S1000.54530,54530, 15/04/2014,P2 858727,"10,779.37",REV,Payment to an individual or sole trader,1156326
The Royal Borough of Kensington and Chelsea,RBKC,Transport & Technical Srvcs,TTS,Transportation & Highways,YTH,TTS Ken King-Lighting (OSY),Third Party Payments,500,T&H-Public Lighting,Y7254.55830,55830, 16/04/2014,P2 858728,"1,690.00",REV,Bronze Restorations,600382
The Royal Borough of Kensington and Chelsea,RBKC,Children's Services,CHS,Family Services - RBKC,SKC,FCS Early Help (OSF),Third Party Payments,500,Early Help Services,S1950.52560,52560, 10/04/2014,P2 858730,780.00,REV,Grenfell Creche Under 3'S,600279
The Royal Borough of Kensington and Chelsea,RBKC,Transport & Technical Srvcs,TTS,Transportation & Highways,YTH,TTS Graham Shoesmith-Lighting (OSY),Third Party Payments,500,T&H-Public Lighting,Y7252.55797,55797, 16/04/2014,P2 858737,"51,432.05",REV,Eurovia Infrastructure Ltd,949196
The Royal Borough of Kensington and Chelsea,RBKC,Transport & Technical Srvcs,TTS,Transportation & Highways,YTH,TTS Graham Shoesmith-Lighting (OSY),Third Party Payments,500,T&H-Public Lighting,Y7252.55797,55797, 16/04/2014,P2 858738,"33,687.70",REV,Eurovia Infrastructure Ltd,949196
The Royal Borough of Kensington and Chelsea,RBKC,Transport & Technical Srvcs,TTS,Transportation & Highways,YTH,TTS Graham Shoesmith-Lighting (OSY),Premises Expenses,200,T&H-Public Lighting,Y7254.26000,26000, 16/04/2014,P2 858739,"27,605.55",REV,Eurovia Infrastructure Ltd,949196
The Royal Borough of Kensington and Chelsea,RBKC,Transport & Technical Srvcs,TTS,Non Revenue,001,TTS Graham Shoesmith-Lighting (OSY),Capital Code,003,ES Capital Codes,X5070.00090.NHGCHRSM,00090, 16/04/2014,P2 858740,"2,192.64",CAP,Eurovia Infrastructure Ltd,949196
The Royal Borough of Kensington and Chelsea,RBKC,Transport & Technical Srvcs,TTS,Transportation & Highways,YTH,TTS Graham Shoesmith-Lighting (OSY),Third Party Payments,500,T&H-Public Lighting,Y7254.55797,55797, 16/04/2014,P2 858741,"22,020.71",REV,Eurovia Infrastructure Ltd,949196
The Royal Borough of Kensington and Chelsea,RBKC,Transport & Technical Srvcs,TTS,Non Revenue,001,TTS Streetscape (OSY),Capital Code,003,ES Capital Codes,X5070.00090.NHGCHRSM,00090, 16/04/2014,P2 858742,"2,919.00",CAP,Eurovia Infrastructure Ltd,949196
The Royal Borough of Kensington and Chelsea,RBKC,Transport & Technical Srvcs,TTS,Transportation & Highways,YTH,TTS Graham Shoesmith-Lighting (OSY),Third Party Payments,500,T&H-Public Lighting,Y7252.55797,55797, 16/04/2014,P2 858743,"12,118.11",REV,Eurovia Infrastructure Ltd,949196
The Royal Borough of Kensington and Chelsea,RBKC,Transport & Technical Srvcs,TTS,Transportation & Highways,YTH,TTS Graham Shoesmith-Lighting (OSY),Third Party Payments,500,T&H-Public Lighting,Y7252.55797,55797, 16/04/2014,P2 858746,"7,311.74",REV,Eurovia Infrastructure Ltd,949196
The Royal Borough of Kensington and Chelsea,RBKC,Transport & Technical Srvcs,TTS,Transportation & Highways,YTH,TTS Graham Shoesmith-Lighting (OSY),Third Party Payments,500,T&H-Public Lighting,Y7252.55797,55797, 16/04/2014,P2 858747,"3,357.91",REV,Eurovia Infrastructure Ltd,949196
The Royal Borough of Kensington and Chelsea,RBKC,Transport & Technical Srvcs,TTS,Transportation & Highways,YTH,TTS Graham Shoesmith-Lighting (OSY),Third Party Payments,500,T&H-Public Lighting,Y7254.55620,55620, 16/04/2014,P2 858748,"19,212.70",REV,Eurovia Infrastructure Ltd,949196
The Royal Borough of Kensington and Chelsea,RBKC,Transport & Technical Srvcs,TTS,Transportation & Highways,YTH,TTS Graham Shoesmith-Lighting (OSY),Third Party Payments,500,T&H-Public Lighting,Y7252.55797,55797, 16/04/2014,P2 858749,"13,663.50",REV,Eurovia Infrastructure Ltd,949196
The Royal Borough of Kensington and Chelsea,RBKC,Transport & Technical Srvcs,TTS,Transportation & Highways,YTH,TTS Graham Shoesmith-Lighting (OSY),Third Party Payments,500,T&H-Public Lighting,Y7254.55490,55490, 16/04/2014,P2 858750,"1,575.00",REV,Eurovia Infrastructure Ltd,949196
The Royal Borough of Kensington and Chelsea,RBKC,Transport & Technical Srvcs,TTS,Transportation & Highways,YTH,TTS Graham Shoesmith-Lighting (OSY),Third Party Payments,500,T&H-Public Lighting,Y7252.55797,55797, 16/04/2014,P2 858751,"10,723.14",REV,Eurovia Infrastructure Ltd,949196
The Royal Borough of Kensington and Chelsea,RBKC,Transport & Technical Srvcs,TTS,Non Revenue,001,TTS Parking Divisional Expend (OSY),Capital Code,003,ES Capital Codes,X5006.00090.TSS13002,00090, 16/04/2014,P2 858752,"2,940.76",CAP,Eurovia Infrastructure Ltd,949196
The Royal Borough of Kensington and Chelsea,RBKC,Transport & Technical Srvcs,TTS,Transportation & Highways,YTH,TTS Transport Policy (OSY),Third Party Payments,500,T&H-Traffic Section,Y7130.54535,54535, 11/04/2014,P2 858755,"1,715.73",REV,Project Centre,601607
The Royal Borough of Kensington and Chelsea,RBKC,Transport & Technical Srvcs,TTS,Environmental Health,YEH,TTS Operational Support (OSS),Supplies & Services,400,Food and Training,Y4115.40150,40150, 16/04/2014,P2 858756,560.00,REV,Highfield Awarding Body for Compliance,1219929
The Royal Borough of Kensington and Chelsea,RBKC,Children's Services,CHS,Family Services - RBKC,SKC,FCS Clare Gardens Centre (OSF),Supplies & Services,400,Children's Centres,S2127.40080,40080, 04/04/2014,P2 858775,511.42,REV,Early Years Resources,923760
The Royal Borough of Kensington and Chelsea,RBKC,Corporate Services,COS,Non Revenue,001,COS SPACE Programme (OSC),Capital Code,003,Capital Codes,Q3469.00086,00086, 09/04/2014,P2 858777,"1,173.58",CAP,Access Professionals Ltd,1045869
The Royal Borough of Kensington and Chelsea,RBKC,Corporate Services,COS,Corporate Property,CBV,COS Group Finance (OSC),Premises Expenses,200,Property Services,P4044.23000,23000, 01/04/2014,P2 858778,"11,875.00",REV,Amey Community Ltd,1315008
The Royal Borough of Kensington and Chelsea,RBKC,Adult Social Care,ASC,Operations,AS6,ASC E Monitoring Team (OSS),Third Party Payments,500,Older People,S3801.55355,55355, 04/04/2014,P2 858788,"1,006.00",REV,Ashbourne Healthcare Services,642207
The Royal Borough of Kensington and Chelsea,RBKC,Adult Social Care,ASC,Operations,AS6,ASC E Monitoring Team (OSS),Third Party Payments,500,Older People,S3801.55355,55355, 04/04/2014,P2 858789,921.52,REV,Ashbourne Healthcare Services,642207
The Royal Borough of Kensington and Chelsea,RBKC,Adult Social Care,ASC,Operations,AS6,ASC E Monitoring Team (OSS),Third Party Payments,500,Older People,S3801.55355,55355, 04/04/2014,P2 858790,691.14,REV,Ashbourne Healthcare Services,642207
The Royal Borough of Kensington and Chelsea,RBKC,Adult Social Care,ASC,Operations,AS6,ASC E Monitoring Team (OSS),Third Party Payments,500,Older People,S3801.55355,55355, 04/04/2014,P2 858791,921.52,REV,Ashbourne Healthcare Services,642207
The Royal Borough of Kensington and Chelsea,RBKC,Adult Social Care,ASC,Operations,AS6,ASC E Monitoring Team (OSS),Third Party Payments,500,Learning Disability,S6125.54452,54452, 11/04/2014,P2 858793,543.89,REV,Workline Group Ltd,600423
The Royal Borough of Kensington and Chelsea,RBKC,Corporate Services,COS,Corporate Property,CBV,COS Group Finance (OSC),Supplies & Services,400,Property Services,P0512.43301,43301, 09/04/2014,P2 858798,"14,718.85",REV,Amey Community Ltd,1315008
The Royal Borough of Kensington and Chelsea,RBKC,Corporate Services,COS,Strategy & Local Services,CPU,COS Community Safety (OSC),Third Party Payments,500,Community Safety & DIP,P5748.55170,55170, 11/04/2014,P2 858800,"1,924.00",REV,IP Fire & Security Ltd,1334250
The Royal Borough of Kensington and Chelsea,RBKC,Children's Services,CHS,Tri-Borough Education Service,SED,FCS School Improvement Service (OSF),Supplies & Services,400,Facilitating School Imp,E3907.44210,44210, 10/04/2014,P2 858805,"15,000.00",REV,St Charles Catholic Sixth Form College,814343
The Royal Borough of Kensington and Chelsea,RBKC,Children's Services,CHS,Tri-Borough Education Service,SED,FCS School Improvement Service (OSF),Supplies & Services,400,Facilitating School Imp,E3907.44210,44210, 11/04/2014,P2 858806,"7,000.00",REV,Westminster  16-19 Partnership,1289163
The Royal Borough of Kensington and Chelsea,RBKC,Adult Social Care,ASC,Operations,AS6,ASC E Monitoring Team (OSS),Third Party Payments,500,Older People,S3800.54453,54453, 02/04/2014,P2 858808,"1,088.43",REV,Saga Homecare,1280847
The Royal Borough of Kensington and Chelsea,RBKC,Adult Social Care,ASC,Operations,AS6,ASC E Monitoring Team (OSS),Third Party Payments,500,Older People,S3800.54453,54453, 11/04/2014,P2 858809,"1,088.43",REV,Saga Homecare,1280847
The Royal Borough of Kensington and Chelsea,RBKC,Corporate Services,COS,Strategy & Local Services,CPU,COS Community Safety (OSC),Supplies & Services,400,Community Safety & DIP,P5748.42530,42530, 11/04/2014,P2 858813,"4,500.00",REV,Paul Dunn Consultancy Ltd,1334294
The Royal Borough of Kensington and Chelsea,RBKC,Corporate Services,COS,Strategy & Local Services,CPU,COS Consultation & Partnership (OSC),Third Party Payments,500,"Comm Relations, SIT & Public C",P5756.54580,54580, 10/04/2014,P2 858815,"16,125.00",REV,TNS UK Ltd,1048422
The Royal Borough of Kensington and Chelsea,RBKC,Adult Social Care,ASC,Operations,AS6,ASC E Monitoring Team (OSS),Third Party Payments,500,Learning Disability,S6123.54135,54135, 11/04/2014,P2 858820,676.00,REV,Life Opportunities Trust,602250
The Royal Borough of Kensington and Chelsea,RBKC,Adult Social Care,ASC,Operations,AS6,ASC E Monitoring Team (OSS),Third Party Payments,500,Learning Disability,S6123.54135,54135, 11/04/2014,P2 858821,"2,372.50",REV,Life Opportunities Trust,602250
The Royal Borough of Kensington and Chelsea,RBKC,Transport & Technical Srvcs,TTS,Transportation & Highways,YTH,TTS Derek Mahon-Lighting (OSY),Third Party Payments,500,T&H-Public Lighting,Y7254.55920,55920, 16/04/2014,P2 858822,"2,784.31",REV,Eurovia Infrastructure Ltd,949196
The Royal Borough of Kensington and Chelsea,RBKC,Transport & Technical Srvcs,TTS,Transportation & Highways,YTH,TTS Derek Mahon-Lighting (OSY),Third Party Payments,500,T&H-Public Lighting,Y7254.55920,55920, 16/04/2014,P2 858823,"1,428.49",REV,Eurovia Infrastructure Ltd,949196
The Royal Borough of Kensington and Chelsea,RBKC,Transport & Technical Srvcs,TTS,Transportation & Highways,YTH,TTS Derek Mahon-Lighting (OSY),Third Party Payments,500,T&H-Public Lighting,Y7254.55920,55920, 16/04/2014,P2 858824,"1,713.17",REV,Eurovia Infrastructure Ltd,949196
The Royal Borough of Kensington and Chelsea,RBKC,Transport & Technical Srvcs,TTS,Transportation & Highways,YTH,TTS Derek Mahon-Lighting (OSY),Third Party Payments,500,T&H-Public Lighting,Y7252.55920,55920, 16/04/2014,P2 858825,587.40,REV,Eurovia Infrastructure Ltd,949196
The Royal Borough of Kensington and Chelsea,RBKC,Transport & Technical Srvcs,TTS,Transportation & Highways,YTH,TTS Derek Mahon-Lighting (OSY),Third Party Payments,500,T&H-Public Lighting,Y7252.55920,55920, 16/04/2014,P2 858826,"1,233.26",REV,Eurovia Infrastructure Ltd,949196
The Royal Borough of Kensington and Chelsea,RBKC,Transport & Technical Srvcs,TTS,Transportation & Highways,YTH,TTS Derek Mahon-Lighting (OSY),Premises Expenses,200,T&H-Public Lighting,Y7252.26000,26000, 16/04/2014,P2 858828,"10,971.17",REV,Eurovia Infrastructure Ltd,949196
The Royal Borough of Kensington and Chelsea,RBKC,Transport & Technical Srvcs,TTS,Transportation & Highways,YTH,TTS Derek Mahon-Lighting (OSY),Third Party Payments,500,T&H-Public Lighting,Y7252.55920,55920, 16/04/2014,P2 858829,"1,233.26",REV,Eurovia Infrastructure Ltd,949196
The Royal Borough of Kensington and Chelsea,RBKC,Transport & Technical Srvcs,TTS,Transportation & Highways,YTH,TTS Derek Mahon-Lighting (OSY),Third Party Payments,500,T&H-Highway Maintenance,Y7220.55480,55480, 16/04/2014,P2 858830,"10,680.00",REV,Eurovia Infrastructure Ltd,949196
The Royal Borough of Kensington and Chelsea,RBKC,Transport & Technical Srvcs,TTS,Transportation & Highways,YTH,TTS Derek Mahon-Lighting (OSY),Third Party Payments,500,T&H-Public Lighting,Y7252.55920,55920, 16/04/2014,P2 858831,"1,052.99",REV,Eurovia Infrastructure Ltd,949196
The Royal Borough of Kensington and Chelsea,RBKC,"Envrmt,Leisure & Residents Svc",ELR,Customer & Business Improvemnt,YCB,ELR Commercial Waste (OSY),Supplies & Services,400,WM&L-Commercial Waste/Rev.Serv,Y2350.40080,40080, 11/04/2014,P2 858832,563.34,REV,G G Rentals Ltd,1116288
The Royal Borough of Kensington and Chelsea,RBKC,Children's Services,CHS,Family Services - RBKC,SKC,FCS Connected Persons (OSF),Third Party Payments,500,Fostering and Adoption,S1465.52560,52560, 16/04/2014,P2 858843,"1,108.26",REV,Payment to an individual or sole trader,1324664
The Royal Borough of Kensington and Chelsea,RBKC,Adult Social Care,ASC,Operations,AS6,ASC E Monitoring Team (OSS),Third Party Payments,500,Older People,S3801.54453,54453, 10/04/2014,P2 858850,"1,296.10",REV,Crossroads Care CNL,1257503
The Royal Borough of Kensington and Chelsea,RBKC,Corporate Services,COS,Strategy & Local Services,CPU,COS Community Safety (OSC),Third Party Payments,500,Community Safety & DIP,P5748.55170,55170, 10/04/2014,P2 858870,"1,625.75",REV,J & J Topgrade Ltd,600970
The Royal Borough of Kensington and Chelsea,RBKC,Corporate Services,COS,Strategy & Local Services,CPU,COS Community Safety (OSC),Third Party Payments,500,Community Safety & DIP,P5748.55170,55170, 11/04/2014,P2 858871,"5,388.00",REV,Lazerbeam Security Ltd,608181
The Royal Borough of Kensington and Chelsea,RBKC,Corporate Services,COS,Strategy & Local Services,CPU,COS Community Safety (OSC),Third Party Payments,500,Community Safety & DIP,P5748.53000,53000, 16/04/2014,P2 858872,"16,070.50",REV,Epic Elm CIC,1326397
The Royal Borough of Kensington and Chelsea,RBKC,Children's Services,CHS,Family Services - RBKC,SKC,FCS World's End SWT (OSF),Third Party Payments,500,LAC and Leaving Care,S1816.54120,54120, 02/04/2014,P2 859477,675.64,REV,Earls Court YMCA,601331
The Royal Borough of Kensington and Chelsea,RBKC,Corporate Services,COS,Strategy & Local Services,CPU,COS ISD Network and Telecomms (OSC),Supplies & Services,400,Community Safety & DIP,P2601.43280,43280, 11/04/2014,P2 859487,"1,056.00",REV,Data Select Ltd,1251858
The Royal Borough of Kensington and Chelsea,RBKC,Children's Services,CHS,Tri-Borough Education Service,SED,FCS SEN (OSF),Third Party Payments,500,Placements & Recoupment,E5001.58010.SHAMLIAN,58010, 04/04/2014,P2 859491,"3,510.00",REV,Sinclair House School Ltd,1307407
The Royal Borough of Kensington and Chelsea,RBKC,Corporate Services,COS,Corporate Property,CBV,COS AssetMngt & Capital Prjcts (OSC),Third Party Payments,500,Property Services,P4017.54530,54530, 11/04/2014,P2 859493,"2,500.00",REV,Walbrook Management  Llp,1334249
The Royal Borough of Kensington and Chelsea,RBKC,Children's Services,CHS,Family Services - RBKC,SKC,FCS World's End SWT (OSF),Third Party Payments,500,High Needs Service,S1603.54185,54185, 11/04/2014,P2 859494,"5,754.00",REV,Jamma Umoja (Residential Services),604236
The Royal Borough of Kensington and Chelsea,RBKC,Children's Services,CHS,Family Services - RBKC,SKC,FCS FRP & FAST (OSF),Third Party Payments,500,High Needs Service,S1450.52560,52560, 02/04/2014,P2 859495,"5,144.50",REV,Payment to an individual or sole trader,1230849
The Royal Borough of Kensington and Chelsea,RBKC,Transport & Technical Srvcs,TTS,Transportation & Highways,YTH,TTS Alan Moore-Lighting (OSY),Third Party Payments,500,T&H-Parking On-Street,Y8300.55990,55990, 16/04/2014,P2 859509,"3,152.78",REV,Eurovia Infrastructure Ltd,949196
The Royal Borough of Kensington and Chelsea,RBKC,Corporate Services,COS,Strategy & Local Services,CPU,COS Media and Communications (OSC),Supplies & Services,400,Media & Communications,P5101.41601,41601, 04/04/2014,P2 859511,"4,219.50",REV,London Letterbox Marketing,1070845
The Royal Borough of Kensington and Chelsea,RBKC,Children's Services,CHS,Tri-Borough Education Service,SED,FCS SEN (OSF),Third Party Payments,500,Placements & Recoupment,E5001.58010.KHAN,58010, 10/04/2014,P2 859514,"2,300.80",REV,Linden Lodge School,946519
The Royal Borough of Kensington and Chelsea,RBKC,Children's Services,CHS,Children's Commissioning,SCC,CHS Workforce Development Team (OSF),Supplies & Services,400,StrategyCommissioning&Perform,E9752.42113,42113, 11/04/2014,P2 859520,"3,125.00",REV,Reconstruct Ltd,630871
The Royal Borough of Kensington and Chelsea,RBKC,Corporate Services,COS,Strategy & Local Services,CPU,COS Community Safety (OSC),Third Party Payments,500,Community Safety & DIP,P5748.53000.VAWG,53000, 17/04/2014,P2 859523,536.25,REV,Hestia Housing & Support,604749
The Royal Borough of Kensington and Chelsea,RBKC,Corporate Services,COS,Non Revenue,001,COS Group Finance (OSC),Holding Code,005,Non Budget Book Business Unit,C1702.00306,00306, 09/04/2014,P2 859524,"124,249.53",CAH,Comensura Ltd,1003827
The Royal Borough of Kensington and Chelsea,RBKC,Corporate Services,COS,Information Systems,CIS,COS ISD Network and Telecomms (OSC),Capital Code,003,Capital Codes,Q3508.00090,00090, 03/04/2014,P2 859551,"8,000.00",CAP,Khipu Networks,1080971
The Royal Borough of Kensington and Chelsea,RBKC,"Library,Archive & Heritage Svc",LAH,LibrarySupt Services,LSS,LAH General Libraries (OSF),Third Party Payments,500,Libraries Services,L0111.55961.VIP,55961, 03/04/2014,P2 859558,"2,344.49",REV,Dolphin Computer Access Ltd,603486
The Royal Borough of Kensington and Chelsea,RBKC,Housing Services,HOS,Hsg Needs and Homelessness,HNH,HOS HDG (OSS),Supplies & Services,400,Homelessness & Housing Advice,H6925.44215,44215, 03/04/2014,P2 859561,"6,000.00",REV,St Cuthbert's Centre,600314
The Royal Borough of Kensington and Chelsea,RBKC,Corporate Services,COS,Strategy & Local Services,CPU,COS Media and Communications (OSC),Supplies & Services,400,Media & Communications,P5101.41602,41602, 09/04/2014,P2 859568,"9,711.75",REV,N W N Media Ltd,1301664
The Royal Borough of Kensington and Chelsea,RBKC,Adult Social Care,ASC,Provided Services/ MH Partners,AS5,COS ISD Network and Telecomms (OSC),Supplies & Services,400,Older People,S3130.43000,43000, 11/04/2014,P2 859570,"2,864.06",REV,Khipu Networks,1080971
The Royal Borough of Kensington and Chelsea,RBKC,Corporate Services,COS,Corporate Property,CBV,COS Conference & Events (Halls (OSC),Supplies & Services,400,Property Services,P2403.42550,42550, 09/04/2014,P2 859572,"1,373.60",REV,Go For It Events Services Ltd,1235718
The Royal Borough of Kensington and Chelsea,RBKC,Corporate Services,COS,Information Systems,CIS,COS ISD Network and Telecomms (OSC),Supplies & Services,400,Information Systems,P4826.43180,43180, 11/04/2014,P2 859575,"13,250.00",REV,SecureData Europe Ltd,1006998
The Royal Borough of Kensington and Chelsea,RBKC,Adult Social Care,ASC,Operations,AS6,ASC Learning Dis Local SWT (OSS),Transport Expenses,300,Learning Disability,S6123.32140,32140, 09/04/2014,P2 859581,732.00,REV,Westway Community Transport,600313
The Royal Borough of Kensington and Chelsea,RBKC,Transport & Technical Srvcs,TTS,Transportation & Highways,YTH,TTS Transportation Contracts (OSY),Supplies & Services,400,T&H-Transportation & Rd Safety,Y7132.45370,45370, 17/04/2014,P2 859584,"4,800.00",REV,Traffic Survey Partners Ltd,1271560
The Royal Borough of Kensington and Chelsea,RBKC,Adult Social Care,ASC,Operations,AS6,ASC Learning Dis Local SWT (OSS),Third Party Payments,500,Learning Disability,S6125.53000,53000, 11/04/2014,P2 859592,"14,105.00",REV,Kent and Medway NHS SCPT,1311333
The Royal Borough of Kensington and Chelsea,RBKC,Children's Services,CHS,Tri-Borough Education Service,SED,Sensory & Language Impairment (OSF),Supplies & Services,400,"A,I&A Other",E5604.40080,40080, 09/04/2014,P2 859593,619.65,REV,Imaginative Minds Ltd,643330
The Royal Borough of Kensington and Chelsea,RBKC,Adult Social Care,ASC,Operations,AS6,ASC Learning Dis Local SWT (OSS),Employee Expenses,100,Learning Disability,S6292.12000,12000, 11/04/2014,P2 859594,"1,895.25",REV,Pulse Healthcare Ltd,828602
The Royal Borough of Kensington and Chelsea,RBKC,Adult Social Care,ASC,Operations,AS6,ASC Learning Dis Local SWT (OSS),Third Party Payments,500,Learning Disability,S6123.54135,54135, 17/04/2014,P2 859598,953.80,REV,Yarrow Housing Ltd,602070
The Royal Borough of Kensington and Chelsea,RBKC,Adult Social Care,ASC,Operations,AS6,ASC Learning Dis Local SWT (OSS),Third Party Payments,500,Learning Disability,S6123.54135,54135, 17/04/2014,P2 859600,564.75,REV,Yarrow Housing Ltd,602070
The Royal Borough of Kensington and Chelsea,RBKC,Adult Social Care,ASC,Operations,AS6,ASC Learning Dis Local SWT (OSS),Third Party Payments,500,Learning Disability,S6123.54135,54135, 17/04/2014,P2 859602,564.75,REV,Yarrow Housing Ltd,602070
The Royal Borough of Kensington and Chelsea,RBKC,Adult Social Care,ASC,Operations,AS6,ASC Learning Dis Local SWT (OSS),Third Party Payments,500,Learning Disability,S6123.54135,54135, 17/04/2014,P2 859603,"1,041.65",REV,Yarrow Housing Ltd,602070
The Royal Borough of Kensington and Chelsea,RBKC,Adult Social Care,ASC,Operations,AS6,ASC Learning Dis Local SWT (OSS),Third Party Payments,500,Learning Disability,S6123.54135,54135, 17/04/2014,P2 859604,"1,280.10",REV,Yarrow Housing Ltd,602070
The Royal Borough of Kensington and Chelsea,RBKC,Corporate Services,COS,Revenues,CFR,COS Benefits (OSC),Employee Expenses,100,Housing & Council Tax Benefits,P5915.12000,12000, 10/04/2014,P2 859606,585.00,REV,Serco Ltd,1200359
The Royal Borough of Kensington and Chelsea,RBKC,Corporate Services,COS,Revenues,CFR,COS Benefits (OSC),Employee Expenses,100,Housing & Council Tax Benefits,P5915.12000,12000, 10/04/2014,P2 859607,"3,990.00",REV,Serco Ltd,1200359
The Royal Borough of Kensington and Chelsea,RBKC,Adult Social Care,ASC,Provided Services/ MH Partners,AS5,HHASC Service Management (OSS),Third Party Payments,500,Older People,S3012.53000,53000, 11/04/2014,P2 859614,"39,667.67",REV,Central London Community Healthcare,601663
The Royal Borough of Kensington and Chelsea,RBKC,"Envrmt,Leisure & Residents Svc",ELR,"Cleaner,Greener & Cultural Ser",YCG,ELR Recycling & Waste Disposal (OSY),Supplies & Services,400,WM&L-Recycling,Y2160.40090,40090, 11/04/2014,P2 859616,"4,990.00",REV,Broxap Ltd,604527
The Royal Borough of Kensington and Chelsea,RBKC,Corporate Services,COS,Corporate Property,CBV,COS Conference & Events (Halls (OSC),Supplies & Services,400,Property Services,P2403.42550,42550, 11/04/2014,P2 859617,982.80,REV,MJ Events Support Ltd,1146458
The Royal Borough of Kensington and Chelsea,RBKC,"Library,Archive & Heritage Svc",LAH,Non Revenue,001,COS AssetMngt & Capital Prjcts (OSC),Capital Code,003,Capital Codes,K5043.00090,00090, 09/04/2014,P2 860098,"38,350.80",CAP,Whittan Industrial Ltd,1332874
The Royal Borough of Kensington and Chelsea,RBKC,Children's Services,CHS,Family Services - RBKC,SKC,FCS Recruitment & Assessment (OSF),Supplies & Services,400,Fostering and Adoption,S1461.45445,45445, 04/04/2014,P2 860100,"1,420.00",REV,Access Point Ltd,1174073
The Royal Borough of Kensington and Chelsea,RBKC,Corporate Services,COS,Revenues,CFR,COS Council Tax & Revenues IT (OSC),Supplies & Services,400,Local Taxation Administration,P5810.43301,43301, 10/04/2014,P2 860104,"1,119.12",REV,Financial Data Management Ltd,601031
The Royal Borough of Kensington and Chelsea,RBKC,Adult Social Care,ASC,Operations,AS6,ASC E Monitoring Team (OSS),Third Party Payments,500,Learning Disability,S6123.54135,54135, 11/04/2014,P2 860110,"3,848.00",REV,Life Opportunities Trust,602250
The Royal Borough of Kensington and Chelsea,RBKC,Children's Services,CHS,Tri-Borough Education Service,SED,FCS School Meals Contracts (OSF),Third Party Payments,500,Home to School Transport,E5608.54505.WCT,54505, 09/04/2014,P2 860117,"1,157.75",REV,Westway Community Transport,600313
The Royal Borough of Kensington and Chelsea,RBKC,Children's Services,CHS,Tri-Borough Education Service,SED,FCS School Meals Contracts (OSF),Third Party Payments,500,Home to School Transport,E5608.54505.WCT,54505, 02/04/2014,P2 860118,"1,157.75",REV,Westway Community Transport,600313
The Royal Borough of Kensington and Chelsea,RBKC,"Envrmt,Leisure & Residents Svc",ELR,Safer Neighbourhoods,YSN,ELR Parks and Cemeteries (OSY),Premises Expenses,200,WM&L-Parks and Open Spaces,Y2710.20890,20890, 11/04/2014,P2 860119,"1,689.79",REV,Jonathan  Briggs Associates,1329305
The Royal Borough of Kensington and Chelsea,RBKC,Adult Social Care,ASC,Operations,AS6,ASC Learning Dis Local SWT (OSS),Third Party Payments,500,Learning Disability,S6123.54135,54135, 17/04/2014,P2 860120,646.33,REV,Yarrow Housing Ltd,602070
The Royal Borough of Kensington and Chelsea,RBKC,Adult Social Care,ASC,Operations,AS6,ASC E Monitoring Team (OSS),Third Party Payments,500,Physical Disability,S6520.54452,54452, 16/04/2014,P2 860125,862.50,REV,Hope Care Agency Ltd,1285327
The Royal Borough of Kensington and Chelsea,RBKC,Adult Social Care,ASC,Operations,AS6,ASC Learning Dis Local SWT (OSS),Third Party Payments,500,Learning Disability,S6123.54135,54135, 17/04/2014,P2 860128,"2,560.20",REV,Yarrow Housing Ltd,602070
The Royal Borough of Kensington and Chelsea,RBKC,Adult Social Care,ASC,Operations,AS6,ASC Learning Dis Local SWT (OSS),Third Party Payments,500,Learning Disability,S6123.54135,54135, 17/04/2014,P2 860129,828.30,REV,Yarrow Housing Ltd,602070
The Royal Borough of Kensington and Chelsea,RBKC,Adult Social Care,ASC,Operations,AS6,ASC Learning Dis Local SWT (OSS),Third Party Payments,500,Learning Disability,S6123.54135,54135, 17/04/2014,P2 860131,"4,229.35",REV,Yarrow Housing Ltd,602070
The Royal Borough of Kensington and Chelsea,RBKC,"Library,Archive & Heritage Svc",LAH,LibrarySupt Services,LSS,COS FM Print & Mailroom Servic (OSC),Supplies & Services,400,Libraries Services,L0202.40546,40546, 11/04/2014,P2 860137,886.00,REV,Impress Print Services Ltd,1244485
The Royal Borough of Kensington and Chelsea,RBKC,"Envrmt,Leisure & Residents Svc",ELR,Customer & Business Improvemnt,YCB,ELR Commercial Waste (OSY),Supplies & Services,400,WM&L-Commercial Waste/Rev.Serv,Y2350.40100,40100, 11/04/2014,P2 860139,"3,801.33",REV,BPI Recycled Products,601529
The Royal Borough of Kensington and Chelsea,RBKC,"Envrmt,Leisure & Residents Svc",ELR,Customer & Business Improvemnt,YCB,ELR Commercial Waste (OSY),Supplies & Services,400,WM&L-Commercial Waste/Rev.Serv,Y2350.40100,40100, 11/04/2014,P2 860140,"1,935.77",REV,BPI Recycled Products,601529
The Royal Borough of Kensington and Chelsea,RBKC,Children's Services,CHS,Tri-Borough Education Service,SED,FCS Continual Profession Devel (OSF),Supplies & Services,400,Facilitating School Imp,E3500.46975,46975, 04/04/2014,P2 860141,"44,250.00",REV,Fox Primary School,600721
The Royal Borough of Kensington and Chelsea,RBKC,Children's Services,CHS,Tri-Borough Education Service,SED,FCS Continual Profession Devel (OSF),Supplies & Services,400,Facilitating School Imp,E3500.46975,46975, 16/04/2014,P2 860142,"1,250.00",REV,Payment to an individual or sole trader,1174014
The Royal Borough of Kensington and Chelsea,RBKC,Transport & Technical Srvcs,TTS,Transportation & Highways,YTH,TTS Transport Policy (OSY),Supplies & Services,400,T&H-Transportation & Rd Safety,Y7125.45370.CN13017,45370, 17/04/2014,P2 860145,"3,990.00",REV,Cyclehoop Ltd,1222643
The Royal Borough of Kensington and Chelsea,RBKC,Transport & Technical Srvcs,TTS,Transportation & Highways,YTH,TTS Transport Policy (OSY),Supplies & Services,400,T&H-Transportation & Rd Safety,Y7125.45370.CN13017,45370, 17/04/2014,P2 860146,780.00,REV,Cyclehoop Ltd,1222643
The Royal Borough of Kensington and Chelsea,RBKC,Corporate Services,COS,Human Resources,CHG,COS Learning and Development (OSC),Supplies & Services,400,Human Resources,P4421.42515,42515, 17/04/2014,P2 860147,"1,000.00",REV,Close Asset Management Ltd,1279137
The Royal Borough of Kensington and Chelsea,RBKC,Public Health,PHL,Public Health,JPH,Seasonal Mortality (),Third Party Payments,500,Non Budget Book Business Unit,J4226.55000,55000, 17/04/2014,P2 860148,"5,100.00",REV,Envoy Partnership Ltd,1278213
The Royal Borough of Kensington and Chelsea,RBKC,"Envrmt,Leisure & Residents Svc",ELR,Safer Neighbourhoods,YSN,ELR Parks and Cemeteries (OSY),Supplies & Services,400,WM&L-Parks and Open Spaces,Y2750.45101,45101, 16/04/2014,P2 860149,"1,000.00",REV,W G Haines,1278010
The Royal Borough of Kensington and Chelsea,RBKC,Children's Services,CHS,Senior Management Team,SMT,COS Recruitment (OSC),Employee Expenses,100,Management & Support Services,S1082.18410,18410, 15/04/2014,P2 860157,940.00,REV,Penna PLC,1105134
The Royal Borough of Kensington and Chelsea,RBKC,Transport & Technical Srvcs,TTS,Transportation & Highways,YTH,TTS Parking Divisional Expend (OSY),Third Party Payments,500,T&H-Parking On-Street,Y8300.55972,55972, 17/04/2014,P2 860158,735.19,REV,Eurovia Infrastructure Ltd,949196
The Royal Borough of Kensington and Chelsea,RBKC,"Envrmt,Leisure & Residents Svc",ELR,"Cleaner,Greener & Cultural Ser",YCG,ELR OHP General (OSY),Supplies & Services,400,WM&L-Holland Park Theatre,L0310.43301,43301, 04/04/2014,P2 860212,"1,500.00",REV,Neopost Ltd,846432
The Royal Borough of Kensington and Chelsea,RBKC,Corporate Services,COS,Legal Services,CLA,COS Legal Children Social Care (OSC),Third Party Payments,500,Legal Services,P4341.54510.LBHSCF,54510, 03/04/2014,P2 860216,675.00,REV,Payment to an individual or sole trader,1333968
The Royal Borough of Kensington and Chelsea,RBKC,Corporate Services,COS,Human Resources,CHG,COS Learning and Development (OSC),Supplies & Services,400,Human Resources,P4421.42510,42510, 04/04/2014,P2 860234,"1,271.00",REV,Lodge Catering,603515
The Royal Borough of Kensington and Chelsea,RBKC,"Envrmt,Leisure & Residents Svc",ELR,Non Revenue,001,ELR OHP General (OSY),Balance Sheet Code,002,Non Budget Book Business Unit,B8147.02626,02626, 09/04/2014,P2 860236,"1,000.00",CAB,Gallowglass Ltd,1034303
The Royal Borough of Kensington and Chelsea,RBKC,Corporate Services,COS,Legal Services,CLA,COS Legal Children Social Care (OSC),Third Party Payments,500,Legal Services,P4341.54510.LBHSCF,54510, 11/04/2014,P2 860249,"2,195.00",REV,Payment to an individual or sole trader,607975
The Royal Borough of Kensington and Chelsea,RBKC,Adult Social Care,ASC,Operations,AS6,ASC Learning Dis Local SWT (OSS),Third Party Payments,500,Learning Disability,S6123.54210,54210, 17/04/2014,P2 860250,"11,808.83",REV,Yarrow Housing Ltd,602070
The Royal Borough of Kensington and Chelsea,RBKC,Adult Social Care,ASC,Operations,AS6,ASC Learning Dis Local SWT (OSS),Third Party Payments,500,Learning Disability,S6123.54210,54210, 17/04/2014,P2 860251,"17,393.48",REV,Yarrow Housing Ltd,602070
The Royal Borough of Kensington and Chelsea,RBKC,Adult Social Care,ASC,Operations,AS6,ASC Learning Dis Local SWT (OSS),Third Party Payments,500,Learning Disability,S6123.54210,54210, 17/04/2014,P2 860252,"16,869.58",REV,Yarrow Housing Ltd,602070
The Royal Borough of Kensington and Chelsea,RBKC,Corporate Services,COS,Human Resources,CHG,COS Learning and Development (OSC),Supplies & Services,400,Human Resources,P4421.41100,41100, 11/04/2014,P2 860254,636.00,REV,Lodge Catering,603515
The Royal Borough of Kensington and Chelsea,RBKC,Corporate Services,COS,Human Resources,CHG,COS Learning and Development (OSC),Employee Expenses,100,Human Resources,P4421.19100,19100, 14/04/2014,P2 860256,"4,770.00",REV,Freeney Williams Ltd,1097275
The Royal Borough of Kensington and Chelsea,RBKC,Children's Services,CHS,Children's Commissioning,SCC,CHS Workforce Development Team (OSF),Supplies & Services,400,StrategyCommissioning&Perform,E9752.42113,42113, 11/04/2014,P2 860260,"2,701.71",REV,Cherith Simmons Learning & Development,942778
The Royal Borough of Kensington and Chelsea,RBKC,Children's Services,CHS,Children's Commissioning,SCC,COS Concerto Orders (OSC),Premises Expenses,200,YouthSupport&Development Ser,E6239.20080,20080, 04/04/2014,P2 860261,"38,037.99",REV,Bennett Mechanical Services Ltd,611391
The Royal Borough of Kensington and Chelsea,RBKC,Adult Social Care,ASC,Operations,AS6,ASC Learning Dis Local SWT (OSS),Transport Expenses,300,Learning Disability,S6123.32140,32140, 16/04/2014,P2 860273,732.00,REV,Westway Community Transport,600313
The Royal Borough of Kensington and Chelsea,RBKC,Adult Social Care,ASC,Operations,AS6,ASC Learning Dis Local SWT (OSS),Third Party Payments,500,Learning Disability,S6125.54135,54135, 17/04/2014,P2 860276,"1,807.20",REV,Yarrow Housing Ltd,602070
The Royal Borough of Kensington and Chelsea,RBKC,Adult Social Care,ASC,Operations,AS6,ASC Learning Dis Local SWT (OSS),Third Party Payments,500,Learning Disability,S6123.54135,54135, 17/04/2014,P2 860277,"2,155.46",REV,Yarrow Housing Ltd,602070
The Royal Borough of Kensington and Chelsea,RBKC,Adult Social Care,ASC,Operations,AS6,ASC Learning Dis Local SWT (OSS),Third Party Payments,500,Learning Disability,S6123.54135,54135, 17/04/2014,P2 860278,"2,155.46",REV,Yarrow Housing Ltd,602070
The Royal Borough of Kensington and Chelsea,RBKC,Children's Services,CHS,Tri-Borough Education Service,SED,FCS Music Services (OSF),Supplies & Services,400,Facilitating School Imp,E3551.46050.MHSING,46050, 17/04/2014,P2 860279,"5,000.00",REV,St Marys RC Primary School,601930
The Royal Borough of Kensington and Chelsea,RBKC,Children's Services,CHS,Tri-Borough Education Service,SED,FCS Music Services (OSF),Supplies & Services,400,Facilitating School Imp,E3551.46050.MHWCD,46050, 16/04/2014,P2 860280,640.00,REV,St. Vincents RC Primary School,1244382
The Royal Borough of Kensington and Chelsea,RBKC,Transport & Technical Srvcs,TTS,Transportation & Highways,YTH,TTS Ken King-Lighting (OSY),Third Party Payments,500,T&H-Public Lighting,Y7254.55830,55830, 17/04/2014,P2 860281,"2,860.00",REV,Bronze Restorations,600382
The Royal Borough of Kensington and Chelsea,RBKC,Public Health,PHL,Public Health,JPH,NHS Health Check Progrme & Oth (),Third Party Payments,500,Non Budget Book Business Unit,J4227.55000,55000, 04/04/2014,P2 860285,"1,190.00",REV,French African Welfare Association,1332931
The Royal Borough of Kensington and Chelsea,RBKC,"Envrmt,Leisure & Residents Svc",ELR,"Cleaner,Greener & Cultural Ser",YCG,ELR Recycling & Waste Disposal (OSY),Supplies & Services,400,WM&L-Recycling,Y2160.40100,40100, 11/04/2014,P2 860286,"1,735.02",REV,BPI Recycled Products,601529
The Royal Borough of Kensington and Chelsea,RBKC,"Envrmt,Leisure & Residents Svc",ELR,"Cleaner,Greener & Cultural Ser",YCG,ELR Recycling & Waste Disposal (OSY),Supplies & Services,400,WM&L-Recycling,Y2160.40100,40100, 11/04/2014,P2 860287,"1,735.02",REV,BPI Recycled Products,601529
The Royal Borough of Kensington and Chelsea,RBKC,Transport & Technical Srvcs,TTS,Non Revenue,001,TTS Construction (OSY),Capital Code,003,ES Capital Codes,X5070.00090.GLRD13,00090, 17/04/2014,P2 860288,"4,666.47",CAP,Cappagh Contractors Constr (London) Ltd,898347
The Royal Borough of Kensington and Chelsea,RBKC,Children's Services,CHS,Family Services - RBKC,SKC,FCS Leaving Care (OSF),Third Party Payments,500,LAC and Leaving Care,S1425.54135,54135, 04/04/2014,P2 860439,"2,652.00",REV,Support Link Services Ltd,1141541
The Royal Borough of Kensington and Chelsea,RBKC,Children's Services,CHS,Family Services - RBKC,SKC,FCS Leaving Care (OSF),Third Party Payments,500,LAC and Leaving Care,S1425.54135,54135, 04/04/2014,P2 860440,"2,472.00",REV,Support Link Services Ltd,1141541
The Royal Borough of Kensington and Chelsea,RBKC,Children's Services,CHS,Family Services - RBKC,SKC,FCS Leaving Care (OSF),Third Party Payments,500,LAC and Leaving Care,S1425.54135,54135, 04/04/2014,P2 860441,"2,472.00",REV,Support Link Services Ltd,1141541
The Royal Borough of Kensington and Chelsea,RBKC,Adult Social Care,ASC,Procurement & Bus Intelligence,AS3,HHASC Service Management (OSS),Supplies & Services,400,Support Servs/Management,S0013.43050,43050, 11/04/2014,P2 860445,675.00,REV,AVR Interational Ltd,1334034
The Royal Borough of Kensington and Chelsea,RBKC,Children's Services,CHS,Family Services - RBKC,SKC,FCS Leaving Care (OSF),Third Party Payments,500,LAC and Leaving Care,S1425.54135,54135, 01/04/2014,P2 860446,920.00,REV,Depaul UK,1283527
The Royal Borough of Kensington and Chelsea,RBKC,Children's Services,CHS,School Funding,SSF,FCS Pupil Referral Un (OSF),Employee Expenses,100,Special Schools (Formula),E5606.12100,12100, 10/04/2014,P2 860458,"1,490.00",REV,Anzuk Teachers Ltd,1271543
The Royal Borough of Kensington and Chelsea,RBKC,Children's Services,CHS,School Funding,SSF,FCS Pupil Referral Un (OSF),Employee Expenses,100,Special Schools (Formula),E5606.12100,12100, 09/04/2014,P2 860460,655.00,REV,Engage Education Ltd,952027
The Royal Borough of Kensington and Chelsea,RBKC,Children's Services,CHS,School Funding,SSF,FCS Pupil Referral Un (OSF),Employee Expenses,100,Special Schools (Formula),E5606.12100,12100, 01/04/2014,P2 860464,606.38,REV,Blue Arrow Ltd,600597
The Royal Borough of Kensington and Chelsea,RBKC,Children's Services,CHS,School Funding,SSF,FCS Pupil Referral Un (OSF),Employee Expenses,100,Special Schools (Formula),E5606.12100,12100, 04/04/2014,P2 860466,732.00,REV,Teaching Personnel Ltd,630177
The Royal Borough of Kensington and Chelsea,RBKC,Corporate Services,COS,Strategy & Local Services,CPU,COS Policy & Partnerships Unit (OSC),Third Party Payments,500,Community Safety & DIP,P5751.54545,54545, 17/04/2014,P2 860470,"203,696.00",REV,Mayor's Office For Policing And Crime,648907
The Royal Borough of Kensington and Chelsea,RBKC,Adult Social Care,ASC,Procurement & Bus Intelligence,AS3,ASC Finance (OSS),Third Party Payments,500,Support Servs/Management,S0012.51080,51080, 11/04/2014,P2 860473,"145,158.00",REV,London Borough Of Hammersmith & Fulham,600048
The Royal Borough of Kensington and Chelsea,RBKC,Transport & Technical Srvcs,TTS,Non Revenue,001,TTS Highways (OSY),Capital Code,003,ES Capital Codes,X5070.00090,00090, 11/04/2014,P2 860477,"23,248.63",CAP,Eurovia Infrastructure Ltd,949196
The Royal Borough of Kensington and Chelsea,RBKC,Corporate Services,COS,Strategy & Local Services,CPU,COS PIRS Design (OSF),Third Party Payments,500,Media & Communications,E9707.51080,51080, 11/04/2014,P2 860479,"14,256.63",REV,London Borough Of Hammersmith & Fulham,600048
The Royal Borough of Kensington and Chelsea,RBKC,Transport & Technical Srvcs,TTS,Transportation & Highways,YTH,TTS Alan Moore-Lighting (OSY),Supplies & Services,400,T&H-Traffic Section,Y7131.45370.CN13012,45370, 09/04/2014,P2 860482,554.50,REV,Signway Supplies Datchet Ltd,1201995
The Royal Borough of Kensington and Chelsea,RBKC,Transport & Technical Srvcs,TTS,Transportation & Highways,YTH,TTS Parking On St Services (OSY),Supplies & Services,400,T&H-Parking On-Street,Y8300.43412,43412, 17/04/2014,P2 860484,"2,807.29",REV,O2,622622
The Royal Borough of Kensington and Chelsea,RBKC,Corporate Services,COS,Corporate Property,CBV,COS Conference & Events (Halls (OSC),Supplies & Services,400,Property Services,P2403.41000,41000, 10/04/2014,P2 860491,"1,652.70",REV,Richmond Caterers Ltd,805106
The Royal Borough of Kensington and Chelsea,RBKC,Children's Services,CHS,Tri-Borough Education Service,SED,FCS School Improvement Service (OSF),Supplies & Services,400,Facilitating School Imp,E3907.44210,44210, 17/04/2014,P2 860507,"11,350.00",REV,Chelsea Academy,1128893
The Royal Borough of Kensington and Chelsea,RBKC,Transport & Technical Srvcs,TTS,Transportation & Highways,YTH,TTS Road Safety & Travel Plan (OSY),Supplies & Services,400,T&H-Transportation & Rd Safety,Y7125.45370.CN13002,45370, 17/04/2014,P2 860508,"2,340.00",REV,Technicolour Tyre Company Ltd,1067682
The Royal Borough of Kensington and Chelsea,RBKC,Adult Social Care,ASC,Operations,AS6,ASC Finance (OSS),Third Party Payments,500,Learning Disability,S6121.54070,54070, 01/04/2014,P2 860540,729.09,REV,Care Tech Community Services Ltd,848248
The Royal Borough of Kensington and Chelsea,RBKC,Corporate Services,COS,Legal Services,CLA,COS Legal Litigation (OSC),Third Party Payments,500,Legal Services,P4341.54510.LBTMO/22,54510, 03/04/2014,P2 860541,660.00,REV,Payment to an individual or sole trader,1099100
The Royal Borough of Kensington and Chelsea,RBKC,Children's Services,CHS,Tri-Borough Education Service,SED,FCS SEN (OSF),Third Party Payments,500,"A,I&A Other",E5002.58015.MOSTAQUE,58015, 04/04/2014,P2 860545,552.50,REV,Payment to an individual or sole trader,1334183
The Royal Borough of Kensington and Chelsea,RBKC,Adult Social Care,ASC,Commissioning,AS4,ASC Finance (OSS),Third Party Payments,500,Supporting People,S6700.54200,54200, 11/04/2014,P2 860547,"6,406.25",REV,Life Opportunities Trust,602250
The Royal Borough of Kensington and Chelsea,RBKC,Children's Services,CHS,Tri-Borough Education Service,SED,FCS SEN (OSF),Supplies & Services,400,"A,I&A Other",E5609.40080,40080, 11/04/2014,P2 860549,"1,956.00",REV,Jenx Ltd,600394
The Royal Borough of Kensington and Chelsea,RBKC,Transport & Technical Srvcs,TTS,Environmental Health,YEH,TTS Operational Support (OSS),Supplies & Services,400,Environmental Strategy,Y4067.40310.CRAMNT13,40310, 11/04/2014,P2 860550,"4,132.00",REV,Kings College London,604746
The Royal Borough of Kensington and Chelsea,RBKC,Transport & Technical Srvcs,TTS,Non Revenue,001,TTS Operational Support (OSS),Balance Sheet Code,002,Non Budget Book Business Unit,B3029.04606,04606, 11/04/2014,P2 860554,618.08,CAB,Martin Cranfield Associates Ltd,1018503
The Royal Borough of Kensington and Chelsea,RBKC,Adult Social Care,ASC,Operations,AS6,ASC Learning Dis Local SWT (OSS),Employee Expenses,100,Learning Disability,S6292.12000,12000, 17/04/2014,P2 860556,"13,247.49",REV,CNWL NHS Foundation Trust,604430
The Royal Borough of Kensington and Chelsea,RBKC,Children's Services,CHS,Tri-Borough Education Service,SED,FCS Pupil Support Svc (OSF),Supplies & Services,400,"A,I&A Other",E5605.47210,47210, 11/04/2014,P2 860559,"1,354.42",REV,John Baxter Electrical Contractor,987372
The Royal Borough of Kensington and Chelsea,RBKC,Children's Services,CHS,Tri-Borough Education Service,SED,FCS Pupil Support Svc (OSF),Employee Expenses,100,Facilitating School Imp,E3518.12100,12100, 11/04/2014,P2 860566,600.00,REV,Protocol Education Ltd,626910
The Royal Borough of Kensington and Chelsea,RBKC,Children's Services,CHS,Tri-Borough Education Service,SED,FCS Pupil Support Svc (OSF),Employee Expenses,100,Facilitating School Imp,E3518.12100,12100, 11/04/2014,P2 860568,"1,054.90",REV,Protocol Education Ltd,626910
The Royal Borough of Kensington and Chelsea,RBKC,Transport & Technical Srvcs,TTS,Environmental Health,YEH,TTS Operational Support (OSS),Supplies & Services,400,Contracts and Projects,Y4215.40320,40320, 02/04/2014,P2 860570,761.36,REV,Killgerm Chemicals Ltd,600522
The Royal Borough of Kensington and Chelsea,RBKC,Children's Services,CHS,Tri-Borough Education Service,SED,FCS SEN (OSF),Supplies & Services,400,"A,I&A Other",E5609.45565,45565, 14/04/2014,P2 860576,"2,000.00",REV,Full of Life,810020
The Royal Borough of Kensington and Chelsea,RBKC,Children's Services,CHS,Tri-Borough Education Service,SED,FCS SEN (OSF),Third Party Payments,500,"A,I&A Other",E5002.58010.LOLLID,58010, 09/04/2014,P2 860577,"1,737.50",REV,Payment to an individual or sole trader,1322864
The Royal Borough of Kensington and Chelsea,RBKC,Children's Services,CHS,Tri-Borough Education Service,SED,FCS Pupil Support Svc (OSF),Employee Expenses,100,"A,I&A Other",E5613.12100,12100, 09/04/2014,P2 860578,"1,600.00",REV,Payment to an individual or sole trader,858061
The Royal Borough of Kensington and Chelsea,RBKC,Children's Services,CHS,Tri-Borough Education Service,SED,FCS Pupil Support Svc (OSF),Supplies & Services,400,"A,I&A Other",E5613.47210,47210, 04/04/2014,P2 860580,783.00,REV,Payment to an individual or sole trader,1334563
The Royal Borough of Kensington and Chelsea,RBKC,Adult Social Care,ASC,Provided Services/ MH Partners,AS5,ASC Finance (OSS),Third Party Payments,500,Mental Health,S5128.54135,54135, 01/04/2014,P2 860584,"1,982.40",REV,National Autistic Society,600897
The Royal Borough of Kensington and Chelsea,RBKC,Adult Social Care,ASC,Operations,AS6,ASC Learning Dis Local SWT (OSS),Third Party Payments,500,Learning Disability,S6121.53000,53000, 11/04/2014,P2 860585,"8,767.80",REV,Look Ahead Housing & Care Ltd,600269
The Royal Borough of Kensington and Chelsea,RBKC,Children's Services,CHS,Children's Commissioning,SCC,CHS Workforce Development Team (OSF),Third Party Payments,500,StrategyCommissioning&Perform,E9752.57515,57515, 11/04/2014,P2 860595,586.45,REV,Principal Training,1287750
The Royal Borough of Kensington and Chelsea,RBKC,Children's Services,CHS,Tri-Borough Education Service,SED,FCS SEN (OSF),Third Party Payments,500,"A,I&A Other",E5002.58015.MOSTAQUE,58015, 11/04/2014,P2 860596,552.50,REV,Payment to an individual or sole trader,1334183
The Royal Borough of Kensington and Chelsea,RBKC,Adult Social Care,ASC,Operations,AS6,ASC Learning Dis Local SWT (OSS),Third Party Payments,500,Learning Disability,S6123.54135,54135, 17/04/2014,P2 860598,"2,459.20",REV,Yarrow Housing Ltd,602070
The Royal Borough of Kensington and Chelsea,RBKC,Corporate Services,COS,Human Resources,CHG,COS Learning and Development (OSC),Supplies & Services,400,Human Resources,P4421.42515,42515, 17/04/2014,P2 860599,"1,100.00",REV,Payment to an individual or sole trader,1221930
The Royal Borough of Kensington and Chelsea,RBKC,Transport & Technical Srvcs,TTS,Transportation & Highways,YTH,TTS Road Safety & Travel Plan (OSY),Supplies & Services,400,T&H-Transportation & Rd Safety,Y7125.45370.CN13002,45370, 17/04/2014,P2 860601,"3,210.00",REV,Technicolour Tyre Company Ltd,1067682
The Royal Borough of Kensington and Chelsea,RBKC,Transport & Technical Srvcs,TTS,Transportation & Highways,YTH,TTS Transportation Contracts (OSY),Supplies & Services,400,T&H-Transportation & Rd Safety,Y7111.45370.ST13006,45370, 04/04/2014,P2 860602,"15,060.00",REV,Beam Creative Ltd,1170080
The Royal Borough of Kensington and Chelsea,RBKC,Transport & Technical Srvcs,TTS,Transportation & Highways,YTH,TTS Alan Moore-Lighting (OSY),Premises Expenses,200,T&H-Public Lighting,Y7256.21000,21000, 17/04/2014,P2 860603,"2,895.70",REV,Digital Data Ltd,1053790
The Royal Borough of Kensington and Chelsea,RBKC,Transport & Technical Srvcs,TTS,Transportation & Highways,YTH,TTS Alan Moore-Lighting (OSY),Supplies & Services,400,T&H-Transportation & Rd Safety,Y7116.45370.CN13005,45370, 17/04/2014,P2 860604,"2,473.86",REV,Eurovia Infrastructure Ltd,949196
The Royal Borough of Kensington and Chelsea,RBKC,Transport & Technical Srvcs,TTS,Transportation & Highways,YTH,TTS Alan Moore-Lighting (OSY),Third Party Payments,500,T&H-Highway Maintenance,Y7220.55480,55480, 17/04/2014,P2 860605,"2,511.77",REV,Eurovia Infrastructure Ltd,949196
The Royal Borough of Kensington and Chelsea,RBKC,Public Health,PHL,Public Health,JPH,NHS Health Check Progrme & Oth (),Third Party Payments,500,Non Budget Book Business Unit,J4208.55000,55000, 04/04/2014,P2 860615,967.56,REV,Boots UK Ltd,604480
The Royal Borough of Kensington and Chelsea,RBKC,Public Health,PHL,Public Health,JPH,NHS Health Check Progrme & Oth (),Third Party Payments,500,Non Budget Book Business Unit,J4208.55000,55000, 04/04/2014,P2 860620,"2,723.24",REV,Borno Chemists Ltd,1308871
The Royal Borough of Kensington and Chelsea,RBKC,Children's Services,CHS,Senior Management Team,SMT,FCS Support (OSF),Employee Expenses,100,StrategyCommissioning&Perform,E9750.18410,18410, 11/04/2014,P2 860621,"3,900.00",REV,GatenbySanderson,926253
The Royal Borough of Kensington and Chelsea,RBKC,Corporate Services,COS,Strategy & Local Services,CPU,COS Civic Ceremonial (OSC),Supplies & Services,400,Civic Ceremonial,P2501.43800,43800, 09/04/2014,P2 860771,500.00,REV,Wild Peacock,1278505
The Royal Borough of Kensington and Chelsea,RBKC,Corporate Services,COS,Information Systems,CIS,COS ISD Training (OSC),Supplies & Services,400,Information Systems,P4826.43180,43180, 10/04/2014,P2 860772,"1,052.00",REV,Black Box Network Services,611238
The Royal Borough of Kensington and Chelsea,RBKC,Transport & Technical Srvcs,TTS,Transportation & Highways,YTH,COS ISD Network and Telecomms (OSC),Supplies & Services,400,T&H-Parking On-Street,Y8200.43280,43280, 04/04/2014,P2 860788,817.50,REV,O2,622622
The Royal Borough of Kensington and Chelsea,RBKC,Corporate Services,COS,Non Revenue,001,COS Corporate Finance (OSC),Balance Sheet Code,002,Non Budget Book Business Unit,B4402.08456,08456, 10/04/2014,P2 860792,750.00,CAB,Cluttons LLP,603514
The Royal Borough of Kensington and Chelsea,RBKC,Corporate Services,COS,Information Systems,CIS,COS ISD Network and Telecomms (OSC),Supplies & Services,400,Information Systems,P4826.43180,43180, 11/04/2014,P2 860794,"8,500.00",REV,Unify Enterprise Communications Ltd,603041
The Royal Borough of Kensington and Chelsea,RBKC,Children's Services,CHS,Family Services - RBKC,SKC,FCS Childrens Social Work (OSF),Third Party Payments,500,High Needs Service,S1603.54185,54185, 11/04/2014,P2 860797,"2,597.00",REV,Jamma Umoja (Residential Services),604236
The Royal Borough of Kensington and Chelsea,RBKC,Transport & Technical Srvcs,TTS,Environmental Health,YEH,TTS Operational Support (OSS),Supplies & Services,400,Environmental Strategy,Y4249.45000,45000, 11/04/2014,P2 860802,"3,630.00",REV,Climate Energy Services Ltd,1281849
The Royal Borough of Kensington and Chelsea,RBKC,Corporate Services,COS,Revenues,CFR,COS Cashiers (OSC),Supplies & Services,400,Finance,P4613.40080,40080, 07/04/2014,P2 860803,"1,272.40",REV,H C Slingsby PLC,600816
The Royal Borough of Kensington and Chelsea,RBKC,Corporate Services,COS,Strategy & Local Services,CPU,COS Civic Ceremonial (OSC),Employee Expenses,100,Civic Ceremonial,P2501.12000,12000, 11/04/2014,P2 860810,"5,292.00",REV,Catherine Johnstone Recruitment Ltd,1334548
The Royal Borough of Kensington and Chelsea,RBKC,Children's Services,CHS,Family Services - RBKC,SKC,FCS Early Start (Golborne) (OSF),Employee Expenses,100,EY Management & Admin,E1049.19090,19090, 11/04/2014,P2 860812,"1,050.00",REV,Payment to an individual or sole trader,1290512
The Royal Borough of Kensington and Chelsea,RBKC,Children's Services,CHS,Family Services - RBKC,SKC,FCS Early Start (Golborne) (OSF),Employee Expenses,100,EY Management & Admin,E1049.19090,19090, 11/04/2014,P2 860813,"7,380.00",REV,Touch Learn International Ltd,1056493
The Royal Borough of Kensington and Chelsea,RBKC,Children's Services,CHS,Family Services - RBKC,SKC,FCS Early Start (Golborne) (OSF),Employee Expenses,100,EY Management & Admin,E1049.19090,19090, 09/04/2014,P2 860814,"1,540.00",REV,Satnavcoaching Community Interest Co,1288238
The Royal Borough of Kensington and Chelsea,RBKC,Children's Services,CHS,Family Services - RBKC,SKC,FCS Early Start (Golborne) (OSF),Employee Expenses,100,EY Management & Admin,E1049.19090,19090, 04/04/2014,P2 860815,"1,160.00",REV,MPLC,1038322
The Royal Borough of Kensington and Chelsea,RBKC,Children's Services,CHS,Family Services - RBKC,SKC,FCS Early Start (Golborne) (OSF),Employee Expenses,100,EY Management & Admin,E1049.19090,19090, 11/04/2014,P2 860817,"1,150.00",REV,ROSPA,812474
The Royal Borough of Kensington and Chelsea,RBKC,Children's Services,CHS,Family Services - RBKC,SKC,FCS Early Start (Golborne) (OSF),Employee Expenses,100,EY Outreach,S2236.19090,19090, 04/04/2014,P2 860818,"18,530.00",REV,Triangle Consulting Social Enterprise Lt,1213255
The Royal Borough of Kensington and Chelsea,RBKC,"Envrmt,Leisure & Residents Svc",ELR,Safer Neighbourhoods,YSN,ELR Parks and Cemeteries (OSY),Premises Expenses,200,WM&L-Parks and Open Spaces,Y2710.20890,20890, 16/04/2014,P2 860819,632.11,REV,LBS Worldwide Ltd,1296711
The Royal Borough of Kensington and Chelsea,RBKC,Children's Services,CHS,Family Services - RBKC,SKC,FCS Early Start (Golborne) (OSF),Employee Expenses,100,EY Management & Admin,E1049.19090,19090, 17/04/2014,P2 860824,"1,200.00",REV,Magical Designs,1269959
The Royal Borough of Kensington and Chelsea,RBKC,Corporate Services,COS,Non Revenue,001,COS Group Finance (OSC),Holding Code,005,Non Budget Book Business Unit,C0518.00306,00306, 17/04/2014,P2 860827,"18,896.10",CAH,Amey Community Ltd,1315008
The Royal Borough of Kensington and Chelsea,RBKC,Transport & Technical Srvcs,TTS,Transportation & Highways,YTH,TTS Highways (OSY),Third Party Payments,500,T&H-Highway Maintenance,Y7214.55560,55560, 11/04/2014,P2 860833,"2,594.30",REV,Eurovia Infrastructure Ltd,949196
The Royal Borough of Kensington and Chelsea,RBKC,Transport & Technical Srvcs,TTS,Transportation & Highways,YTH,TTS Highways (OSY),Third Party Payments,500,T&H-Highway Maintenance,Y7214.55560,55560, 11/04/2014,P2 860834,"1,286.85",REV,Eurovia Infrastructure Ltd,949196
The Royal Borough of Kensington and Chelsea,RBKC,Transport & Technical Srvcs,TTS,Transportation & Highways,YTH,TTS KTH Car Park (OSY),Third Party Payments,500,T&H-Parking Off-Street,Y8001.56000,56000, 17/04/2014,P2 860838,"18,480.26",REV,Apcoa Parking (UK) Ltd,600233
The Royal Borough of Kensington and Chelsea,RBKC,Corporate Services,COS,Information Systems,CIS,COS ISD Support (OSC),Supplies & Services,400,Information Systems,P4823.43040.REG,43040, 17/04/2014,P2 860840,"8,562.72",REV,Experian QAS Ltd,859810
The Royal Borough of Kensington and Chelsea,RBKC,"Envrmt,Leisure & Residents Svc",ELR,Safer Neighbourhoods,YSN,ELR Parks and Cemeteries (OSY),Premises Expenses,200,WM&L-Parks and Open Spaces,Y2720.20900,20900, 17/04/2014,P2 860842,"1,914.00",REV,J & J Learmonth,600803
The Royal Borough of Kensington and Chelsea,RBKC,Corporate Services,COS,Non Revenue,001,COS Corporate Finance (OSC),Balance Sheet Code,002,Non Budget Book Business Unit,B4402.08456,08456, 17/04/2014,P2 860843,750.00,CAB,Cluttons LLP,603514
The Royal Borough of Kensington and Chelsea,RBKC,Children's Services,CHS,Family Services - RBKC,SKC,FCS Early Start (Golborne) (OSF),Employee Expenses,100,EY Management & Admin,E1049.19090,19090, 17/04/2014,P2 860853,"1,812.00",REV,Academy Training & Consultancy,1115540
The Royal Borough of Kensington and Chelsea,RBKC,Children's Services,CHS,Family Services - RBKC,SKC,FCS Early Start (Golborne) (OSF),Employee Expenses,100,EY Management & Admin,E1049.19090,19090, 17/04/2014,P2 860854,650.00,REV,Payment to an individual or sole trader,865609
The Royal Borough of Kensington and Chelsea,RBKC,Children's Services,CHS,Family Services - RBKC,SKC,FCS Early Start (Golborne) (OSF),Employee Expenses,100,EY Management & Admin,E1049.19090,19090, 17/04/2014,P2 860855,900.00,REV,The Child Care Company Ltd,1154161
The Royal Borough of Kensington and Chelsea,RBKC,"Envrmt,Leisure & Residents Svc",ELR,Safer Neighbourhoods,YSN,ELR Parks and Cemeteries (OSY),Premises Expenses,200,WM&L-Parks and Open Spaces,Y2710.20820,20820, 17/04/2014,P2 860856,"4,400.00",REV,Eurovia Infrastructure Ltd,949196
The Royal Borough of Kensington and Chelsea,RBKC,"Envrmt,Leisure & Residents Svc",ELR,Safer Neighbourhoods,YSN,ELR Parks and Cemeteries (OSY),Premises Expenses,200,WM&L-Parks and Open Spaces,Y2720.20810,20810, 17/04/2014,P2 860857,"1,652.67",REV,Eurovia Infrastructure Ltd,949196
The Royal Borough of Kensington and Chelsea,RBKC,Transport & Technical Srvcs,TTS,Transportation & Highways,YTH,TTS Ken King-Lighting (OSY),Third Party Payments,500,T&H-Public Lighting,Y7254.55490,55490, 17/04/2014,P2 860858,"2,550.00",REV,Sugg Lighting Ltd,600528
The Royal Borough of Kensington and Chelsea,RBKC,Transport & Technical Srvcs,TTS,Transportation & Highways,YTH,TTS Ken King-Lighting (OSY),Third Party Payments,500,T&H-Public Lighting,Y7254.55490,55490, 17/04/2014,P2 860859,"6,100.00",REV,Sugg Lighting Ltd,600528
The Royal Borough of Kensington and Chelsea,RBKC,Transport & Technical Srvcs,TTS,Transportation & Highways,YTH,TTS Ken King-Lighting (OSY),Third Party Payments,500,T&H-Public Lighting,Y7254.55830,55830, 17/04/2014,P2 860860,"3,660.00",REV,Sugg Lighting Ltd,600528
The Royal Borough of Kensington and Chelsea,RBKC,Transport & Technical Srvcs,TTS,Transportation & Highways,YTH,TTS Ken King-Lighting (OSY),Third Party Payments,500,T&H-Public Lighting,Y7254.55830,55830, 17/04/2014,P2 860861,"6,100.00",REV,Sugg Lighting Ltd,600528
The Royal Borough of Kensington and Chelsea,RBKC,"Envrmt,Leisure & Residents Svc",ELR,Safer Neighbourhoods,YSN,ELR Parks and Cemeteries (OSY),Supplies & Services,400,WM&L-Parks and Open Spaces,Y2750.45101,45101, 02/04/2014,P2 860869,505.85,REV,NHBS Ltd,1048614
The Royal Borough of Kensington and Chelsea,RBKC,Corporate Services,COS,Human Resources,CHG,COS Learning and Development (OSC),Supplies & Services,400,Human Resources,P4406.41040,41040, 16/04/2014,P2 860870,589.71,REV,Mars Drinks UK Ltd,600540
The Royal Borough of Kensington and Chelsea,RBKC,Adult Social Care,ASC,Operations,AS6,ASC Community Team North (OSS),Transport Expenses,300,Older People,S3620.32140,32140, 17/04/2014,P2 860871,921.67,REV,London Ambulance Service,812308
The Royal Borough of Kensington and Chelsea,RBKC,Corporate Services,COS,Strategy & Local Services,CPU,COS Civic Ceremonial (OSC),Supplies & Services,400,Civic Ceremonial,P2501.43800,43800, 17/04/2014,P2 860872,500.00,REV,Wild Peacock,1278505
The Royal Borough of Kensington and Chelsea,RBKC,"Envrmt,Leisure & Residents Svc",ELR,"Cleaner,Greener & Cultural Ser",YCG,ELR Climate Change (OSY),Third Party Payments,500,Exec-Environmental Strategy,Y0016.54530,54530, 17/04/2014,P2 860873,510.00,REV,Sustain Ltd,1238201
The Royal Borough of Kensington and Chelsea,RBKC,"Envrmt,Leisure & Residents Svc",ELR,"Cleaner,Greener & Cultural Ser",YCG,ELR Climate Change (OSY),Third Party Payments,500,Exec-Environmental Strategy,Y0016.54530,54530, 17/04/2014,P2 860874,"2,155.00",REV,Sustain Ltd,1238201
The Royal Borough of Kensington and Chelsea,RBKC,"Envrmt,Leisure & Residents Svc",ELR,"Cleaner,Greener & Cultural Ser",YCG,ELR Climate Change (OSY),Third Party Payments,500,Exec-Environmental Strategy,Y0016.54530,54530, 17/04/2014,P2 860875,"1,565.00",REV,Sustain Ltd,1238201
The Royal Borough of Kensington and Chelsea,RBKC,Transport & Technical Srvcs,TTS,Transportation & Highways,YTH,TTS Alan Moore-Lighting (OSY),Third Party Payments,500,T&H-Parking On-Street,Y8300.55990,55990, 16/04/2014,P2 860876,"1,028.80",REV,Signway Supplies Datchet Ltd,1201995
The Royal Borough of Kensington and Chelsea,RBKC,"Envrmt,Leisure & Residents Svc",ELR,"Cleaner,Greener & Cultural Ser",YCG,ELR Climate Change (OSY),Third Party Payments,500,Exec-Environmental Strategy,Y0016.54530,54530, 17/04/2014,P2 860880,"2,650.00",REV,Sustain Ltd,1238201
The Royal Borough of Kensington and Chelsea,RBKC,Children's Services,CHS,Tri-Borough Education Service,SED,FCS Continual Profession Devel (OSF),Third Party Payments,500,Schools Strategic Management,E2550.54530,54530, 04/04/2014,P2 860881,"1,920.00",REV,Payment to an individual or sole trader,1334785
The Royal Borough of Kensington and Chelsea,RBKC,Children's Services,CHS,Family Services - RBKC,SKC,FCS Early Start (Golborne) (OSF),Employee Expenses,100,EY Management & Admin,E1049.19090,19090, 17/04/2014,P2 860885,"1,467.80",REV,Elizabeth Jarman Training Ltd,1233124
The Royal Borough of Kensington and Chelsea,RBKC,Transport & Technical Srvcs,TTS,Transportation & Highways,YTH,TTS Highways (OSY),Third Party Payments,500,T&H-Highway Maintenance,Y7220.55735,55735, 04/04/2014,P2 861329,"7,744.02",REV,Marshalls Ltd,600411
The Royal Borough of Kensington and Chelsea,RBKC,Transport & Technical Srvcs,TTS,Transportation & Highways,YTH,TTS Highways (OSY),Third Party Payments,500,T&H-Highway Maintenance,Y7220.55735,55735, 04/04/2014,P2 861330,"2,031.37",REV,Marshalls Ltd,600411
The Royal Borough of Kensington and Chelsea,RBKC,Children's Services,CHS,Family Services - RBKC,SKC,FCS Early Start (Golborne) (OSF),Employee Expenses,100,EY Management & Admin,E1049.19090,19090, 04/04/2014,P2 861333,"4,000.00",REV,Govnet Communications,787916
The Royal Borough of Kensington and Chelsea,RBKC,Corporate Services,COS,Financial Services,CFS,Fleet Transport (OSS),Employee Expenses,100,Non Budget Book Business Unit,P6335.18010,18010, 11/04/2014,P2 861342,"1,543.97",REV,Lex Autolease Ltd,903962
The Royal Borough of Kensington and Chelsea,RBKC,Children's Services,CHS,Tri-Borough Education Service,SED,COS ISD Equipment Orders (OSC),Supplies & Services,400,"A,I&A Other",E5603.43000,43000, 17/04/2014,P2 861343,"1,364.46",REV,Insight Direct (UK) Ltd,603806
The Royal Borough of Kensington and Chelsea,RBKC,Corporate Services,COS,Legal Services,CLA,COS Legal Litigation (OSC),Third Party Payments,500,Legal Services,P4341.54510.LBESEHHS,54510, 10/04/2014,P2 861344,"2,500.00",REV,Payment to an individual or sole trader,1322910
The Royal Borough of Kensington and Chelsea,RBKC,"Envrmt,Leisure & Residents Svc",ELR,Safer Neighbourhoods,YSN,ELR Parks and Cemeteries (OSY),Premises Expenses,200,WM&L-Parks and Open Spaces,Y2720.20900,20900, 11/04/2014,P2 861345,"1,710.00",REV,Payment to an individual or sole trader,815113
The Royal Borough of Kensington and Chelsea,RBKC,"Envrmt,Leisure & Residents Svc",ELR,Safer Neighbourhoods,YSN,ELR Parks and Cemeteries (OSY),Premises Expenses,200,WM&L-Parks and Open Spaces,Y2720.20830,20830, 04/04/2014,P2 861347,"1,710.00",REV,Payment to an individual or sole trader,815115
The Royal Borough of Kensington and Chelsea,RBKC,Adult Social Care,ASC,Provided Services/ MH Partners,AS5,COS ISD Equipment Orders (OSC),Third Party Payments,500,Older People,S3012.53000,53000, 17/04/2014,P2 861362,"2,592.42",REV,Computacenter (UK) Ltd,608603
The Royal Borough of Kensington and Chelsea,RBKC,Corporate Services,COS,Information Systems,CIS,Fleet Transport (OSS),Employee Expenses,100,Information Systems,P4821.18010,18010, 16/04/2014,P2 861367,832.20,REV,Lex Autolease Ltd,903962
The Royal Borough of Kensington and Chelsea,RBKC,"Envrmt,Leisure & Residents Svc",ELR,Safer Neighbourhoods,YSN,ELR Sports & Physical Activty (OSY),Supplies & Services,400,WM&L-Sports Centres,Y2861.42360,42360, 17/04/2014,P2 861371,"2,450.00",REV,Moore Sports Ltd,1334533
The Royal Borough of Kensington and Chelsea,RBKC,Planning & Borough Development,PBD,Planning Services,PP,PBD Specialists (OST),Premises Expenses,200,Specialist Services,T0290.20910,20910, 17/04/2014,P2 861372,"7,168.76",REV,City Suburban Tree Surgeons Ltd,1025842
The Royal Borough of Kensington and Chelsea,RBKC,Planning & Borough Development,PBD,Planning Services,PP,PBD Specialists (OST),Premises Expenses,200,Specialist Services,T0290.20910,20910, 17/04/2014,P2 861373,"1,810.44",REV,City Suburban Tree Surgeons Ltd,1025842
The Royal Borough of Kensington and Chelsea,RBKC,Planning & Borough Development,PBD,Planning Services,PP,PBD Specialists (OST),Premises Expenses,200,Specialist Services,T0290.20910,20910, 17/04/2014,P2 861374,"2,416.34",REV,City Suburban Tree Surgeons Ltd,1025842
The Royal Borough of Kensington and Chelsea,RBKC,Transport & Technical Srvcs,TTS,Transportation & Highways,YTH,TTS Ken King-Lighting (OSY),Third Party Payments,500,T&H-Public Lighting,Y7254.55490,55490, 17/04/2014,P2 861378,"1,868.00",REV,Tideland Signal Ltd,1332117
The Royal Borough of Kensington and Chelsea,RBKC,Planning & Borough Development,PBD,Planning Services,PP,PBD Registration (OST),Supplies & Services,400,Dc/Plan Info & Land Chgs,T0100.45445,45445, 09/04/2014,P2 864465,528.00,REV,Trinity Mirror Publishing Ltd,611637
The Royal Borough of Kensington and Chelsea,RBKC,Corporate Services,COS,Corporate Property,CBV,COS Property Services (OSC),Supplies & Services,400,Commercial Lettings,P5725.43050,43050, 09/04/2014,P2 864469,"7,105.43",REV,Zarion Ltd,603540
The Royal Borough of Kensington and Chelsea,RBKC,Children's Services,CHS,Children's Commissioning,SCC,FCS Sports Developmnt (OSF),Supplies & Services,400,YouthSupport&Development Ser,E7197.40080,40080, 16/04/2014,P2 864471,"2,100.00",REV,Chelsea and Westminster Swimming Club,1307934
The Royal Borough of Kensington and Chelsea,RBKC,Corporate Services,COS,Financial Services,CFS,COS Financial Systems (OSC),Supplies & Services,400,Finance,P4630.43085,43085, 09/04/2014,P2 864472,"71,578.57",REV,Zarion Ltd,603540
The Royal Borough of Kensington and Chelsea,RBKC,Adult Social Care,ASC,Provided Services/ MH Partners,AS5,ASC Finance (OSS),Third Party Payments,500,Mental Health,S5128.54200,54200, 11/04/2014,P2 864474,"82,934.29",REV,NHS West London CCG,1323005
The Royal Borough of Kensington and Chelsea,RBKC,Transport & Technical Srvcs,TTS,Non Revenue,001,TTS TAPs and LSSs (OSY),Capital Code,003,ES Capital Codes,X5006.00090.HPAHPS13,00090, 17/04/2014,P2 864490,"1,628.79",CAP,Project Centre,601607
The Royal Borough of Kensington and Chelsea,RBKC,"Library,Archive & Heritage Svc",LAH,LibrarySupt Services,LSS,LAH Bibliographical Services (OSF),Supplies & Services,400,Libraries Services,L0202.40530,40530, 16/04/2014,P2 864500,540.10,REV,John Wiley & Sons Ltd,601313
The Royal Borough of Kensington and Chelsea,RBKC,Transport & Technical Srvcs,TTS,Transportation & Highways,YTH,TTS Highways (OSY),Third Party Payments,500,T&H-Highway Maintenance,Y7214.55470,55470, 17/04/2014,P2 864501,"3,120.47",REV,Cappagh Contractors Constr (London) Ltd,898347
The Royal Borough of Kensington and Chelsea,RBKC,Transport & Technical Srvcs,TTS,Transportation & Highways,YTH,TTS Highways (OSY),Third Party Payments,500,T&H-Highway Maintenance,Y7214.55470,55470, 17/04/2014,P2 864502,"3,570.13",REV,Cappagh Contractors Constr (London) Ltd,898347
The Royal Borough of Kensington and Chelsea,RBKC,Transport & Technical Srvcs,TTS,Transportation & Highways,YTH,TTS Highways (OSY),Third Party Payments,500,T&H-Highway Maintenance,Y7214.55470,55470, 17/04/2014,P2 864503,"4,202.76",REV,Cappagh Contractors Constr (London) Ltd,898347
The Royal Borough of Kensington and Chelsea,RBKC,Transport & Technical Srvcs,TTS,Transportation & Highways,YTH,TTS Highways (OSY),Third Party Payments,500,T&H-Highway Maintenance,Y7214.55470,55470, 17/04/2014,P2 864504,"1,560.30",REV,Cappagh Contractors Constr (London) Ltd,898347
The Royal Borough of Kensington and Chelsea,RBKC,Transport & Technical Srvcs,TTS,Transportation & Highways,YTH,TTS Highways (OSY),Third Party Payments,500,T&H-Highway Maintenance,Y7214.55470,55470, 17/04/2014,P2 864505,"5,747.62",REV,Cappagh Contractors Constr (London) Ltd,898347
The Royal Borough of Kensington and Chelsea,RBKC,Corporate Services,COS,Strategy & Local Services,CPU,COS Community Safety (OSC),Supplies & Services,400,Community Safety & DIP,P5748.40260,40260, 17/04/2014,P2 864511,"11,661.33",REV,Chroma Vision Ltd,1333730
The Royal Borough of Kensington and Chelsea,RBKC,Corporate Services,COS,Strategy & Local Services,CPU,COS Community Safety (OSC),Supplies & Services,400,Community Safety & DIP,P5748.40260,40260, 17/04/2014,P2 864512,"3,647.00",REV,Chroma Vision Ltd,1333730
The Royal Borough of Kensington and Chelsea,RBKC,Corporate Services,COS,Strategy & Local Services,CPU,COS Community Safety (OSC),Supplies & Services,400,Community Safety & DIP,P5748.40260,40260, 17/04/2014,P2 864513,"16,612.00",REV,Chroma Vision Ltd,1333730
The Royal Borough of Kensington and Chelsea,RBKC,Corporate Services,COS,Information Systems,CIS,COS ISD Training (OSC),Supplies & Services,400,Information Systems,P4826.43180,43180, 17/04/2014,P2 864516,"3,750.00",REV,Geo Networks Ltd,1308162
The Royal Borough of Kensington and Chelsea,RBKC,Children's Services,CHS,Family Services - RBKC,SKC,FCS St Quintin's CWD (OSF),Premises Expenses,200,Children With Disabilities,S1230.20010,20010, 04/04/2014,P2 864517,"3,521.39",REV,Travis Perkins Co Ltd,600028
The Royal Borough of Kensington and Chelsea,RBKC,Children's Services,CHS,Family Services - RBKC,SKC,FCS AHDC (OSF),Third Party Payments,500,Children With Disabilities,S1404.52560,52560, 17/04/2014,P2 864518,"61,852.00",REV,CNWL NHS Foundation Trust,604430
The Royal Borough of Kensington and Chelsea,RBKC,"Envrmt,Leisure & Residents Svc",ELR,Non Revenue,001,ELR Leisure Capital Projs (OSY),Capital Code,003,ES Capital Codes,X6364.00090,00090, 17/04/2014,P2 864522,"46,000.00",CAP,Eurovia Infrastructure Ltd,949196
The Royal Borough of Kensington and Chelsea,RBKC,Transport & Technical Srvcs,TTS,Non Revenue,001,TTS Construction (OSY),Capital Code,003,ES Capital Codes,X5070.00090.STSCIM13,00090, 09/04/2014,P2 864525,"1,850.00",CAP,Marshalls Ltd,600411
The Royal Borough of Kensington and Chelsea,RBKC,Children's Services,CHS,Family Services - RBKC,SKC,FCS World's End SWT (OSF),Third Party Payments,500,High Needs Service,S1603.54185,54185, 17/04/2014,P2 864535,"5,754.00",REV,Jamma Umoja (Residential Services),604236
The Royal Borough of Kensington and Chelsea,RBKC,"Envrmt,Leisure & Residents Svc",ELR,"Cleaner,Greener & Cultural Ser",YCG,ELR Recycling & Waste Disposal (OSY),Supplies & Services,400,WM&L-Recycling,Y2160.40100,40100, 04/04/2014,P2 864538,"2,313.36",REV,BPI Recycled Products,601529
The Royal Borough of Kensington and Chelsea,RBKC,"Envrmt,Leisure & Residents Svc",ELR,"Cleaner,Greener & Cultural Ser",YCG,ELR Recycling & Waste Disposal (OSY),Supplies & Services,400,WM&L-Recycling,Y2160.40100,40100, 04/04/2014,P2 864539,"1,735.02",REV,BPI Recycled Products,601529
The Royal Borough of Kensington and Chelsea,RBKC,"Envrmt,Leisure & Residents Svc",ELR,Customer & Business Improvemnt,YCB,ELR Commercial Waste (OSY),Supplies & Services,400,WM&L-Commercial Waste/Rev.Serv,Y2350.40100,40100, 17/04/2014,P2 864541,"1,290.51",REV,BPI Recycled Products,601529
The Royal Borough of Kensington and Chelsea,RBKC,Transport & Technical Srvcs,TTS,Transportation & Highways,YTH,TTS TAPs and LSSs (OSY),Supplies & Services,400,T&H-Transportation & Rd Safety,Y7123.45370,45370, 04/04/2014,P2 864543,"8,667.75",REV,City Of Westminster,605447
The Royal Borough of Kensington and Chelsea,RBKC,Corporate Services,COS,Human Resources,CHG,COS Learning and Development (OSC),Supplies & Services,400,Human Resources,P4421.42515,42515, 11/04/2014,P2 864552,550.00,REV,Salvus Consulting Ltd,1060393
The Royal Borough of Kensington and Chelsea,RBKC,Corporate Services,COS,Strategy & Local Services,CPU,COS Community Safety (OSC),Third Party Payments,500,Community Safety & DIP,P5748.54530.MOPAC,54530, 04/04/2014,P2 864554,"79,772.89",REV,City Of Westminster,605447
The Royal Borough of Kensington and Chelsea,RBKC,Transport & Technical Srvcs,TTS,Non Revenue,001,TTS Streetscape (OSY),Capital Code,003,ES Capital Codes,X5070.00090.GLRD13,00090, 17/04/2014,P2 864555,"15,426.15",CAP,Eurovia Infrastructure Ltd,949196
The Royal Borough of Kensington and Chelsea,RBKC,Corporate Services,COS,Strategy & Local Services,CPU,COS Governance Services (OSC),Employee Expenses,100,Corporate and Democratic Core,P5603.19115,19115, 17/04/2014,P2 864556,660.00,REV,Payment to an individual or sole trader,1262216
The Royal Borough of Kensington and Chelsea,RBKC,Transport & Technical Srvcs,TTS,Transportation & Highways,YTH,TTS Road Safety & Travel Plan (OSY),Supplies & Services,400,T&H-Transportation & Rd Safety,Y7112.45370.ST13007,45370, 22/04/2014,P2 864557,500.00,REV,Payment to an individual or sole trader,1273235
The Royal Borough of Kensington and Chelsea,RBKC,Corporate Services,COS,Human Resources,CHG,COS Learning and Development (OSC),Supplies & Services,400,Human Resources,P4421.42515,42515, 15/04/2014,P2 864560,500.00,REV,Payment to an individual or sole trader,1161442
The Royal Borough of Kensington and Chelsea,RBKC,Corporate Services,COS,Human Resources,CHG,COS Learning and Development (OSC),Supplies & Services,400,Human Resources,P4421.42515,42515, 15/04/2014,P2 864561,500.00,REV,Payment to an individual or sole trader,1161442
The Royal Borough of Kensington and Chelsea,RBKC,Children's Services,CHS,Tri-Borough Education Service,SED,FCS Continual Profession Devel (OSF),Supplies & Services,400,Facilitating School Imp,E3500.42113,42113, 11/04/2014,P2 864562,"2,214.45",REV,Slater Baker Ltd,1197966
The Royal Borough of Kensington and Chelsea,RBKC,Transport & Technical Srvcs,TTS,Transportation & Highways,YTH,TTS Graham Shoesmith-Lighting (OSY),Third Party Payments,500,T&H-Public Lighting,Y7254.55620,55620, 23/04/2014,P2 864569,"26,306.62",REV,Eurovia Infrastructure Ltd,949196
The Royal Borough of Kensington and Chelsea,RBKC,Children's Services,CHS,Tri-Borough Education Service,SED,COS AssetMngt & Capital Prjcts (OSC),Supplies & Services,400,Schools Strategic Management,E3510.47210,47210, 17/04/2014,P2 864570,550.00,REV,Allan Conisbee & Associates Ltd,1316391
The Royal Borough of Kensington and Chelsea,RBKC,Children's Services,CHS,Tri-Borough Education Service,SED,FCS Continual Profession Devel (OSF),Third Party Payments,500,Schools Strategic Management,E2550.54530,54530, 30/04/2014,P2 864579,"3,840.00",REV,Payment to an individual or sole trader,1334785
The Royal Borough of Kensington and Chelsea,RBKC,Transport & Technical Srvcs,TTS,Transportation & Highways,YTH,TTS Transport Policy (OSY),Third Party Payments,500,T&H-Traffic Section,Y7130.54535,54535, 23/04/2014,P2 864581,557.25,REV,Buchanan Order Management,1281689
The Royal Borough of Kensington and Chelsea,RBKC,Transport & Technical Srvcs,TTS,Transportation & Highways,YTH,TTS TAPs and LSSs (OSY),Supplies & Services,400,T&H-Traffic Section,Y7131.45370.CN13012,45370, 23/04/2014,P2 864582,"6,769.86",REV,Project Centre,601607
The Royal Borough of Kensington and Chelsea,RBKC,Transport & Technical Srvcs,TTS,Transportation & Highways,YTH,TTS Highways (OSY),Third Party Payments,500,T&H-Highway Maintenance,Y7214.55560,55560, 17/04/2014,P2 864587,577.55,REV,Eurovia Infrastructure Ltd,949196
The Royal Borough of Kensington and Chelsea,RBKC,Transport & Technical Srvcs,TTS,Transportation & Highways,YTH,TTS Highways (OSY),Third Party Payments,500,T&H-Highway Maintenance,Y7214.55560,55560, 17/04/2014,P2 864588,"6,039.53",REV,Eurovia Infrastructure Ltd,949196
The Royal Borough of Kensington and Chelsea,RBKC,Adult Social Care,ASC,Procurement & Bus Intelligence,AS3,HHASC Service Management (OSS),Employee Expenses,100,Support Servs/Management,S0013.12000,12000, 04/04/2014,P2 864589,"40,931.00",REV,City Of Westminster,605447
The Royal Borough of Kensington and Chelsea,RBKC,Children's Services,CHS,Family Services - RBKC,SKC,FCS Childrens Social Work (OSF),Third Party Payments,500,High Needs Service,S1603.54185,54185, 28/04/2014,P2 864590,"2,597.00",REV,Jamma Umoja (Residential Services),604236
The Royal Borough of Kensington and Chelsea,RBKC,Children's Services,CHS,Family Services - RBKC,SKC,FCS Childrens Social Work (OSF),Third Party Payments,500,High Needs Service,S1603.54185,54185, 17/04/2014,P2 864591,"1,200.00",REV,Jamma Umoja (Residential Services),604236
The Royal Borough of Kensington and Chelsea,RBKC,Transport & Technical Srvcs,TTS,Transportation & Highways,YTH,TTS Graham Shoesmith-Lighting (OSY),Third Party Payments,500,T&H-Public Lighting,Y7256.55751,55751, 23/04/2014,P2 864592,"65,829.51",REV,Eurovia Infrastructure Ltd,949196
The Royal Borough of Kensington and Chelsea,RBKC,Transport & Technical Srvcs,TTS,Transportation & Highways,YTH,TTS Road Safety & Travel Plan (OSY),Supplies & Services,400,T&H-Transportation & Rd Safety,Y7125.45370.CN13002,45370, 23/04/2014,P2 864593,940.68,REV,Cycle Confident Ltd,1320968
The Royal Borough of Kensington and Chelsea,RBKC,Transport & Technical Srvcs,TTS,Transportation & Highways,YTH,TTS Road Safety & Travel Plan (OSY),Supplies & Services,400,T&H-Transportation & Rd Safety,Y7125.45370.CN13002,45370, 23/04/2014,P2 864594,"2,664.78",REV,Cycle Confident Ltd,1320968
The Royal Borough of Kensington and Chelsea,RBKC,"Envrmt,Leisure & Residents Svc",ELR,"Cleaner,Greener & Cultural Ser",YCG,ELR Business Support (OSY),Third Party Payments,500,Exec-Environmental Strategy,Y0016.54530,54530, 23/04/2014,P2 864596,"4,760.00",REV,Carbon Trust,955716
The Royal Borough of Kensington and Chelsea,RBKC,Public Health,PHL,Public Health,JPH,NHS Health Check Progrme & Oth (),Third Party Payments,500,Non Budget Book Business Unit,J4102.55000,55000, 17/04/2014,P2 864601,"3,115.00",REV,Telehealth Solutions Ltd,1315288
The Royal Borough of Kensington and Chelsea,RBKC,Children's Services,CHS,Family Services - RBKC,SKC,FCS FS & SCPR Finance (OSF),Third Party Payments,500,LAC and Leaving Care,S1602.52560,52560, 10/04/2014,P2 864657,"16,366.00",REV,London Borough of Ealing,620930
The Royal Borough of Kensington and Chelsea,RBKC,Children's Services,CHS,Family Services - RBKC,SKC,FCS FS & SCPR Finance (OSF),Third Party Payments,500,LAC and Leaving Care,S1602.52560,52560, 10/04/2014,P2 864658,"24,706.00",REV,London Borough of Ealing,620930
The Royal Borough of Kensington and Chelsea,RBKC,Planning & Borough Development,PBD,Support Services & Executive,PS,PBD Business Support (OST),Supplies & Services,400,Ser Mgt & Spt Ser Post/Micro,T0120.43040,43040, 09/04/2014,P2 864659,"29,987.55",REV,Idox Software Ltd,600475
The Royal Borough of Kensington and Chelsea,RBKC,Children's Services,CHS,Family Services - RBKC,SKC,FCS FS & SCPR Finance (OSF),Third Party Payments,500,LAC and Leaving Care,S1602.52560,52560, 11/04/2014,P2 864660,"8,000.00",REV,London Borough Of Hammersmith & Fulham,600048
The Royal Borough of Kensington and Chelsea,RBKC,Adult Social Care,ASC,Operations,AS6,ASC E Monitoring Team (OSS),Third Party Payments,500,Older People,S3801.54453,54453, 17/04/2014,P2 864672,"1,355.01",REV,Carewatch (Kensington & Chelsea),821083
The Royal Borough of Kensington and Chelsea,RBKC,Adult Social Care,ASC,Operations,AS6,ASC E Monitoring Team (OSS),Third Party Payments,500,Older People,S3800.54453,54453, 17/04/2014,P2 864675,537.08,REV,Carewatch (Kensington & Chelsea),821083
The Royal Borough of Kensington and Chelsea,RBKC,Adult Social Care,ASC,Operations,AS6,ASC E Monitoring Team (OSS),Third Party Payments,500,Older People,S3801.54453,54453, 17/04/2014,P2 864676,"1,121.40",REV,Carewatch (Kensington & Chelsea),821083
The Royal Borough of Kensington and Chelsea,RBKC,Adult Social Care,ASC,Operations,AS6,ASC E Monitoring Team (OSS),Third Party Payments,500,Older People,S3801.54453,54453, 17/04/2014,P2 864680,"1,260.00",REV,Carewatch (Kensington & Chelsea),821083
The Royal Borough of Kensington and Chelsea,RBKC,Adult Social Care,ASC,Operations,AS6,ASC E Monitoring Team (OSS),Third Party Payments,500,Older People,S3800.55355,55355, 17/04/2014,P2 864682,640.64,REV,Carewatch (Kensington & Chelsea),821083
The Royal Borough of Kensington and Chelsea,RBKC,Adult Social Care,ASC,Operations,AS6,ASC E Monitoring Team (OSS),Third Party Payments,500,Physical Disability,S6520.54452,54452, 17/04/2014,P2 864683,"2,107.64",REV,Carewatch (Kensington & Chelsea),821083
The Royal Borough of Kensington and Chelsea,RBKC,"Envrmt,Leisure & Residents Svc",ELR,Non Revenue,001,ELR Sports & Physical Activty (OSY),Capital Code,003,ES Capital Codes,X6364.00090,00090, 17/04/2014,P2 864684,"30,856.32",CAP,Eurovia Infrastructure Ltd,949196
The Royal Borough of Kensington and Chelsea,RBKC,Children's Services,CHS,Children's Commissioning,SCC,FCS School Meals Contracts (OSF),Supplies & Services,400,School MealsManagementContract,E5531.41000,41000, 16/04/2014,P2 864686,815.00,REV,Cater Cover Service Ltd,1127283
The Royal Borough of Kensington and Chelsea,RBKC,Children's Services,CHS,Tri-Borough Education Service,SED,FCS Pupil Support Svc (OSF),Supplies & Services,400,"A,I&A Other",E5605.47210,47210, 17/04/2014,P2 864688,"1,015.00",REV,Roche Audio Visual,934012
The Royal Borough of Kensington and Chelsea,RBKC,Children's Services,CHS,Tri-Borough Education Service,SED,FCS Pupil Support Svc (OSF),Employee Expenses,100,Facilitating School Imp,E3518.12100,12100, 17/04/2014,P2 864691,"1,054.90",REV,Protocol Education Ltd,626910
The Royal Borough of Kensington and Chelsea,RBKC,Children's Services,CHS,Tri-Borough Education Service,SED,FCS Pupil Support Svc (OSF),Employee Expenses,100,Facilitating School Imp,E3518.12100,12100, 17/04/2014,P2 864692,600.00,REV,Protocol Education Ltd,626910
The Royal Borough of Kensington and Chelsea,RBKC,Children's Services,CHS,Tri-Borough Education Service,SED,FCS Pupil Support Svc (OSF),Employee Expenses,100,"A,I&A Other",E5613.12100,12100, 17/04/2014,P2 864693,600.00,REV,Protocol Education Ltd,626910
The Royal Borough of Kensington and Chelsea,RBKC,Children's Services,CHS,Non Revenue,001,FCS Central London Connexions (OSF),Transfer Payments,600,Non Budget Book Business Unit,Z0004.65070,65070, 17/04/2014,P2 864694,"1,720.00",CAH,Payment to an individual or sole trader,921784
The Royal Borough of Kensington and Chelsea,RBKC,Children's Services,CHS,Family Services - RBKC,SKC,FCS FS & SCPR Finance (OSF),Third Party Payments,500,LAC and Leaving Care,S1602.52560,52560, 17/04/2014,P2 864695,"66,000.00",REV,London Borough of Ealing,620930
The Royal Borough of Kensington and Chelsea,RBKC,Children's Services,CHS,Non Revenue,001,COS AssetMngt & Capital Prjcts (OSC),Capital Code,003,TO BE MAPPED,F6034.00065,00065, 17/04/2014,P2 864696,"2,250.00",CAP,Turner & Townsend Project Management Ltd,996407
The Royal Borough of Kensington and Chelsea,RBKC,Corporate Services,COS,Tri/Bi-Borough Projects,CTB,COS Group Finance (OSC),Third Party Payments,500,Not used,P5789.51090,51090, 04/04/2014,P2 864700,"39,887.07",REV,City Of Westminster,605447
The Royal Borough of Kensington and Chelsea,RBKC,Corporate Services,COS,Tri/Bi-Borough Projects,CTB,COS Group Finance (OSC),Third Party Payments,500,Not used,P5778.51090,51090, 04/04/2014,P2 864701,"72,612.60",REV,City Of Westminster,605447
The Royal Borough of Kensington and Chelsea,RBKC,Children's Services,CHS,Children's Commissioning,SCC,FCS School Meals Contracts (OSF),Supplies & Services,400,School MealsManagementContract,E5531.41000,41000, 17/04/2014,P2 864704,558.40,REV,Cater Cover Service Ltd,1127283
The Royal Borough of Kensington and Chelsea,RBKC,Corporate Services,COS,Strategy & Local Services,CPU,COS Registrars (OSC),Supplies & Services,400,Gen Services to the Public,P2001.45445,45445, 25/04/2014,P2 864705,900.00,REV,Payment to an individual or sole trader,604047
The Royal Borough of Kensington and Chelsea,RBKC,Planning & Borough Development,PBD,Planning Services,PP,PBD Registration (OST),Third Party Payments,500,Dc/Plan Info & Land Chgs,T0100.54530,54530, 23/04/2014,P2 864706,"2,182.00",REV,Valuation Office Agency,603785
The Royal Borough of Kensington and Chelsea,RBKC,Planning & Borough Development,PBD,Planning Services,PP,PBD Registration (OST),Third Party Payments,500,Dc/Plan Info & Land Chgs,T0100.54530,54530, 23/04/2014,P2 864707,"3,145.00",REV,Valuation Office Agency,603785
The Royal Borough of Kensington and Chelsea,RBKC,Planning & Borough Development,PBD,Planning Services,PP,PBD Registration (OST),Third Party Payments,500,Dc/Plan Info & Land Chgs,T0100.54530,54530, 23/04/2014,P2 864708,"11,395.00",REV,Valuation Office Agency,603785
The Royal Borough of Kensington and Chelsea,RBKC,Housing Services,HOS,Hsg Needs and Homelessness,HNH,HOS Temp Accommodation (OSS),Third Party Payments,500,Homelessness & Housing Advice,H6400.54525,54525, 02/04/2014,P2 865307,610.00,REV,NowMedical,1001939
The Royal Borough of Kensington and Chelsea,RBKC,"Library,Archive & Heritage Svc",LAH,LibrarySupt Services,LSS,LAH Library Technical Services (OSF),Supplies & Services,400,Libraries Services,L0202.40547,40547, 09/04/2014,P2 865310,813.90,REV,Intellident Ltd,1221044
The Royal Borough of Kensington and Chelsea,RBKC,Adult Social Care,ASC,Commissioning,AS4,ASC Tri Bor Community Commisio (OSS),Third Party Payments,500,Older People,S3003.53000,53000, 11/04/2014,P2 865312,"15,000.00",REV,Imperial College Healthcare NHS Trust,1098311
The Royal Borough of Kensington and Chelsea,RBKC,Housing Revenue Account,HRA,Housing Revenue Account,HRA,HOS HSG Opportunities (OSS),Central Support Services,700,HRA,H0200.78400,78400, 10/04/2014,P2 865314,687.50,REV,The Move Team,979660
The Royal Borough of Kensington and Chelsea,RBKC,Children's Services,CHS,Children's Commissioning,SCC,FCS Youth Sports Dev (OSF),Employee Expenses,100,YouthSupport&Development Ser,E7200.13090,13090, 04/04/2014,P2 865322,881.25,REV,Vibe Teacher Recruitment Ltd,946514
The Royal Borough of Kensington and Chelsea,RBKC,Children's Services,CHS,Children's Commissioning,SCC,FCS Youth Sports Dev (OSF),Employee Expenses,100,YouthSupport&Development Ser,E7200.13090,13090, 11/04/2014,P2 865324,881.25,REV,Vibe Teacher Recruitment Ltd,946514
The Royal Borough of Kensington and Chelsea,RBKC,"Envrmt,Leisure & Residents Svc",ELR,Non Revenue,001,ELR OHP General (OSY),Balance Sheet Code,002,Non Budget Book Business Unit,B8147.02626,02626, 17/04/2014,P2 865326,"5,406.00",CAB,Belmont Press,602355
The Royal Borough of Kensington and Chelsea,RBKC,Adult Social Care,ASC,Operations,AS6,ASC E Monitoring Team (OSS),Third Party Payments,500,Older People,S3800.54453,54453, 17/04/2014,P2 865332,"1,471.30",REV,Carewatch (Kensington & Chelsea),821083
The Royal Borough of Kensington and Chelsea,RBKC,Adult Social Care,ASC,Operations,AS6,ASC E Monitoring Team (OSS),Third Party Payments,500,Older People,S3801.54453,54453, 17/04/2014,P2 865333,"1,225.00",REV,Carewatch (Kensington & Chelsea),821083
The Royal Borough of Kensington and Chelsea,RBKC,Adult Social Care,ASC,Operations,AS6,ASC E Monitoring Team (OSS),Third Party Payments,500,Physical Disability,S6520.54452,54452, 17/04/2014,P2 865334,748.16,REV,Carewatch (Kensington & Chelsea),821083
The Royal Borough of Kensington and Chelsea,RBKC,Adult Social Care,ASC,Operations,AS6,ASC E Monitoring Team (OSS),Third Party Payments,500,Older People,S3801.54453,54453, 17/04/2014,P2 865335,"1,190.17",REV,Carewatch (Kensington & Chelsea),821083
The Royal Borough of Kensington and Chelsea,RBKC,Adult Social Care,ASC,Operations,AS6,ASC E Monitoring Team (OSS),Third Party Payments,500,Older People,S3801.54453,54453, 17/04/2014,P2 865338,567.92,REV,Carewatch (Kensington & Chelsea),821083
The Royal Borough of Kensington and Chelsea,RBKC,Adult Social Care,ASC,Operations,AS6,ASC E Monitoring Team (OSS),Third Party Payments,500,Older People,S3800.54453,54453, 17/04/2014,P2 865339,"1,066.24",REV,Carewatch (Kensington & Chelsea),821083
The Royal Borough of Kensington and Chelsea,RBKC,Adult Social Care,ASC,Operations,AS6,ASC E Monitoring Team (OSS),Third Party Payments,500,Older People,S3801.54453,54453, 17/04/2014,P2 865340,"1,413.30",REV,Carewatch (Kensington & Chelsea),821083
The Royal Borough of Kensington and Chelsea,RBKC,Adult Social Care,ASC,Operations,AS6,ASC E Monitoring Team (OSS),Third Party Payments,500,Older People,S3800.54453,54453, 17/04/2014,P2 865343,637.84,REV,Carewatch (Kensington & Chelsea),821083
The Royal Borough of Kensington and Chelsea,RBKC,Adult Social Care,ASC,Operations,AS6,ASC E Monitoring Team (OSS),Third Party Payments,500,Physical Disability,S6520.54452,54452, 17/04/2014,P2 865345,"1,279.85",REV,Carewatch (Kensington & Chelsea),821083
The Royal Borough of Kensington and Chelsea,RBKC,Adult Social Care,ASC,Operations,AS6,ASC E Monitoring Team (OSS),Third Party Payments,500,Older People,S3801.55355,55355, 17/04/2014,P2 865348,"2,085.00",REV,Carewatch (Kensington & Chelsea),821083
The Royal Borough of Kensington and Chelsea,RBKC,Children's Services,CHS,School Funding,SSF,FCS Pupil Referral Un (OSF),Employee Expenses,100,Special Schools (Formula),E5606.12100,12100, 11/04/2014,P2 865362,610.00,REV,Teaching Personnel Ltd,630177
The Royal Borough of Kensington and Chelsea,RBKC,Children's Services,CHS,School Funding,SSF,FCS Pupil Referral Un (OSF),Employee Expenses,100,Special Schools (Formula),E5606.12100,12100, 11/04/2014,P2 865364,525.00,REV,Engage Education Ltd,952027
The Royal Borough of Kensington and Chelsea,RBKC,Children's Services,CHS,School Funding,SSF,FCS Pupil Referral Un (OSF),Employee Expenses,100,Special Schools (Formula),E5606.12100,12100, 03/04/2014,P2 865367,"1,030.00",REV,Anzuk Teachers Ltd,1271543
The Royal Borough of Kensington and Chelsea,RBKC,"Library,Archive & Heritage Svc",LAH,Non Revenue,001,LAH Library Technical Services (OSF),Capital Code,003,Capital Codes,K5025.00090,00090, 17/04/2014,P2 865371,"1,527.00",CAP,Contour Direct Ltd,1225962
The Royal Borough of Kensington and Chelsea,RBKC,"Library,Archive & Heritage Svc",LAH,Central Library,LCL,LAH Library Technical Services (OSF),Supplies & Services,400,Libraries Services,L0220.40310,40310, 11/04/2014,P2 865373,543.70,REV,Performing Right Society Ltd,601343
The Royal Borough of Kensington and Chelsea,RBKC,Corporate Services,COS,Non Revenue,001,COS ISD Equipment Orders (OSC),Balance Sheet Code,002,Non Budget Book Business Unit,B1081.02452,02452, 23/04/2014,P2 865375,"10,383.60",CAB,Insight Direct (UK) Ltd,603806
The Royal Borough of Kensington and Chelsea,RBKC,Adult Social Care,ASC,Operations,AS6,ASC E Monitoring Team (OSS),Third Party Payments,500,Older People,S3800.54453,54453, 23/04/2014,P2 865377,695.18,REV,Bluebird Care (Kensington & Chelsea),1265729
The Royal Borough of Kensington and Chelsea,RBKC,Transport & Technical Srvcs,TTS,Transportation & Highways,YTH,COS ISD Equipment Orders (OSC),Supplies & Services,400,T&H-Administration,Y7005.43060,43060, 23/04/2014,P2 865378,"1,059.82",REV,Insight Direct (UK) Ltd,603806
The Royal Borough of Kensington and Chelsea,RBKC,"Envrmt,Leisure & Residents Svc",ELR,Non Revenue,001,ELR Parks and Cemeteries (OSY),Capital Code,003,ES Capital Codes,X6334.00090.PS000005,00090, 17/04/2014,P2 865380,"5,739.21",CAP,Kompan Ltd,611179
The Royal Borough of Kensington and Chelsea,RBKC,"Envrmt,Leisure & Residents Svc",ELR,Safer Neighbourhoods,YSN,ELR Parks and Cemeteries (OSY),Premises Expenses,200,WM&L-Parks and Open Spaces,Y2720.20830,20830, 17/04/2014,P2 865381,"16,595.39",REV,Kompan Ltd,611179
The Royal Borough of Kensington and Chelsea,RBKC,"Envrmt,Leisure & Residents Svc",ELR,Non Revenue,001,ELR Environmental Strategy (OSY),Capital Code,003,Capital Codes,X6340.00090,00090, 23/04/2014,P2 865386,"9,175.00",CAP,Brown Baby,1234319
The Royal Borough of Kensington and Chelsea,RBKC,Transport & Technical Srvcs,TTS,Environmental Health,YEH,TTS Operational Support (OSS),Supplies & Services,400,Environmental Strategy,Y4067.40310,40310, 17/04/2014,P2 865396,"1,955.00",REV,Ricardo AEA Ltd,608654
The Royal Borough of Kensington and Chelsea,RBKC,Transport & Technical Srvcs,TTS,Environmental Health,YEH,TTS Operational Support (OSS),Supplies & Services,400,Environmental Strategy,Y4067.40310.TXAMNT13,40310, 09/04/2014,P2 865397,"8,000.00",REV,Kings College London,604746
The Royal Borough of Kensington and Chelsea,RBKC,Transport & Technical Srvcs,TTS,Environmental Health,YEH,TTS Operational Support (OSS),Supplies & Services,400,Environmental Strategy,Y4067.40310,40310, 17/04/2014,P2 865398,"1,000.00",REV,Sion-Manning RC Secondary School,600742
The Royal Borough of Kensington and Chelsea,RBKC,Children's Services,CHS,Tri-Borough Education Service,SED,COS AssetMngt & Capital Prjcts (OSC),Supplies & Services,400,Schools Strategic Management,E3510.47210,47210, 17/04/2014,P2 865403,750.00,REV,Pellings LLP,600164
The Royal Borough of Kensington and Chelsea,RBKC,"Envrmt,Leisure & Residents Svc",ELR,Safer Neighbourhoods,YSN,ELR Parks and Cemeteries (OSY),Premises Expenses,200,WM&L-Parks and Open Spaces,Y2720.20890,20890, 17/04/2014,P2 865406,"1,659.95",REV,Zaun Ltd,1275230
The Royal Borough of Kensington and Chelsea,RBKC,"Envrmt,Leisure & Residents Svc",ELR,Safer Neighbourhoods,YSN,ELR Parks and Cemeteries (OSY),Premises Expenses,200,WM&L-Parks and Open Spaces,Y2720.20890,20890, 17/04/2014,P2 865407,"1,642.35",REV,Zaun Ltd,1275230
The Royal Borough of Kensington and Chelsea,RBKC,"Envrmt,Leisure & Residents Svc",ELR,Safer Neighbourhoods,YSN,ELR Parks and Cemeteries (OSY),Premises Expenses,200,WM&L-Parks and Open Spaces,Y2720.20890,20890, 17/04/2014,P2 865408,"1,055.81",REV,Zaun Ltd,1275230
The Royal Borough of Kensington and Chelsea,RBKC,"Envrmt,Leisure & Residents Svc",ELR,Safer Neighbourhoods,YSN,ELR Sports & Physical Activty (OSY),Supplies & Services,400,WM&L-Sports Centres,Y2850.41680,41680, 23/04/2014,P2 865409,"7,514.00",REV,Greenwich Leisure Ltd (GLL),1085999
The Royal Borough of Kensington and Chelsea,RBKC,Adult Social Care,ASC,Operations,AS6,ASC E Monitoring Team (OSS),Third Party Payments,500,Older People,S3800.54453,54453, 17/04/2014,P2 865410,"1,088.43",REV,Saga Homecare,1280847
The Royal Borough of Kensington and Chelsea,RBKC,Children's Services,CHS,Family Services - RBKC,SKC,FCS World's End SWT (OSF),Third Party Payments,500,High Needs Service,S1603.54185,54185, 30/04/2014,P2 865412,693.00,REV,Jamma Umoja (Community Services) Ltd,604497
The Royal Borough of Kensington and Chelsea,RBKC,Public Health,PHL,Provided Services/ MH Partners,AS5,ASC Substance Use SWT (OSS),Third Party Payments,500,Other Adults,S5395.53000,53000, 23/04/2014,P2 865418,875.00,REV,At Medics Ltd,1307576
The Royal Borough of Kensington and Chelsea,RBKC,"Envrmt,Leisure & Residents Svc",ELR,Safer Neighbourhoods,YSN,ELR Parks and Cemeteries (OSY),Premises Expenses,200,WM&L-Parks and Open Spaces,Y2710.20830,20830, 17/04/2014,P2 865422,"3,121.00",REV,Keep Britain Tidy,1227377
The Royal Borough of Kensington and Chelsea,RBKC,Children's Services,CHS,Family Services - RBKC,SKC,FCS AHDC & BFST (OSF),Supplies & Services,400,Children With Disabilities,S1755.40080.AFTERSCH,40080, 17/04/2014,P2 865424,755.95,REV,GLS Educational Supplies Ltd,600283
The Royal Borough of Kensington and Chelsea,RBKC,Children's Services,CHS,School Funding,SSF,FCS Pupil Referral Un (OSF),Employee Expenses,100,Special Schools (Formula),E5606.12100,12100, 15/04/2014,P2 865425,606.38,REV,Blue Arrow Ltd,600597
The Royal Borough of Kensington and Chelsea,RBKC,Children's Services,CHS,School Funding,SSF,FCS Pupil Referral Un (OSF),Employee Expenses,100,Special Schools (Formula),E5606.12100,12100, 16/04/2014,P2 865426,525.00,REV,Engage Education Ltd,952027
The Royal Borough of Kensington and Chelsea,RBKC,Children's Services,CHS,School Funding,SSF,FCS Pupil Referral Un (OSF),Premises Expenses,200,Special Schools (Formula),E5606.20010,20010, 17/04/2014,P2 865427,"1,265.00",REV,John Baxter Electrical Contractor,987372
The Royal Borough of Kensington and Chelsea,RBKC,Children's Services,CHS,School Funding,SSF,FCS Pupil Referral Un (OSF),Employee Expenses,100,Special Schools (Formula),E5606.12100,12100, 17/04/2014,P2 865428,722.40,REV,Teaching Personnel Ltd,630177
The Royal Borough of Kensington and Chelsea,RBKC,"Envrmt,Leisure & Residents Svc",ELR,"Cleaner,Greener & Cultural Ser",YCG,ELR Refuse & Cleansing (OSY),Third Party Payments,500,WM&L-Operations - Cleansing,Y2305.55290,55290, 30/04/2014,P2 865436,"3,207.50",REV,SDK (Kilsyth) Ltd,602146
The Royal Borough of Kensington and Chelsea,RBKC,Adult Social Care,ASC,Operations,AS6,ASC E Monitoring Team (OSS),Third Party Payments,500,Older People,S3801.55355,55355, 17/04/2014,P2 865437,"1,006.00",REV,Ashbourne Healthcare Services,642207
The Royal Borough of Kensington and Chelsea,RBKC,Adult Social Care,ASC,Operations,AS6,ASC E Monitoring Team (OSS),Third Party Payments,500,Older People,S3801.55355,55355, 17/04/2014,P2 865439,921.52,REV,Ashbourne Healthcare Services,642207
The Royal Borough of Kensington and Chelsea,RBKC,Adult Social Care,ASC,Operations,AS6,ASC E Monitoring Team (OSS),Third Party Payments,500,Older People,S3801.55355,55355, 17/04/2014,P2 865440,921.52,REV,Ashbourne Healthcare Services,642207
The Royal Borough of Kensington and Chelsea,RBKC,Transport & Technical Srvcs,TTS,Transportation & Highways,YTH,TTS Transport Policy (OSY),Third Party Payments,500,T&H-Traffic Section,Y7130.54535,54535, 17/04/2014,P2 865443,"1,415.65",REV,Project Centre,601607
The Royal Borough of Kensington and Chelsea,RBKC,"Library,Archive & Heritage Svc",LAH,Non Revenue,001,COS AssetMngt & Capital Prjcts (OSC),Capital Code,003,Capital Codes,K5043.00090,00090, 22/04/2014,P2 865444,794.18,CAP,Clockwork Removals Ltd,776765
The Royal Borough of Kensington and Chelsea,RBKC,Adult Social Care,ASC,Operations,AS6,ASC Tri Bor Community Commisio (OSS),Supplies & Services,400,Older People,S3004.45000,45000, 24/04/2014,P2 865447,"4,400.00",REV,Hestia Housing & Support,604749
The Royal Borough of Kensington and Chelsea,RBKC,Adult Social Care,ASC,Operations,AS6,ASC Tri Bor Community Commisio (OSS),Supplies & Services,400,Older People,S3004.45000,45000, 24/04/2014,P2 865448,500.00,REV,Hestia Housing & Support,604749
The Royal Borough of Kensington and Chelsea,RBKC,Public Health,PHL,Public Health,JPH,"Obesity, Nutrition & Oth ()",Third Party Payments,500,Non Budget Book Business Unit,J4217.55000,55000, 17/04/2014,P2 865454,833.00,REV,Central London Community Healthcare,601663
The Royal Borough of Kensington and Chelsea,RBKC,Children's Services,CHS,Tri-Borough Education Service,SED,FCS Continual Profession Devel (OSF),Supplies & Services,400,"A,I&A Other",E5614.45000,45000, 04/04/2014,P2 865462,"10,496.00",REV,GatenbySanderson,926253
The Royal Borough of Kensington and Chelsea,RBKC,Corporate Services,COS,Internal Audit & Risk Mngmnt,CFA,COS Internal Audit (OSC),Third Party Payments,500,Finance,P4602.54505,54505, 02/04/2014,P2 865464,705.81,REV,Payment to an individual or sole trader,1091691
The Royal Borough of Kensington and Chelsea,RBKC,Corporate Services,COS,Internal Audit & Risk Mngmnt,CFA,COS Internal Audit (OSC),Third Party Payments,500,Finance,P4602.54505,54505, 02/04/2014,P2 865465,"1,411.63",REV,Payment to an individual or sole trader,1091691
The Royal Borough of Kensington and Chelsea,RBKC,Corporate Services,COS,Internal Audit & Risk Mngmnt,CFA,COS Internal Audit (OSC),Third Party Payments,500,Finance,P4602.54505,54505, 02/04/2014,P2 865466,988.14,REV,Payment to an individual or sole trader,1091691
The Royal Borough of Kensington and Chelsea,RBKC,"Envrmt,Leisure & Residents Svc",ELR,Customer & Business Improvemnt,YCB,ELR Commercial Waste (OSY),Supplies & Services,400,WM&L-Commercial Waste/Rev.Serv,Y2350.40100,40100, 03/04/2014,P2 865469,"1,935.77",REV,BPI Recycled Products,601529
The Royal Borough of Kensington and Chelsea,RBKC,"Envrmt,Leisure & Residents Svc",ELR,Customer & Business Improvemnt,YCB,ELR Commercial Waste (OSY),Supplies & Services,400,WM&L-Commercial Waste/Rev.Serv,Y2350.40100,40100, 03/04/2014,P2 865470,"1,900.67",REV,BPI Recycled Products,601529
The Royal Borough of Kensington and Chelsea,RBKC,Transport & Technical Srvcs,TTS,Transportation & Highways,YTH,TTS Highways (OSY),Third Party Payments,500,T&H-Highway Maintenance,Y7214.55560,55560, 17/04/2014,P2 865477,"6,382.31",REV,Eurovia Infrastructure Ltd,949196
The Royal Borough of Kensington and Chelsea,RBKC,Adult Social Care,ASC,Operations,AS6,ASC E Monitoring Team (OSS),Third Party Payments,500,Older People,S3800.54453,54453, 17/04/2014,P2 865486,"2,494.34",REV,Bluebird Care (Kensington & Chelsea),1265729
The Royal Borough of Kensington and Chelsea,RBKC,Planning & Borough Development,PBD,Planning Services,PP,PBD P&D Management (OST),Third Party Payments,500,Policy And Graphics,T0210.54520,54520, 09/04/2014,P2 865525,995.00,REV,Haskoning UK Ltd,1130713
The Royal Borough of Kensington and Chelsea,RBKC,Planning & Borough Development,PBD,Support Services & Executive,PS,PBD P&D Management (OST),Third Party Payments,500,Ser Mgt & Spt Ser Post/Micro,T0200.54530,54530, 04/04/2014,P2 865526,"13,560.00",REV,Halcrow Group Ltd,877770
The Royal Borough of Kensington and Chelsea,RBKC,Adult Social Care,ASC,Procurement & Bus Intelligence,AS3,ASC L&D (OSS),Employee Expenses,100,Support Servs/Management,S0021.19090,19090, 08/04/2014,P2 865527,600.00,REV,A&R Associates,645926
The Royal Borough of Kensington and Chelsea,RBKC,Adult Social Care,ASC,Procurement & Bus Intelligence,AS3,ASC L&D (OSS),Employee Expenses,100,Support Servs/Management,S0021.19090,19090, 11/04/2014,P2 865530,595.00,REV,Payment to an individual or sole trader,603104
The Royal Borough of Kensington and Chelsea,RBKC,Adult Social Care,ASC,Operations,AS6,ASC Learning Dis Local SWT (OSS),Third Party Payments,500,Learning Disability,S6125.54450,54450, 04/04/2014,P2 865532,"1,331.82",REV,Special People,625778
The Royal Borough of Kensington and Chelsea,RBKC,Adult Social Care,ASC,Operations,AS6,ASC E Monitoring Team (OSS),Third Party Payments,500,Physical Disability,S6520.54452,54452, 16/04/2014,P2 865542,969.00,REV,Hope Care Agency Ltd,1285327
The Royal Borough of Kensington and Chelsea,RBKC,Adult Social Care,ASC,Operations,AS6,ASC E Monitoring Team (OSS),Third Party Payments,500,Older People,S3800.54453,54453, 17/04/2014,P2 865553,"2,272.62",REV,Bluebird Care (Kensington & Chelsea),1265729
The Royal Borough of Kensington and Chelsea,RBKC,Adult Social Care,ASC,Operations,AS6,ASC E Monitoring Team (OSS),Third Party Payments,500,Older People,S3801.54453,54453, 17/04/2014,P2 865554,732.86,REV,Bluebird Care (Kensington & Chelsea),1265729
The Royal Borough of Kensington and Chelsea,RBKC,Adult Social Care,ASC,Operations,AS6,ASC E Monitoring Team (OSS),Third Party Payments,500,Physical Disability,S6521.54452,54452, 17/04/2014,P2 865556,"1,069.22",REV,Bluebird Care (Kensington & Chelsea),1265729
The Royal Borough of Kensington and Chelsea,RBKC,Adult Social Care,ASC,Operations,AS6,ASC E Monitoring Team (OSS),Third Party Payments,500,Older People,S3801.54453,54453, 17/04/2014,P2 865559,941.65,REV,Bluebird Care (Kensington & Chelsea),1265729
The Royal Borough of Kensington and Chelsea,RBKC,Adult Social Care,ASC,Operations,AS6,ASC E Monitoring Team (OSS),Third Party Payments,500,Older People,S3801.55355,55355, 17/04/2014,P2 865561,"2,621.22",REV,Bluebird Care (Kensington & Chelsea),1265729
The Royal Borough of Kensington and Chelsea,RBKC,Adult Social Care,ASC,Operations,AS6,ASC E Monitoring Team (OSS),Third Party Payments,500,Older People,S3801.55355,55355, 11/04/2014,P2 865572,748.05,REV,Ashbourne Healthcare Services,642207
The Royal Borough of Kensington and Chelsea,RBKC,Adult Social Care,ASC,Operations,AS6,ASC E Monitoring Team (OSS),Third Party Payments,500,Older People,S3801.55355,55355, 11/04/2014,P2 865573,921.52,REV,Ashbourne Healthcare Services,642207
The Royal Borough of Kensington and Chelsea,RBKC,Adult Social Care,ASC,Operations,AS6,ASC E Monitoring Team (OSS),Third Party Payments,500,Older People,S3801.55355,55355, 11/04/2014,P2 865574,691.14,REV,Ashbourne Healthcare Services,642207
The Royal Borough of Kensington and Chelsea,RBKC,Adult Social Care,ASC,Operations,AS6,ASC E Monitoring Team (OSS),Third Party Payments,500,Older People,S3801.55355,55355, 11/04/2014,P2 865575,987.48,REV,Ashbourne Healthcare Services,642207
The Royal Borough of Kensington and Chelsea,RBKC,Adult Social Care,ASC,Operations,AS6,ASC E Monitoring Team (OSS),Third Party Payments,500,Older People,S3801.55355,55355, 11/04/2014,P2 865576,921.52,REV,Ashbourne Healthcare Services,642207
The Royal Borough of Kensington and Chelsea,RBKC,Adult Social Care,ASC,Operations,AS6,ASC E Monitoring Team (OSS),Third Party Payments,500,Older People,S3800.54453,54453, 10/04/2014,P2 865580,700.16,REV,Bluebird Care (Kensington & Chelsea),1265729
The Royal Borough of Kensington and Chelsea,RBKC,Adult Social Care,ASC,Operations,AS6,ASC E Monitoring Team (OSS),Third Party Payments,500,Older People,S3800.54453,54453, 10/04/2014,P2 865581,613.17,REV,Bluebird Care (Kensington & Chelsea),1265729
The Royal Borough of Kensington and Chelsea,RBKC,Adult Social Care,ASC,Operations,AS6,ASC E Monitoring Team (OSS),Third Party Payments,500,Older People,S3801.55355,55355, 10/04/2014,P2 865582,701.06,REV,Bluebird Care (Kensington & Chelsea),1265729
The Royal Borough of Kensington and Chelsea,RBKC,Adult Social Care,ASC,Operations,AS6,ASC E Monitoring Team (OSS),Third Party Payments,500,Older People,S3801.55355,55355, 10/04/2014,P2 865583,738.60,REV,Bluebird Care (Kensington & Chelsea),1265729
The Royal Borough of Kensington and Chelsea,RBKC,Adult Social Care,ASC,Operations,AS6,ASC E Monitoring Team (OSS),Third Party Payments,500,Older People,S3800.55355,55355, 10/04/2014,P2 865584,923.86,REV,Bluebird Care (Kensington & Chelsea),1265729
The Royal Borough of Kensington and Chelsea,RBKC,Adult Social Care,ASC,Operations,AS6,ASC E Monitoring Team (OSS),Third Party Payments,500,Older People,S3801.55355,55355, 10/04/2014,P2 865585,913.19,REV,Bluebird Care (Kensington & Chelsea),1265729
The Royal Borough of Kensington and Chelsea,RBKC,Adult Social Care,ASC,Procurement & Bus Intelligence,AS3,ASC L&D (OSS),Employee Expenses,100,Support Servs/Management,S0021.19090,19090, 17/04/2014,P2 865589,"15,000.00",REV,Kings College London,604746
The Royal Borough of Kensington and Chelsea,RBKC,Adult Social Care,ASC,Operations,AS6,ASC E Monitoring Team (OSS),Third Party Payments,500,Older People,S3801.55355,55355, 23/04/2014,P2 865601,701.27,REV,Bluebird Care (Kensington & Chelsea),1265729
The Royal Borough of Kensington and Chelsea,RBKC,Adult Social Care,ASC,Operations,AS6,ASC E Monitoring Team (OSS),Third Party Payments,500,Older People,S3801.55355,55355, 23/04/2014,P2 865602,701.22,REV,Bluebird Care (Kensington & Chelsea),1265729
The Royal Borough of Kensington and Chelsea,RBKC,Adult Social Care,ASC,Operations,AS6,ASC E Monitoring Team (OSS),Third Party Payments,500,Older People,S3800.54453,54453, 23/04/2014,P2 865603,590.74,REV,Bluebird Care (Kensington & Chelsea),1265729
The Royal Borough of Kensington and Chelsea,RBKC,Children's Services,CHS,School Funding,SSF,FCS Pupil Support Svc (OSF),Premises Expenses,200,Special Schools (Formula),E5606.20010,20010, 17/04/2014,P2 865615,"6,000.00",REV,John Baxter Electrical Contractor,987372
The Royal Borough of Kensington and Chelsea,RBKC,Corporate Services,COS,Information Systems,CIS,COS ISD Support (OSC),Supplies & Services,400,Information Systems,P4823.43320,43320, 07/04/2014,P2 865628,607.60,REV,Gradwell Dot Com Ltd,1050426
The Royal Borough of Kensington and Chelsea,RBKC,"Envrmt,Leisure & Residents Svc",ELR,"Cleaner,Greener & Cultural Ser",YCG,ELR Museums Service (OSY),Supplies & Services,400,WM&L-Museums and Galleries,L0306.40082,40082, 17/04/2014,P2 865632,545.00,REV,Donationboxes.co.uk Ltd,1272917
The Royal Borough of Kensington and Chelsea,RBKC,"Envrmt,Leisure & Residents Svc",ELR,"Cleaner,Greener & Cultural Ser",YCG,ELR Museums Service (OSY),Third Party Payments,500,WM&L-Museums and Galleries,L0303.54870,54870, 17/04/2014,P2 865633,"4,500.00",REV,Essie Carpets,902550
The Royal Borough of Kensington and Chelsea,RBKC,"Envrmt,Leisure & Residents Svc",ELR,"Cleaner,Greener & Cultural Ser",YCG,ELR Museums Service (OSY),Supplies & Services,400,WM&L-Museums and Galleries,L0306.40082,40082, 17/04/2014,P2 865634,"3,600.00",REV,Essie Carpets,902550
The Royal Borough of Kensington and Chelsea,RBKC,"Envrmt,Leisure & Residents Svc",ELR,"Cleaner,Greener & Cultural Ser",YCG,ELR Museums Service (OSY),Third Party Payments,500,WM&L-Museums and Galleries,L0303.54870,54870, 11/04/2014,P2 865636,"1,575.00",REV,Catherine Rickman Ltd,874088
The Royal Borough of Kensington and Chelsea,RBKC,"Envrmt,Leisure & Residents Svc",ELR,"Cleaner,Greener & Cultural Ser",YCG,ELR Museums Service (OSY),Supplies & Services,400,WM&L-Museums and Galleries,L0306.40082,40082, 11/04/2014,P2 865637,"2,946.00",REV,Payment to an individual or sole trader,1296701
The Royal Borough of Kensington and Chelsea,RBKC,"Envrmt,Leisure & Residents Svc",ELR,"Cleaner,Greener & Cultural Ser",YCG,ELR Museums Service (OSY),Supplies & Services,400,WM&L-Museums and Galleries,L0306.42100,42100, 17/04/2014,P2 865639,"1,029.00",REV,The Crossgate Press,1235053
The Royal Borough of Kensington and Chelsea,RBKC,Children's Services,CHS,Family Services - RBKC,SKC,FCS Early Start (Golborne) (OSF),Employee Expenses,100,EY Management & Admin,E1049.19090,19090, 17/04/2014,P2 865642,604.80,REV,Eugenie Ltd,1322156
The Royal Borough of Kensington and Chelsea,RBKC,Adult Social Care,ASC,Operations,AS6,ASC Learning Dis Local SWT (OSS),Employee Expenses,100,Learning Disability,S6292.12000,12000, 17/04/2014,P2 865643,"1,895.25",REV,Pulse Healthcare Ltd,828602
The Royal Borough of Kensington and Chelsea,RBKC,Corporate Services,COS,"Finance, Info Systems&Property",CFI,COS Internet/Intranet (OSC),Capital Code,003,Information Systems,Q3509.00120,00120, 17/04/2014,P2 865644,"9,600.00",CAP,Clearleft Ltd,1323243
The Royal Borough of Kensington and Chelsea,RBKC,Transport & Technical Srvcs,TTS,Transportation & Highways,YTH,TTS Road Safety & Travel Plan (OSY),Supplies & Services,400,T&H-Transportation & Rd Safety,Y7125.45370.CN13002,45370, 17/04/2014,P2 865645,"1,650.00",REV,Technicolour Tyre Company Ltd,1067682
The Royal Borough of Kensington and Chelsea,RBKC,Transport & Technical Srvcs,TTS,Transportation & Highways,YTH,TTS Road Safety & Travel Plan (OSY),Supplies & Services,400,T&H-Transportation & Rd Safety,Y7113.45370.ST13008,45370, 23/04/2014,P2 865646,"1,645.00",REV,Bikeworks,1226994
The Royal Borough of Kensington and Chelsea,RBKC,Children's Services,CHS,Family Services - RBKC,SKC,FCS AHDC & BFST (OSF),Supplies & Services,400,Children With Disabilities,S1755.45050.AFTERSCH,45050, 17/04/2014,P2 865654,810.00,REV,Westway Stables Ltd,605320
The Royal Borough of Kensington and Chelsea,RBKC,Adult Social Care,ASC,Procurement & Bus Intelligence,AS3,ASC L&D (OSS),Employee Expenses,100,Support Servs/Management,S0021.19090,19090, 04/04/2014,P2 865661,"1,388.00",REV,London Borough Of Harrow,917845
The Royal Borough of Kensington and Chelsea,RBKC,Transport & Technical Srvcs,TTS,Transportation & Highways,YTH,TTS Road Safety & Travel Plan (OSY),Supplies & Services,400,T&H-Transportation & Rd Safety,Y7114.45370.ST13009,45370, 25/04/2014,P2 865662,507.50,REV,Quadron Services Ltd,774253
The Royal Borough of Kensington and Chelsea,RBKC,Adult Social Care,ASC,Procurement & Bus Intelligence,AS3,ASC L&D (OSS),Employee Expenses,100,Support Servs/Management,S0021.19090,19090, 04/04/2014,P2 865664,"1,560.00",REV,Goldsmiths College,601155
The Royal Borough of Kensington and Chelsea,RBKC,Public Health,PHL,Provided Services/ MH Partners,AS5,ASC Substance Use SWT (OSS),Third Party Payments,500,Other Adults,S5395.53000,53000, 25/04/2014,P2 865665,"3,150.00",REV,Dr B J Pettifer,1324496
The Royal Borough of Kensington and Chelsea,RBKC,Children's Services,CHS,Family Services - RBKC,SKC,FCS Ladbroke North SWT (OSF),Third Party Payments,500,LAC and Leaving Care,S1602.54140,54140, 17/04/2014,P2 865666,"3,297.00",REV,Youth Justice Board of England & Wales,607256
The Royal Borough of Kensington and Chelsea,RBKC,Public Health,PHL,Provided Services/ MH Partners,AS5,ASC Substance Use SWT (OSS),Third Party Payments,500,Other Adults,S5395.53000,53000, 23/04/2014,P2 865668,650.00,REV,At Medics Ltd,1309153
The Royal Borough of Kensington and Chelsea,RBKC,Public Health,PHL,Provided Services/ MH Partners,AS5,ASC Substance Use SWT (OSS),Third Party Payments,500,Other Adults,S5395.53000,53000, 25/04/2014,P2 865674,500.00,REV,Payment to an individual or sole trader,1308005
The Royal Borough of Kensington and Chelsea,RBKC,"Library,Archive & Heritage Svc",LAH,LibrarySupt Services,LSS,LAH General Libraries (OSF),Supplies & Services,400,Libraries Services,L0111.43085,43085, 17/04/2014,P2 866690,"1,000.00",REV,Lorensbergs Ltd,832783
The Royal Borough of Kensington and Chelsea,RBKC,Corporate Services,COS,Information Systems,CIS,COS ISD Network and Telecomms (OSC),Supplies & Services,400,Information Systems,P4826.43280,43280, 17/04/2014,P2 866691,"1,070.00",REV,Data Select Ltd,1251858
The Royal Borough of Kensington and Chelsea,RBKC,"Library,Archive & Heritage Svc",LAH,Branch Libraries,LBL,LAH General Libraries (OSF),Supplies & Services,400,Libraries Services,L0240.40080,40080, 11/04/2014,P2 866692,785.90,REV,Gresswell Direct,642328
The Royal Borough of Kensington and Chelsea,RBKC,"Library,Archive & Heritage Svc",LAH,Non Revenue,001,LAH General Libraries (OSF),Capital Code,003,Capital Codes,K5025.00090,00090, 11/04/2014,P2 866696,"12,111.00",CAP,FG Library Products Ltd,1269666
The Royal Borough of Kensington and Chelsea,RBKC,"Library,Archive & Heritage Svc",LAH,Non Revenue,001,LAH General Libraries (OSF),Capital Code,003,Capital Codes,K5025.00090,00090, 17/04/2014,P2 866697,"3,624.00",CAP,FG Library Products Ltd,1269666
The Royal Borough of Kensington and Chelsea,RBKC,"Library,Archive & Heritage Svc",LAH,LibrarySupt Services,LSS,LAH Library Technical Services (OSF),Supplies & Services,400,Libraries Services,L0210.40080,40080, 04/04/2014,P2 866699,"1,260.00",REV,A B Copyright Ltd,778489
The Royal Borough of Kensington and Chelsea,RBKC,Transport & Technical Srvcs,TTS,Environmental Health,YEH,TTS Operational Support (OSS),Supplies & Services,400,Environmental Strategy,Y4067.40310,40310, 09/04/2014,P2 866708,"4,666.75",REV,Kings College London,604746
The Royal Borough of Kensington and Chelsea,RBKC,Transport & Technical Srvcs,TTS,Transportation & Highways,YTH,TTS Highways (OSY),Third Party Payments,500,T&H-Highway Maintenance,Y7212.55550,55550, 17/04/2014,P2 866711,"22,244.52",REV,Eurovia Infrastructure Ltd,949196
The Royal Borough of Kensington and Chelsea,RBKC,"Library,Archive & Heritage Svc",LAH,Branch Libraries,LBL,LAH General Libraries (OSF),Supplies & Services,400,Libraries Services,L0240.40080,40080, 17/04/2014,P2 866713,595.00,REV,Opening The Book Furniture Ltd,605703
The Royal Borough of Kensington and Chelsea,RBKC,"Library,Archive & Heritage Svc",LAH,Branch Libraries,LBL,LAH General Libraries (OSF),Supplies & Services,400,Libraries Services,L0240.40080,40080, 17/04/2014,P2 866714,755.00,REV,Opening The Book Furniture Ltd,605703
The Royal Borough of Kensington and Chelsea,RBKC,Corporate Services,COS,Corporate Property,CBV,COS Building Maintenance (OSC),Premises Expenses,200,Property Services,P1311.20080,20080, 17/04/2014,P2 866716,504.79,REV,Britewater Ltd,1079530
The Royal Borough of Kensington and Chelsea,RBKC,Corporate Services,COS,Revenues,CFR,COS Benefits (OSC),Employee Expenses,100,Housing & Council Tax Benefits,P5915.12000,12000, 17/04/2014,P2 866728,"4,305.00",REV,Serco Ltd,1200359
The Royal Borough of Kensington and Chelsea,RBKC,Corporate Services,COS,Revenues,CFR,COS Benefits (OSC),Employee Expenses,100,Housing & Council Tax Benefits,P5915.12000,12000, 17/04/2014,P2 866729,750.00,REV,Serco Ltd,1200359
The Royal Borough of Kensington and Chelsea,RBKC,Transport & Technical Srvcs,TTS,Transportation & Highways,YTH,TTS Highways (OSY),Third Party Payments,500,T&H-Highway Maintenance,Y7214.55500,55500, 22/04/2014,P2 866730,"9,886.35",REV,J Murphy & Sons Ltd,611144
The Royal Borough of Kensington and Chelsea,RBKC,Transport & Technical Srvcs,TTS,Transportation & Highways,YTH,TTS Highways (OSY),Third Party Payments,500,T&H-Highway Maintenance,Y7214.55500,55500, 22/04/2014,P2 866731,"8,497.85",REV,J Murphy & Sons Ltd,611144
The Royal Borough of Kensington and Chelsea,RBKC,"Envrmt,Leisure & Residents Svc",ELR,"Cleaner,Greener & Cultural Ser",YCG,ELR Refuse & Cleansing (OSY),Supplies & Services,400,WM&L-Recycling,Y2160.40090,40090, 02/04/2014,P2 866732,"1,820.00",REV,UK Container Maintenance Ltd,1195749
The Royal Borough of Kensington and Chelsea,RBKC,Children's Services,CHS,Finance & Resources,SFR,COS Recruitment (OSC),Employee Expenses,100,Management & Support Services,E9101.18410,18410, 22/04/2014,P2 866733,"2,480.00",REV,Penna PLC,1105134
The Royal Borough of Kensington and Chelsea,RBKC,Transport & Technical Srvcs,TTS,Transportation & Highways,YTH,TTS Road Safety & Travel Plan (OSY),Supplies & Services,400,T&H-Transportation & Rd Safety,Y7113.45370.ST13008,45370, 23/04/2014,P2 866735,"2,430.00",REV,Bikeworks,1226994
The Royal Borough of Kensington and Chelsea,RBKC,Children's Services,CHS,Tri-Borough Education Service,SED,FCS 14-19 Co-Ordination (OSF),Third Party Payments,500,Facilitating School Imp,E3514.54505,54505, 24/04/2014,P2 866736,"1,600.00",REV,Payment to an individual or sole trader,1330669
The Royal Borough of Kensington and Chelsea,RBKC,"Envrmt,Leisure & Residents Svc",ELR,"Cleaner,Greener & Cultural Ser",YCG,COS FM Print & Mailroom Servic (OSC),Supplies & Services,400,WM&L-Recycling,Y2170.41680,41680, 23/04/2014,P2 866738,912.90,REV,Mastercolour Plc,807384
The Royal Borough of Kensington and Chelsea,RBKC,Children's Services,CHS,Tri-Borough Education Service,SED,FCS Pupil Support Svc (OSF),Employee Expenses,100,"A,I&A Other",E5613.12100,12100, 17/04/2014,P2 866746,600.00,REV,Sugarman Medical Ltd,791589
The Royal Borough of Kensington and Chelsea,RBKC,"Envrmt,Leisure & Residents Svc",ELR,Safer Neighbourhoods,YSN,ELR Parks and Cemeteries (OSY),Premises Expenses,200,WM&L-Parks and Open Spaces,Y2720.20830,20830, 25/04/2014,P2 866752,838.08,REV,Quadron Services Ltd,774253
The Royal Borough of Kensington and Chelsea,RBKC,Corporate Services,COS,Non Revenue,001,COS Group Finance (OSC),Holding Code,005,Non Budget Book Business Unit,C1702.00306,00306, 11/04/2014,P2 866754,"153,148.15",CAH,Comensura Ltd,1003827
The Royal Borough of Kensington and Chelsea,RBKC,Children's Services,CHS,Children's Commissioning,SCC,FCS School Meals Contracts (OSF),Premises Expenses,200,School MealsManagementContract,E5531.20010,20010, 23/04/2014,P2 866755,945.00,REV,M P Wharmby Ltd,977461
The Royal Borough of Kensington and Chelsea,RBKC,Children's Services,CHS,Children's Commissioning,SCC,FCS School Meals Contracts (OSF),Premises Expenses,200,School MealsManagementContract,E5531.20010,20010, 23/04/2014,P2 866757,880.00,REV,M P Wharmby Ltd,977461
The Royal Borough of Kensington and Chelsea,RBKC,Corporate Services,COS,Non Revenue,001,COS Group Finance (OSC),Holding Code,005,Non Budget Book Business Unit,C1705.00306,00306, 02/04/2014,P2 866760,"1,934.58",CAH,Q Despatch (West) Ltd,1158082
The Royal Borough of Kensington and Chelsea,RBKC,Corporate Services,COS,Non Revenue,001,COS Group Finance (OSC),Holding Code,005,Non Budget Book Business Unit,C1705.00306,00306, 09/04/2014,P2 866761,"2,336.60",CAH,Q Despatch (West) Ltd,1158082
The Royal Borough of Kensington and Chelsea,RBKC,Children's Services,CHS,Tri-Borough Education Service,SED,FCS Pupil Support Svc (OSF),Supplies & Services,400,"A,I&A Other",E5605.47210,47210, 17/04/2014,P2 866762,"6,587.48",REV,Engenius Engineers Ltd,1335118
The Royal Borough of Kensington and Chelsea,RBKC,Corporate Services,COS,Non Revenue,001,COS Group Finance (OSC),Holding Code,005,Non Budget Book Business Unit,C1702.00306,00306, 16/04/2014,P2 866764,"1,988.62",CAH,Q Despatch (West) Ltd,1158082
The Royal Borough of Kensington and Chelsea,RBKC,Children's Services,CHS,Tri-Borough Education Service,SED,FCS Music Services (OSF),Supplies & Services,400,Facilitating School Imp,E3551.46050.MHWCD,46050, 23/04/2014,P2 866766,"1,539.00",REV,Burdett-Coutts Schools,1306914
The Royal Borough of Kensington and Chelsea,RBKC,Housing Services,HOS,Non Revenue,001,TTS Operational Support (OSS),Capital Code,003,HRA,G0527.00220,00220, 10/04/2014,P2 866774,789.57,CAP,Barrs Security (Locksmiths) UK Ltd,600155
The Royal Borough of Kensington and Chelsea,RBKC,"Envrmt,Leisure & Residents Svc",ELR,Non Revenue,001,ELR Environmental Strategy (OSY),Capital Code,003,Capital Codes,X6365.00090,00090, 03/04/2014,P2 866775,"49,016.07",CAP,Light Projects,934576
The Royal Borough of Kensington and Chelsea,RBKC,"Envrmt,Leisure & Residents Svc",ELR,"Cleaner,Greener & Cultural Ser",YCG,ELR Climate Change (OSY),Supplies & Services,400,Exec-Environmental Strategy,Y0016.45342,45342, 25/04/2014,P2 866777,"5,850.00",REV,Parity Projects Ltd,1332174
The Royal Borough of Kensington and Chelsea,RBKC,"Library,Archive & Heritage Svc",LAH,Central Library,LCL,LAH General Libraries (OSF),Supplies & Services,400,Libraries Services,L0220.40080,40080, 25/04/2014,P2 866778,"7,219.00",REV,Digital Message Ltd,1304586
The Royal Borough of Kensington and Chelsea,RBKC,Transport & Technical Srvcs,TTS,Transportation & Highways,YTH,TTS Parking Divisional Expend (OSY),Third Party Payments,500,T&H-Parking On-Street,Y8300.55972,55972, 25/04/2014,P2 866779,720.00,REV,Metric Group Ltd,611187
The Royal Borough of Kensington and Chelsea,RBKC,"Library,Archive & Heritage Svc",LAH,LibrarySupt Services,LSS,LAH General Libraries (OSF),Supplies & Services,400,Libraries Services,L0210.40080,40080, 25/04/2014,P2 866780,"5,795.00",REV,Digital Message Ltd,1304586
The Royal Borough of Kensington and Chelsea,RBKC,Children's Services,CHS,Family Services - RBKC,SKC,FCS Early Start (Golborne) (OSF),Employee Expenses,100,EY Management & Admin,E1049.19090,19090, 02/04/2014,P2 866781,"7,701.30",REV,Triple P International Ltd,1269756
The Royal Borough of Kensington and Chelsea,RBKC,Children's Services,CHS,Tri-Borough Education Service,SED,FCS SEN (OSF),Third Party Payments,500,Placements & Recoupment,E5010.58040,58040, 24/04/2014,P2 866787,651.00,REV,Lady Margaret School,1335132
The Royal Borough of Kensington and Chelsea,RBKC,Children's Services,CHS,Tri-Borough Education Service,SED,FCS SEN (OSF),Supplies & Services,400,"A,I&A Other",E5619.45800,45800, 17/04/2014,P2 866788,"7,629.00",REV,London Borough Of Hammersmith & Fulham,600048
The Royal Borough of Kensington and Chelsea,RBKC,Children's Services,CHS,Tri-Borough Education Service,SED,FCS SEN (OSF),Supplies & Services,400,"A,I&A Other",E5619.45800,45800, 17/04/2014,P2 866789,"60,507.00",REV,London Borough Of Hammersmith & Fulham,600048
The Royal Borough of Kensington and Chelsea,RBKC,Transport & Technical Srvcs,TTS,Environmental Health,YEH,TTS Operational Support (OSS),Supplies & Services,400,Management & Support Services,Y4010.44200,44200, 23/04/2014,P2 866792,"5,400.00",REV,CIEH,1039914
The Royal Borough of Kensington and Chelsea,RBKC,Transport & Technical Srvcs,TTS,Environmental Health,YEH,TTS Operational Support (OSS),Third Party Payments,500,Environmental Strategy,Y4073.54530,54530, 24/04/2014,P2 866793,"2,010.00",REV,Kings College London,604746
The Royal Borough of Kensington and Chelsea,RBKC,"Library,Archive & Heritage Svc",LAH,LibrarySupt Services,LSS,LAH General Libraries (OSF),Third Party Payments,500,Libraries Services,L0201.55961.QAS,55961, 25/04/2014,P2 866796,"7,598.04",REV,Experian QAS Ltd,859810
The Royal Borough of Kensington and Chelsea,RBKC,Transport & Technical Srvcs,TTS,Transportation & Highways,YTH,TTS Parking Divisional Expend (OSY),Third Party Payments,500,T&H-Parking On-Street,Y8345.55068,55068, 25/04/2014,P2 866798,"2,086.01",REV,Euro Parking Collection Plc,1218709
The Royal Borough of Kensington and Chelsea,RBKC,"Envrmt,Leisure & Residents Svc",ELR,Safer Neighbourhoods,YSN,ELR Parks and Cemeteries (OSY),Supplies & Services,400,WM&L-Parks and Open Spaces,Y2750.45101,45101, 04/04/2014,P2 866799,603.20,REV,Emorsgate Seeds,1115535
The Royal Borough of Kensington and Chelsea,RBKC,Transport & Technical Srvcs,TTS,Environmental Health,YEH,TTS Operational Support (OSS),Supplies & Services,400,Environmental Strategy,Y4067.40310.CABB13,40310, 07/04/2014,P2 866801,"9,999.99",REV,City Of Westminster,605447
The Royal Borough of Kensington and Chelsea,RBKC,Children's Services,CHS,Tri-Borough Education Service,SED,FCS SEN (OSF),Third Party Payments,500,Placements & Recoupment,E5001.58010.BORELD,58010, 01/04/2014,P2 866966,"5,073.00",REV,Sacred Heart High School,1270851
The Royal Borough of Kensington and Chelsea,RBKC,"Envrmt,Leisure & Residents Svc",ELR,"Cleaner,Greener & Cultural Ser",YCG,ELR Refuse & Cleansing (OSY),Supplies & Services,400,WM&L-Operations - Cleansing,Y2301.40095,40095, 17/04/2014,P2 866971,"9,926.80",REV,Glasdon UK Ltd,908329
The Royal Borough of Kensington and Chelsea,RBKC,Adult Social Care,ASC,Operations,AS6,ASC E Monitoring Team (OSS),Third Party Payments,500,Older People,S3800.54453,54453, 10/04/2014,P2 866979,575.54,REV,Bluebird Care (Kensington & Chelsea),1265729
The Royal Borough of Kensington and Chelsea,RBKC,Adult Social Care,ASC,Operations,AS6,ASC E Monitoring Team (OSS),Third Party Payments,500,Older People,S3801.55355,55355, 10/04/2014,P2 866980,706.84,REV,Bluebird Care (Kensington & Chelsea),1265729
The Royal Borough of Kensington and Chelsea,RBKC,Adult Social Care,ASC,Operations,AS6,ASC E Monitoring Team (OSS),Third Party Payments,500,Older People,S3800.54453,54453, 10/04/2014,P2 866981,669.03,REV,Bluebird Care (Kensington & Chelsea),1265729
The Royal Borough of Kensington and Chelsea,RBKC,"Envrmt,Leisure & Residents Svc",ELR,"Cleaner,Greener & Cultural Ser",YCG,ELR Refuse & Cleansing (OSY),Supplies & Services,400,WM&L-Operations - Cleansing,Y2301.40090,40090, 23/04/2014,P2 866983,"5,533.10",REV,Glasdon UK Ltd,908329
The Royal Borough of Kensington and Chelsea,RBKC,Corporate Services,COS,Non Revenue,001,COS ISD Training (OSC),Holding Code,005,Non Budget Book Business Unit,C1068.00660,00660, 11/04/2014,P2 866988,635.19,CAH,Virgin Media Business,607764
The Royal Borough of Kensington and Chelsea,RBKC,"Envrmt,Leisure & Residents Svc",ELR,"Cleaner,Greener & Cultural Ser",YCG,ELR OHP Production (OSY),Supplies & Services,400,WM&L-Holland Park Theatre,L0391.45122,45122, 17/04/2014,P2 866989,500.00,REV,The Agency (London) Ltd,1151690
The Royal Borough of Kensington and Chelsea,RBKC,"Envrmt,Leisure & Residents Svc",ELR,Non Revenue,001,ELR OHP General (OSY),Balance Sheet Code,002,Non Budget Book Business Unit,B8147.02626,02626, 16/04/2014,P2 866990,"1,840.00",CAB,Dean Transport 94 Ltd,1280020
The Royal Borough of Kensington and Chelsea,RBKC,"Envrmt,Leisure & Residents Svc",ELR,Non Revenue,001,ELR Environmental Strategy (OSY),Capital Code,003,Capital Codes,X6340.00090,00090, 16/04/2014,P2 866996,"7,434.46",CAP,Hickman Brothers Landscapes Ltd,1280031
The Royal Borough of Kensington and Chelsea,RBKC,Corporate Services,COS,Non Revenue,001,COS ISD Training (OSC),Holding Code,005,Non Budget Book Business Unit,C1068.00660,00660, 10/04/2014,P2 866997,"10,181.76",CAH,MDNX Managed Services Ltd,1070857
The Royal Borough of Kensington and Chelsea,RBKC,Corporate Services,COS,Internal Audit & Risk Mngmnt,CFA,COS Internal Audit (OSC),Third Party Payments,500,Finance,P5913.55066,55066, 17/04/2014,P2 867002,734.82,REV,London Councils,608624
The Royal Borough of Kensington and Chelsea,RBKC,Children's Services,CHS,Tri-Borough Education Service,SED,FCS School Improvement Service (OSF),Supplies & Services,400,Facilitating School Imp,E3907.44210,44210, 17/04/2014,P2 867005,"7,800.00",REV,Rodney Aldridge Charitable Trust,1335116
The Royal Borough of Kensington and Chelsea,RBKC,Children's Services,CHS,Tri-Borough Education Service,SED,FCS Continual Profession Devel (OSF),Supplies & Services,400,Facilitating School Imp,E3500.42113,42113, 14/04/2014,P2 867006,"1,956.75",REV,Hotel du Vin (Brighton) Ltd,1280485
The Royal Borough of Kensington and Chelsea,RBKC,Children's Services,CHS,Tri-Borough Education Service,SED,FCS Continual Profession Devel (OSF),Supplies & Services,400,Facilitating School Imp,E3915.44210,44210, 08/04/2014,P2 867009,"1,000.00",REV,Payment to an individual or sole trader,1334787
The Royal Borough of Kensington and Chelsea,RBKC,Children's Services,CHS,Children's Commissioning,SCC,FCS School Meals Contracts (OSF),Premises Expenses,200,School MealsManagementContract,E5531.20010,20010, 01/04/2014,P2 867011,850.00,REV,M P Wharmby Ltd,977461
The Royal Borough of Kensington and Chelsea,RBKC,Adult Social Care,ASC,Provided Services/ MH Partners,AS5,ASC Contract Serv-Comm Equip (OSS),Third Party Payments,500,Learning Disability,S6110.53000,53000, 04/04/2014,P2 867015,"269,983.52",REV,Look Ahead Housing & Care Ltd,600269
The Royal Borough of Kensington and Chelsea,RBKC,Children's Services,CHS,Children's Commissioning,SCC,FCS School Meals Contracts (OSF),Premises Expenses,200,School MealsManagementContract,E5531.20010,20010, 23/04/2014,P2 867022,865.00,REV,M P Wharmby Ltd,977461
The Royal Borough of Kensington and Chelsea,RBKC,Corporate Services,COS,Non Revenue,001,COS ISD Training (OSC),Holding Code,005,Non Budget Book Business Unit,C1068.00660,00660, 04/04/2014,P2 867023,889.27,CAH,British Telecom Plc,600703
The Royal Borough of Kensington and Chelsea,RBKC,Public Health,PHL,Public Health,JPH,Seasonal Mortality (),Third Party Payments,500,Non Budget Book Business Unit,J4209.55000,55000, 02/04/2014,P2 867027,"2,738.00",REV,Health Education Partnership Ltd,1309121
The Royal Borough of Kensington and Chelsea,RBKC,Public Health,PHL,Public Health,JPH,Seasonal Mortality (),Third Party Payments,500,Non Budget Book Business Unit,J4209.55000,55000, 02/04/2014,P2 867028,"1,952.86",REV,Health Education Partnership Ltd,1309121
The Royal Borough of Kensington and Chelsea,RBKC,Corporate Services,COS,Non Revenue,001,COS TFM LINK Team (OSC),Holding Code,005,Non Budget Book Business Unit,C0518.00306,00306, 23/04/2014,P2 867029,"343,624.97",CAH,Amey Community Ltd,1315008
The Royal Borough of Kensington and Chelsea,RBKC,Children's Services,CHS,Family Services - RBKC,SKC,FCS Early Start (Golborne) (OSF),Employee Expenses,100,EY Management & Admin,E1049.19090,19090, 16/04/2014,P2 867030,"30,140.00",REV,Triple P UK Ltd,1193469
The Royal Borough of Kensington and Chelsea,RBKC,Adult Social Care,ASC,Operations,AS6,ASC Community Team North (OSS),Supplies & Services,400,Older People,S3620.45000,45000, 02/04/2014,P2 867033,"1,196.70",REV,Banham Patent Locks Ltd,611653
The Royal Borough of Kensington and Chelsea,RBKC,"Envrmt,Leisure & Residents Svc",ELR,Non Revenue,001,ELR Environmental Strategy (OSY),Capital Code,003,Capital Codes,X6340.00090,00090, 23/04/2014,P2 867034,"4,000.00",CAP,Petersham Nurseries,1335237
The Royal Borough of Kensington and Chelsea,RBKC,Children's Services,CHS,Tri-Borough Education Service,SED,FCS Finance (Schools) (OSF),Third Party Payments,500,Placements & Recoupment,E5010.58040,58040, 09/04/2014,P2 867215,"125,164.35",REV,Wandsworth Council,600660
The Royal Borough of Kensington and Chelsea,RBKC,Children's Services,CHS,School Funding,SSF,CHS Golborne (OSF),Employee Expenses,100,Early Years (Formula),E1002.13043,13043, 11/04/2014,P2 867216,"1,040.00",REV,Smart Education Ltd,1082199
The Royal Borough of Kensington and Chelsea,RBKC,Corporate Services,COS,Strategy & Local Services,CPU,COS ISD Network and Telecomms (OSC),Supplies & Services,400,Governance Services,P4209.43320,43320, 11/04/2014,P2 867217,"2,988.00",REV,Unify Enterprise Communications Ltd,603041
The Royal Borough of Kensington and Chelsea,RBKC,Children's Services,CHS,School Funding,SSF,CHS Golborne (OSF),Employee Expenses,100,Early Years (Formula),E1003.13043,13043, 17/04/2014,P2 867219,562.52,REV,Marylebone Recruitment Ltd,600077
The Royal Borough of Kensington and Chelsea,RBKC,Children's Services,CHS,School Funding,SSF,CHS Golborne (OSF),Employee Expenses,100,Early Years (Formula),E1003.13043,13043, 17/04/2014,P2 867220,519.74,REV,Marylebone Recruitment Ltd,600077
The Royal Borough of Kensington and Chelsea,RBKC,Corporate Services,COS,Legal Services,CLA,COS Legal Litigation (OSC),Third Party Payments,500,Legal Services,P4341.54510.LBTMO/02,54510, 17/04/2014,P2 867225,"3,250.00",REV,Payment to an individual or sole trader,645152
The Royal Borough of Kensington and Chelsea,RBKC,Children's Services,CHS,School Funding,SSF,CHS Golborne (OSF),Employee Expenses,100,Early Years (Formula),E1002.13043,13043, 17/04/2014,P2 867229,"1,040.00",REV,Smart Education Ltd,1082199
The Royal Borough of Kensington and Chelsea,RBKC,"Library,Archive & Heritage Svc",LAH,LibrarySupt Services,LSS,COS ISD Network and Telecomms (OSC),Supplies & Services,400,Libraries Services,L0210.40080,40080, 17/04/2014,P2 867230,"1,838.00",REV,Black Box Network Services,611238
The Royal Borough of Kensington and Chelsea,RBKC,Children's Services,CHS,Family Services - RBKC,SKC,FCS World's End SWT (OSF),Third Party Payments,500,LAC and Leaving Care,S1816.54120,54120, 24/04/2014,P2 867231,670.14,REV,Earls Court YMCA,601331
The Royal Borough of Kensington and Chelsea,RBKC,Children's Services,CHS,Family Services - RBKC,SKC,FCS World's End SWT (OSF),Third Party Payments,500,LAC and Leaving Care,S1816.54120,54120, 24/04/2014,P2 867233,748.03,REV,Earls Court YMCA,601331
The Royal Borough of Kensington and Chelsea,RBKC,Children's Services,CHS,Family Services - RBKC,SKC,FCS Ladbroke South SWT (OSF),Third Party Payments,500,LAC and Leaving Care,S1742.54005,54005, 25/04/2014,P2 867235,"3,210.67",REV,National Fostering Agency,992984
The Royal Borough of Kensington and Chelsea,RBKC,Children's Services,CHS,Family Services - RBKC,SKC,FCS Ladbroke South SWT (OSF),Third Party Payments,500,Promoting Services,S1741.54390,54390, 24/04/2014,P2 867240,861.51,REV,Earls Court YMCA,601331
The Royal Borough of Kensington and Chelsea,RBKC,Corporate Services,COS,Legal Services,CLA,COS Legal Litigation (OSC),Third Party Payments,500,Legal Services,P4341.54510.LBLBHF,54510, 17/04/2014,P2 867241,700.00,REV,Payment to an individual or sole trader,1271643
The Royal Borough of Kensington and Chelsea,RBKC,Children's Services,CHS,Family Services - RBKC,SKC,FCS Ladbroke South SWT (OSF),Third Party Payments,500,LAC and Leaving Care,S1602.54140,54140, 17/04/2014,P2 867252,942.00,REV,Youth Justice Board of England & Wales,607256
The Royal Borough of Kensington and Chelsea,RBKC,Corporate Services,COS,Information Systems,CIS,COS ISD General (OSC),Third Party Payments,500,Information Systems,P4810.54530,54530, 25/04/2014,P2 867253,"4,800.00",REV,Hollyville Consultants Ltd,1309284
The Royal Borough of Kensington and Chelsea,RBKC,Children's Services,CHS,Tri-Borough Education Service,SED,COS AssetMngt & Capital Prjcts (OSC),Supplies & Services,400,Schools Strategic Management,E3510.47210,47210, 07/04/2014,P2 867255,"8,099.82",REV,Collinstown Construction Ltd,948272
The Royal Borough of Kensington and Chelsea,RBKC,Children's Services,CHS,Family Services - RBKC,SKC,FCS Ladbroke South SWT (OSF),Third Party Payments,500,LAC and Leaving Care,S1742.54005,54005, 30/04/2014,P2 867256,584.35,REV,Faith in Families,831685
The Royal Borough of Kensington and Chelsea,RBKC,Planning & Borough Development,PBD,Planning Services,PP,PBD Specialists (OST),Premises Expenses,200,Specialist Services,T0290.20910,20910, 23/04/2014,P2 867257,567.96,REV,City Suburban Tree Surgeons Ltd,1025842
The Royal Borough of Kensington and Chelsea,RBKC,Adult Social Care,ASC,Procurement & Bus Intelligence,AS3,ASC L&D (OSS),Employee Expenses,100,Support Servs/Management,S0021.19090,19090, 25/04/2014,P2 867260,"3,600.00",REV,Stephen Lloyd Training,1119751
The Royal Borough of Kensington and Chelsea,RBKC,Adult Social Care,ASC,Operations,AS6,ASC E Monitoring Team (OSS),Third Party Payments,500,Older People,S3801.55355,55355, 17/04/2014,P2 867264,691.14,REV,Ashbourne Healthcare Services,642207
The Royal Borough of Kensington and Chelsea,RBKC,Adult Social Care,ASC,Operations,AS6,ASC E Monitoring Team (OSS),Third Party Payments,500,Older People,S3800.55355,55355, 17/04/2014,P2 867265,921.52,REV,Ashbourne Healthcare Services,642207
The Royal Borough of Kensington and Chelsea,RBKC,Transport & Technical Srvcs,TTS,Transportation & Highways,YTH,TTS TAPs and LSSs (OSY),Third Party Payments,500,T&H-Highway Maintenance,Y7220.55480,55480, 25/04/2014,P2 867267,630.93,REV,Hyder Consulting (UK) Ltd,951892
The Royal Borough of Kensington and Chelsea,RBKC,Transport & Technical Srvcs,TTS,Transportation & Highways,YTH,TTS Construction (OSY),Third Party Payments,500,T&H-Highway Maintenance,Y7220.55480,55480, 25/04/2014,P2 867268,"1,690.00",REV,Hyder Consulting (UK) Ltd,951892
The Royal Borough of Kensington and Chelsea,RBKC,Transport & Technical Srvcs,TTS,Transportation & Highways,YTH,TTS Construction (OSY),Third Party Payments,500,T&H-Highway Maintenance,Y7220.55480,55480, 25/04/2014,P2 867269,"20,290.75",REV,Hyder Consulting (UK) Ltd,951892
The Royal Borough of Kensington and Chelsea,RBKC,Transport & Technical Srvcs,TTS,Transportation & Highways,YTH,TTS Construction (OSY),Third Party Payments,500,T&H-Highway Maintenance,Y7220.55480,55480, 17/04/2014,P2 867276,"12,034.85",REV,F M Conway Ltd,611169
The Royal Borough of Kensington and Chelsea,RBKC,Transport & Technical Srvcs,TTS,Environmental Health,YEH,TTS Operational Support (OSS),Supplies & Services,400,Noise and Nuisance,Y4205.40310,40310, 17/04/2014,P2 867281,"1,200.00",REV,Premier Diagnostics Ltd,1335235
The Royal Borough of Kensington and Chelsea,RBKC,Corporate Services,COS,Strategy & Local Services,CPU,COS Electoral Services (OSC),Supplies & Services,400,Gen Services to the Public,P2101.40080,40080, 03/04/2014,P2 867283,873.96,REV,Alison Handling Services Ltd,1331147
The Royal Borough of Kensington and Chelsea,RBKC,"Envrmt,Leisure & Residents Svc",ELR,"Cleaner,Greener & Cultural Ser",YCG,ELR Recycling & Waste Disposal (OSY),Supplies & Services,400,WM&L-Recycling,Y2160.40100,40100, 17/04/2014,P2 867285,"2,313.36",REV,BPI Recycled Products,601529
The Royal Borough of Kensington and Chelsea,RBKC,"Envrmt,Leisure & Residents Svc",ELR,"Cleaner,Greener & Cultural Ser",YCG,ELR Recycling & Waste Disposal (OSY),Supplies & Services,400,WM&L-Recycling,Y2160.40100,40100, 23/04/2014,P2 867286,"1,735.02",REV,BPI Recycled Products,601529
The Royal Borough of Kensington and Chelsea,RBKC,Planning & Borough Development,PBD,Support Services & Executive,PS,PBD Business Support (OST),Supplies & Services,400,Ser Mgt & Spt Ser Post/Micro,T0120.40020,40020, 25/04/2014,P2 867288,"11,964.68",REV,Insight Direct (UK) Ltd,603806
The Royal Borough of Kensington and Chelsea,RBKC,Adult Social Care,ASC,Operations,AS6,ASC Advice Info and Access (OSS),Third Party Payments,500,Physical Disability,S6520.54240,54240, 30/04/2014,P2 867290,"2,493.94",REV,Clarity - Employment for Blind People,600505
The Royal Borough of Kensington and Chelsea,RBKC,Children's Services,CHS,Tri-Borough Education Service,SED,FCS Finance (Schools) (OSF),Third Party Payments,500,Placements & Recoupment,E5000.58050.2012/13,58050, 04/04/2014,P2 867292,"185,586.87",REV,City Of Westminster,605447
